"SERVICE_CODE","ORGANISATION_UNIT","EXPENDITURE_CATEGORY","EXPENDITURE_DESCRIPTION","EXPENDITURE_CODE","NARRATIVE","DATE","TRANSATION_CODE","NET_AMOUNT","SUPPLIER_CODE","SUPPLIER_NAME","FROM_DATE","TO_DATE","FINANCIAL_PERIOD_YEAR"
"CEO","LEGAL SERVICES","EMPLOYEES","APPOINTMENT EXPENSES","1301","P116573-SERVICE-Head of Legal Vacancy costs",22/2/2022 00:00:00,"259367",1533,"SA0133","SOWERBY ADVERTISING AND COMMUNICATIONS",31/1/2022 00:00:00,27/2/2022 00:00:00,"P11-2022"
"CEO","LEGAL SERVICES","EMPLOYEES","APPOINTMENT EXPENSES","1301","P116621-SERVICE-HEAD OF LEGAL VACANCY COSTS JOBSGOPUBLIC",22/2/2022 00:00:00,"259523",1465,"SA0133","SOWERBY ADVERTISING AND COMMUNICATIONS",31/1/2022 00:00:00,27/2/2022 00:00:00,"P11-2022"
"P&V","POLICY & PERFORMANCE (L&E)","EMPLOYEES","APPOINTMENT EXPENSES","1301","P116812-SERVICE-COMM hEALTH & WELLBEING ADVERT COSTS",27/2/2022 00:00:00,"259963",340,"SA0133","SOWERBY ADVERTISING AND COMMUNICATIONS",31/1/2022 00:00:00,27/2/2022 00:00:00,"P11-2022"
,"LEE VALLEY WHITE WATER CENTRE","EMPLOYEES","APPOINTMENT EXPENSES","1301","P116617-SERVICE-ACTIVITY INSTRUCTOR ADVERT COSTS",22/2/2022 00:00:00,"259366",712,"SA0133","SOWERBY ADVERTISING AND COMMUNICATIONS",31/1/2022 00:00:00,27/2/2022 00:00:00,"P11-2022"
"R&B","CORPORATE TRAINING","EMPLOYEES","TRAINING EXPENSES","1305","P116376-SERVICE-First Aid Course 16/02/22 M Delaforge Allen",8/2/2022 00:00:00,"258989",299,"BR0069","BRITISH RED CROSS",31/1/2022 00:00:00,27/2/2022 00:00:00,"P11-2022"
"R&B","CORPORATE TRAINING","EMPLOYEES","TRAINING EXPENSES","1305","P116253-SERVICE-C CURRIE FISHERS FIRST AID COURSE 9/03/2022",14/2/2022 00:00:00,"259185",299,"BR0069","BRITISH RED CROSS",31/1/2022 00:00:00,27/2/2022 00:00:00,"P11-2022"
"R&B","CORPORATE TRAINING","EMPLOYEES","TRAINING EXPENSES","1305","P116574-SERVICE-EFAW TRAINING COURSE 28/01/2022",27/2/2022 00:00:00,"259598",595,"RI0181","RD HEALTH & SAFETY LIMITED",31/1/2022 00:00:00,27/2/2022 00:00:00,"P11-2022"
"R&B","CORPORATE TRAINING","EMPLOYEES","TRAINING EXPENSES","1305","P116861-SERVICE-LEVEL 3 SUPERVISING FOOD SAFETY",27/2/2022 00:00:00,"259854",1125,"HI0455","HIGH SPEED TRAINING LIMITED",31/1/2022 00:00:00,27/2/2022 00:00:00,"P11-2022"
"R&B","CORPORATE TRAINING","EMPLOYEES","TRAINING EXPENSES","1305","P116860-SERVICE-LEVEL 2 FOOD HYGIENE & SAFETY CATERING",27/2/2022 00:00:00,"259855",414,"HI0455","HIGH SPEED TRAINING LIMITED",31/1/2022 00:00:00,27/2/2022 00:00:00,"P11-2022"
"P&V","NORTH AREA RANGERS","EMPLOYEES","TRAINING EXPENSES","1305","P116281-SERVICE-Basic Tree Inspection Training x2",9/2/2022 00:00:00,"258767",200,"CO0135","CAPEL MANOR COLLEGE",31/1/2022 00:00:00,27/2/2022 00:00:00,"P11-2022"
"P&V","NORTH AREA RANGERS","EMPLOYEES","TRAINING EXPENSES","1305","P116281-SERVICE-Basic Tree Inspection Training x2",9/2/2022 00:00:00,"258769",200,"CO0135","CAPEL MANOR COLLEGE",31/1/2022 00:00:00,27/2/2022 00:00:00,"P11-2022"
"P&V","RIVER LEE COUNTRY PARK","EMPLOYEES","TRAINING EXPENSES","1305","P116281-SERVICE-Basic Tree Inspection Training x3",7/2/2022 00:00:00,"258764",200,"CO0135","CAPEL MANOR COLLEGE",31/1/2022 00:00:00,27/2/2022 00:00:00,"P11-2022"
"P&V","RIVER LEE COUNTRY PARK","EMPLOYEES","TRAINING EXPENSES","1305","P116281-SERVICE-Basic Tree Inspection Training x3",7/2/2022 00:00:00,"258766",200,"CO0135","CAPEL MANOR COLLEGE",31/1/2022 00:00:00,27/2/2022 00:00:00,"P11-2022"
"P&V","RIVER LEE COUNTRY PARK","EMPLOYEES","TRAINING EXPENSES","1305","P116281-SERVICE-Basic Tree Inspection Training x3",7/2/2022 00:00:00,"258771",200,"CO0135","CAPEL MANOR COLLEGE",31/1/2022 00:00:00,27/2/2022 00:00:00,"P11-2022"
,"VENUES MANAGEMENT","EMPLOYEES","TRAINING EXPENSES","1305","P116324-SERVICE-Tutor expenses",22/2/2022 00:00:00,"259007",60,"DI0317","DISABILITY SPORTS COACH",31/1/2022 00:00:00,27/2/2022 00:00:00,"P11-2022"
,"VENUES MANAGEMENT","EMPLOYEES","TRAINING EXPENSES","1305","P116324-SERVICE-Disability Equality Training",22/2/2022 00:00:00,"259007",650,"DI0317","DISABILITY SPORTS COACH",31/1/2022 00:00:00,27/2/2022 00:00:00,"P11-2022"
,"LEE VALLEY WHITE WATER CENTRE","EMPLOYEES","TRAINING EXPENSES","1305","P116520-SERVICE-Jon Lea NVQ",14/2/2022 00:00:00,"259206",83.07,"BA0622","BABCOCK TRAINING LIMITED",31/1/2022 00:00:00,27/2/2022 00:00:00,"P11-2022"
"R&B","NON DISTRIBUTED COSTS","EMPLOYEES","SUPERANNUATION ADDED YEARS","1310","LONDON PENSIONS FUND AUTHORITY",7/2/2022 00:00:00,"258707",5322.66,"LO0031","LONDON PENSIONS FUND AUTHORITY",31/1/2022 00:00:00,27/2/2022 00:00:00,"P11-2022"
,"LEE VALLEY CAMPSITE","EMPLOYEES","CRB CHECKS","1330","DBS CHECKS",8/2/2022 00:00:00,"258948",36,"DD0119","DUE DILIGENCE CHECKING LIMITED",31/1/2022 00:00:00,27/2/2022 00:00:00,"P11-2022"
,"LEE VALLEY CARAVAN PARK","EMPLOYEES","CRB CHECKS","1330","DBS CHECKS",8/2/2022 00:00:00,"258948",36,"DD0119","DUE DILIGENCE CHECKING LIMITED",31/1/2022 00:00:00,27/2/2022 00:00:00,"P11-2022"
,"LEE VALLEY VELOPARK","EMPLOYEES","CRB CHECKS","1330","DBS CHECKS",8/2/2022 00:00:00,"258948",18,"DD0119","DUE DILIGENCE CHECKING LIMITED",31/1/2022 00:00:00,27/2/2022 00:00:00,"P11-2022"
,"LEE VALLEY RIDING CENTRE","EMPLOYEES","CRB CHECKS","1330","DBS CHECKS",8/2/2022 00:00:00,"258948",18,"DD0119","DUE DILIGENCE CHECKING LIMITED",31/1/2022 00:00:00,27/2/2022 00:00:00,"P11-2022"
,"LEE VALLEY RIDING CENTRE","EMPLOYEES","CRB CHECKS","1330","DBS CHECKS",8/2/2022 00:00:00,"258948",40,"DD0119","DUE DILIGENCE CHECKING LIMITED",31/1/2022 00:00:00,27/2/2022 00:00:00,"P11-2022"
,"LEE VALLEY ATHLETICS CENTRE","EMPLOYEES","CRB CHECKS","1330","DBS CHECKS",8/2/2022 00:00:00,"258948",36,"DD0119","DUE DILIGENCE CHECKING LIMITED",31/1/2022 00:00:00,27/2/2022 00:00:00,"P11-2022"
"CEO","PR/COMMUNICATIONS","EMPLOYEES","DRIVING LICENCE CHECKS","1335","H CURTIS DRIVING LICENCE CHECK",22/2/2022 00:00:00,"259359",6.25,"FI0288","FIRST ADVANTAGE EUROPE LTD",31/1/2022 00:00:00,27/2/2022 00:00:00,"P11-2022"
"CEO","PR/COMMUNICATIONS","EMPLOYEES","DRIVING LICENCE CHECKS","1335","S BROMBERG DRIVING LICENCE CHECK",22/2/2022 00:00:00,"259359",6.25,"FI0288","FIRST ADVANTAGE EUROPE LTD",31/1/2022 00:00:00,27/2/2022 00:00:00,"P11-2022"
"P&V","PROJECT & FUNDING DELIVERY","EMPLOYEES","DRIVING LICENCE CHECKS","1335","P ROPER DRIVING LICENCE CHECK",22/2/2022 00:00:00,"259359",6.25,"FI0288","FIRST ADVANTAGE EUROPE LTD",31/1/2022 00:00:00,27/2/2022 00:00:00,"P11-2022"
"R&B","FINANCE","EMPLOYEES","DRIVING LICENCE CHECKS","1335","M STERRY DRIVING LICENCE CHECK",22/2/2022 00:00:00,"259359",6.25,"FI0288","FIRST ADVANTAGE EUROPE LTD",31/1/2022 00:00:00,27/2/2022 00:00:00,"P11-2022"
"P&V","YOUTH AND SCHOOLS","EMPLOYEES","DRIVING LICENCE CHECKS","1335","J CURTIS DRIVING LICENCE CHECK",22/2/2022 00:00:00,"259359",6.25,"FI0288","FIRST ADVANTAGE EUROPE LTD",31/1/2022 00:00:00,27/2/2022 00:00:00,"P11-2022"
"P&V","POLICY & PERFORMANCE (L&E)","EMPLOYEES","DRIVING LICENCE CHECKS","1335","L ROPER DRIVING LICENCE CHECK",22/2/2022 00:00:00,"259359",6.25,"FI0288","FIRST ADVANTAGE EUROPE LTD",31/1/2022 00:00:00,27/2/2022 00:00:00,"P11-2022"
"P&V","POLICY & PERFORMANCE (L&E)","EMPLOYEES","DRIVING LICENCE CHECKS","1335","J PRINGLE DRIVING LICENCE CHECK",22/2/2022 00:00:00,"259359",6.25,"FI0288","FIRST ADVANTAGE EUROPE LTD",31/1/2022 00:00:00,27/2/2022 00:00:00,"P11-2022"
"P&V","EVENTS MANAGEMENT (PR)","EMPLOYEES","DRIVING LICENCE CHECKS","1335","K TAYLOR DRIVING LICENCE CHECK",22/2/2022 00:00:00,"259359",6.25,"FI0288","FIRST ADVANTAGE EUROPE LTD",31/1/2022 00:00:00,27/2/2022 00:00:00,"P11-2022"
,"LEE VALLEY VELOPARK","EMPLOYEES","DRIVING LICENCE CHECKS","1335","S MCARDLE DRIVING LICENCE CHECK",22/2/2022 00:00:00,"259359",6.25,"FI0288","FIRST ADVANTAGE EUROPE LTD",31/1/2022 00:00:00,27/2/2022 00:00:00,"P11-2022"
"P&V","VOLUNTEERS (L&E)","EMPLOYEES","DRIVING LICENCE CHECKS","1335","J WHITEHEAD DRIVING LICENCE CHECK",22/2/2022 00:00:00,"259359",6.25,"FI0288","FIRST ADVANTAGE EUROPE LTD",31/1/2022 00:00:00,27/2/2022 00:00:00,"P11-2022"
"R&B","CORPORATE TRAINING","EMPLOYEES","APPRENTICE LEVY","1390","PAYE",14/2/2022 00:00:00,"259189",2001,"HM0368","HMRC",31/1/2022 00:00:00,27/2/2022 00:00:00,"P11-2022"
"CEO","LVLC SERVICE CHARGE","PREMISES RELATED EXPENDITURE","SCHEDULED GROUND MAINTENANCE","2111","GLENDALE GROUNDS MANAGEMENT LI",8/2/2022 00:00:00,"258983",1483.59,"GL0214","GLENDALE GROUNDS MANAGEMENT LIMITED",31/1/2022 00:00:00,27/2/2022 00:00:00,"P11-2022"
"CEO","LVLC SERVICE CHARGE","PREMISES RELATED EXPENDITURE","SCHEDULED GROUND MAINTENANCE","2111","GLENDALE GROUNDS MANAGEMENT LI",8/2/2022 00:00:00,"258983",54.13,"GL0214","GLENDALE GROUNDS MANAGEMENT LIMITED",31/1/2022 00:00:00,27/2/2022 00:00:00,"P11-2022"
"P&V","MYDDELTON HOUSE","PREMISES RELATED EXPENDITURE","CONTRACT CLEANING","2120","P112094-SERVICE-Myddelton House Cleaning Contract",14/2/2022 00:00:00,"259253",3055.52,"BR0632","BRITANNIA SERVICES GROUP LTD",31/1/2022 00:00:00,27/2/2022 00:00:00,"P11-2022"
,"LEE VALLEY CAMPSITE","PREMISES RELATED EXPENDITURE","CONTRACT CLEANING","2120","P116423-SERVICE-January 22 Site cleaning",9/2/2022 00:00:00,"258979",1092,"LI0305","LIMPIAR CLEANING",31/1/2022 00:00:00,27/2/2022 00:00:00,"P11-2022"
,"LEE VALLEY CARAVAN PARK","PREMISES RELATED EXPENDITURE","CONTRACT CLEANING","2120","P115900-SERVICE-Cleaning materials",14/2/2022 00:00:00,"258931",323.85,"HY0043","HYGIENE SYSTEMS LTD",31/1/2022 00:00:00,27/2/2022 00:00:00,"P11-2022"
,"LEE VALLEY CARAVAN PARK","PREMISES RELATED EXPENDITURE","CONTRACT CLEANING","2120","P116407-SERVICE-Contract cleaning",14/2/2022 00:00:00,"258945",2034.5,"LI0305","LIMPIAR CLEANING",31/1/2022 00:00:00,27/2/2022 00:00:00,"P11-2022"
,"LEE VALLEY CARAVAN PARK","PREMISES RELATED EXPENDITURE","CONTRACT CLEANING","2120","P116793-SERVICE-Washroom hygiene",27/2/2022 00:00:00,"259515",90.39,"IN0012","INITIAL WASHROOM HYGIENE",31/1/2022 00:00:00,27/2/2022 00:00:00,"P11-2022"
"P&V","NORTH AREA RANGERS","PREMISES RELATED EXPENDITURE","CONTRACT CLEANING","2120","GLENDALE GROUNDS MANAGEMENT LI",8/2/2022 00:00:00,"258983",197.98,"GL0214","GLENDALE GROUNDS MANAGEMENT LIMITED",31/1/2022 00:00:00,27/2/2022 00:00:00,"P11-2022"
"P&V","GUNPOWDER PARK","PREMISES RELATED EXPENDITURE","CONTRACT CLEANING","2120","GLENDALE GROUNDS MANAGEMENT LI",8/2/2022 00:00:00,"258983",271.09,"GL0214","GLENDALE GROUNDS MANAGEMENT LIMITED",31/1/2022 00:00:00,27/2/2022 00:00:00,"P11-2022"
"P&V","RIVER LEE COUNTRY PARK","PREMISES RELATED EXPENDITURE","CONTRACT CLEANING","2120","GLENDALE GROUNDS MANAGEMENT LI",8/2/2022 00:00:00,"258983",542.17,"GL0214","GLENDALE GROUNDS MANAGEMENT LIMITED",31/1/2022 00:00:00,27/2/2022 00:00:00,"P11-2022"
,"LEE VALLEY VELOPARK","PREMISES RELATED EXPENDITURE","CONTRACT CLEANING","2120","P116402-SERVICE-Contract Cleaning",9/2/2022 00:00:00,"258899",802.2,"CA0498","CASNA GROUP",31/1/2022 00:00:00,27/2/2022 00:00:00,"P11-2022"
,"LEE VALLEY VELOPARK","PREMISES RELATED EXPENDITURE","CONTRACT CLEANING","2120","P116435-SERVICE-Contract Cleaning",9/2/2022 00:00:00,"258974",1204.35,"CA0498","CASNA GROUP",31/1/2022 00:00:00,27/2/2022 00:00:00,"P11-2022"
,"LV LEISURE CENTRE CAMPSITE","PREMISES RELATED EXPENDITURE","CONTRACT CLEANING","2120","P116538-SERVICE-Site clean toilets cabins etc",24/2/2022 00:00:00,"258980",1020.5,"LI0305","LIMPIAR CLEANING",31/1/2022 00:00:00,27/2/2022 00:00:00,"P11-2022"
,"LEE VALLEY RIDING CENTRE","PREMISES RELATED EXPENDITURE","CLEANING CONTRACT","2121","P114497-SERVICE-centre cleaning september 21",7/2/2022 00:00:00,"258683",1082.01,"MA0015","MAYFAIR CLEANING COMPANY LIMITED",31/1/2022 00:00:00,27/2/2022 00:00:00,"P11-2022"
,"LEE VALLEY WHITE WATER CENTRE","PREMISES RELATED EXPENDITURE","CLEANING CONTRACT","2121","P115322-SERVICE-November to Jan Contract Cleaning",7/2/2022 00:00:00,"258898",618.27,"CA0498","CASNA GROUP",31/1/2022 00:00:00,27/2/2022 00:00:00,"P11-2022"
,"LEE VALLEY WHITE WATER CENTRE","PREMISES RELATED EXPENDITURE","CLEANING CONTRACT","2121","P115322-SERVICE-November to Jan Contract Cleaning",9/2/2022 00:00:00,"258975",810.44,"CA0498","CASNA GROUP",31/1/2022 00:00:00,27/2/2022 00:00:00,"P11-2022"
,"LEE VALLEY WHITE WATER CENTRE","PREMISES RELATED EXPENDITURE","CLEANING CONTRACT","2121","P115322-SERVICE-November to Jan Contract Cleaning",27/2/2022 00:00:00,"259784",710.18,"CA0498","CASNA GROUP",31/1/2022 00:00:00,27/2/2022 00:00:00,"P11-2022"
,"LEE VALLEY MARINA STANSTEAD","PREMISES RELATED EXPENDITURE","GM MAIN CONTRACT SCHEDULED","2141","GLENDALE GROUNDS MANAGEMENT LI",8/2/2022 00:00:00,"258983",189.21,"GL0214","GLENDALE GROUNDS MANAGEMENT LIMITED",31/1/2022 00:00:00,27/2/2022 00:00:00,"P11-2022"
,"LEE VALLEY MARINA STANSTEAD","PREMISES RELATED EXPENDITURE","GM MAIN CONTRACT SCHEDULED","2141","P116637-SERVICE-Annual gas safety check & boiler service",27/2/2022 00:00:00,"259229",74.5,"TA0204","TAYLOR HEATING",31/1/2022 00:00:00,27/2/2022 00:00:00,"P11-2022"
,"LEE VALLEY WATERWORKS CENTRE","PREMISES RELATED EXPENDITURE","GM MAIN CONTRACT SCHEDULED","2141","GLENDALE GROUNDS MANAGEMENT LI",8/2/2022 00:00:00,"258730",35544.61,"GL0214","GLENDALE GROUNDS MANAGEMENT LIMITED",31/1/2022 00:00:00,27/2/2022 00:00:00,"P11-2022"
,"LEE VALLEY WATERWORKS CENTRE","PREMISES RELATED EXPENDITURE","GM MAIN CONTRACT SCHEDULED","2141","GLENDALE GROUNDS MANAGEMENT LI",8/2/2022 00:00:00,"258982",-35544.61,"GL0214","GLENDALE GROUNDS MANAGEMENT LIMITED",31/1/2022 00:00:00,27/2/2022 00:00:00,"P11-2022"
,"LEE VALLEY WATERWORKS CENTRE","PREMISES RELATED EXPENDITURE","GM MAIN CONTRACT SCHEDULED","2141","GLENDALE GROUNDS MANAGEMENT LI",8/2/2022 00:00:00,"258983",130.44,"GL0214","GLENDALE GROUNDS MANAGEMENT LIMITED",31/1/2022 00:00:00,27/2/2022 00:00:00,"P11-2022"
,"LEE VALLEY WATERWORKS CENTRE","PREMISES RELATED EXPENDITURE","GM MAIN CONTRACT SCHEDULED","2141","GLENDALE GROUNDS MANAGEMENT LI",8/2/2022 00:00:00,"258983",250.67,"GL0214","GLENDALE GROUNDS MANAGEMENT LIMITED",31/1/2022 00:00:00,27/2/2022 00:00:00,"P11-2022"
,"LEE VALLEY FARM HAYES HILL","PREMISES RELATED EXPENDITURE","GM MAIN CONTRACT SCHEDULED","2141","GLENDALE GROUNDS MANAGEMENT LI",8/2/2022 00:00:00,"258983",153,"GL0214","GLENDALE GROUNDS MANAGEMENT LIMITED",31/1/2022 00:00:00,27/2/2022 00:00:00,"P11-2022"
"P&V","EAST INDIA DOCK AND BOW CREEK","PREMISES RELATED EXPENDITURE","GM MAIN CONTRACT SCHEDULED","2141","GLENDALE GROUNDS MANAGEMENT LI",8/2/2022 00:00:00,"258983",465.88,"GL0214","GLENDALE GROUNDS MANAGEMENT LIMITED",31/1/2022 00:00:00,27/2/2022 00:00:00,"P11-2022"
"P&V","EAST INDIA DOCK AND BOW CREEK","PREMISES RELATED EXPENDITURE","GM MAIN CONTRACT SCHEDULED","2141","GLENDALE GROUNDS MANAGEMENT LI",8/2/2022 00:00:00,"258983",417.18,"GL0214","GLENDALE GROUNDS MANAGEMENT LIMITED",31/1/2022 00:00:00,27/2/2022 00:00:00,"P11-2022"
"P&V","NORTH AREA RANGERS","PREMISES RELATED EXPENDITURE","GM MAIN CONTRACT SCHEDULED","2141","GLENDALE GROUNDS MANAGEMENT LI",8/2/2022 00:00:00,"258983",2805.49,"GL0214","GLENDALE GROUNDS MANAGEMENT LIMITED",31/1/2022 00:00:00,27/2/2022 00:00:00,"P11-2022"
"P&V","SOUTH AREA RANGERS","PREMISES RELATED EXPENDITURE","GM MAIN CONTRACT SCHEDULED","2141","GLENDALE GROUNDS MANAGEMENT LI",8/2/2022 00:00:00,"258983",3230.07,"GL0214","GLENDALE GROUNDS MANAGEMENT LIMITED",31/1/2022 00:00:00,27/2/2022 00:00:00,"P11-2022"
"P&V","SOUTH AREA RANGERS","PREMISES RELATED EXPENDITURE","GM MAIN CONTRACT SCHEDULED","2141","GLENDALE GROUNDS MANAGEMENT LI",8/2/2022 00:00:00,"258983",372.7,"GL0214","GLENDALE GROUNDS MANAGEMENT LIMITED",31/1/2022 00:00:00,27/2/2022 00:00:00,"P11-2022"
"P&V","ABBEY GARDENS","PREMISES RELATED EXPENDITURE","GM MAIN CONTRACT SCHEDULED","2141","GLENDALE GROUNDS MANAGEMENT LI",8/2/2022 00:00:00,"258983",1421.16,"GL0214","GLENDALE GROUNDS MANAGEMENT LIMITED",31/1/2022 00:00:00,27/2/2022 00:00:00,"P11-2022"
"P&V","GUNPOWDER PARK","PREMISES RELATED EXPENDITURE","GM MAIN CONTRACT SCHEDULED","2141","GLENDALE GROUNDS MANAGEMENT LI",8/2/2022 00:00:00,"258983",1401.51,"GL0214","GLENDALE GROUNDS MANAGEMENT LIMITED",31/1/2022 00:00:00,27/2/2022 00:00:00,"P11-2022"
"P&V","RIVER LEE COUNTRY PARK","PREMISES RELATED EXPENDITURE","GM MAIN CONTRACT SCHEDULED","2141","GLENDALE GROUNDS MANAGEMENT LI",8/2/2022 00:00:00,"258983",8179.78,"GL0214","GLENDALE GROUNDS MANAGEMENT LIMITED",31/1/2022 00:00:00,27/2/2022 00:00:00,"P11-2022"
"P&V","RIVER LEE COUNTRY PARK","PREMISES RELATED EXPENDITURE","GM MAIN CONTRACT SCHEDULED","2141","GLENDALE GROUNDS MANAGEMENT LI",8/2/2022 00:00:00,"258983",1304.46,"GL0214","GLENDALE GROUNDS MANAGEMENT LIMITED",31/1/2022 00:00:00,27/2/2022 00:00:00,"P11-2022"
,"LEE VALLEY VELOPARK","PREMISES RELATED EXPENDITURE","GM MAIN CONTRACT SCHEDULED","2141","GLENDALE GROUNDS MANAGEMENT LI",8/2/2022 00:00:00,"258983",3540.63,"GL0214","GLENDALE GROUNDS MANAGEMENT LIMITED",31/1/2022 00:00:00,27/2/2022 00:00:00,"P11-2022"
,"LV HOCKEY AND TENNIS CENTRE","PREMISES RELATED EXPENDITURE","GM MAIN CONTRACT SCHEDULED","2141","GLENDALE GROUNDS MANAGEMENT LI",8/2/2022 00:00:00,"258983",2229.6,"GL0214","GLENDALE GROUNDS MANAGEMENT LIMITED",31/1/2022 00:00:00,27/2/2022 00:00:00,"P11-2022"
"P&V","THREE MILLS","PREMISES RELATED EXPENDITURE","GM MAIN CONTRACT SCHEDULED","2141","GLENDALE GROUNDS MANAGEMENT LI",8/2/2022 00:00:00,"258983",797,"GL0214","GLENDALE GROUNDS MANAGEMENT LIMITED",31/1/2022 00:00:00,27/2/2022 00:00:00,"P11-2022"
,"LEE VALLEY RIDING CENTRE","PREMISES RELATED EXPENDITURE","GM MAIN CONTRACT SCHEDULED","2141","GLENDALE GROUNDS MANAGEMENT LI",8/2/2022 00:00:00,"258983",231.08,"GL0214","GLENDALE GROUNDS MANAGEMENT LIMITED",31/1/2022 00:00:00,27/2/2022 00:00:00,"P11-2022"
,"LEE VALLEY ICE CENTRE","PREMISES RELATED EXPENDITURE","GM MAIN CONTRACT SCHEDULED","2141","GLENDALE GROUNDS MANAGEMENT LI",8/2/2022 00:00:00,"258983",164.91,"GL0214","GLENDALE GROUNDS MANAGEMENT LIMITED",31/1/2022 00:00:00,27/2/2022 00:00:00,"P11-2022"
"P&V","FORMER LV LIDO SITE","PREMISES RELATED EXPENDITURE","GM MAIN CONTRACT SCHEDULED","2141","GLENDALE GROUNDS MANAGEMENT LI",8/2/2022 00:00:00,"258983",545.95,"GL0214","GLENDALE GROUNDS MANAGEMENT LIMITED",31/1/2022 00:00:00,27/2/2022 00:00:00,"P11-2022"
,"LEE VALLEY ATHLETICS CENTRE","PREMISES RELATED EXPENDITURE","GM MAIN CONTRACT SCHEDULED","2141","GLENDALE GROUNDS MANAGEMENT LI",8/2/2022 00:00:00,"258983",327.6,"GL0214","GLENDALE GROUNDS MANAGEMENT LIMITED",31/1/2022 00:00:00,27/2/2022 00:00:00,"P11-2022"
,"LEE VALLEY WHITE WATER CENTRE","PREMISES RELATED EXPENDITURE","GM MAIN CONTRACT SCHEDULED","2141","GLENDALE GROUNDS MANAGEMENT LI",8/2/2022 00:00:00,"258983",1406.46,"GL0214","GLENDALE GROUNDS MANAGEMENT LIMITED",31/1/2022 00:00:00,27/2/2022 00:00:00,"P11-2022"
"P&V","NORTH AREA RANGERS","PREMISES RELATED EXPENDITURE","GM MAIN CONTRACT UNSCHEDULED","2142","GLENDALE GROUNDS MANAGEMENT LI",8/2/2022 00:00:00,"258983",365.12,"GL0214","GLENDALE GROUNDS MANAGEMENT LIMITED",31/1/2022 00:00:00,27/2/2022 00:00:00,"P11-2022"
"P&V","SOUTH AREA RANGERS","PREMISES RELATED EXPENDITURE","GM MAIN CONTRACT UNSCHEDULED","2142","GLENDALE GROUNDS MANAGEMENT LI",8/2/2022 00:00:00,"258983",486.82,"GL0214","GLENDALE GROUNDS MANAGEMENT LIMITED",31/1/2022 00:00:00,27/2/2022 00:00:00,"P11-2022"
,"LEE VALLEY WATERWORKS CENTRE","PREMISES RELATED EXPENDITURE","GM HORTICULTURE SCHEDULED","2143","GLENDALE GROUNDS MANAGEMENT LI",8/2/2022 00:00:00,"258983",83.42,"GL0214","GLENDALE GROUNDS MANAGEMENT LIMITED",31/1/2022 00:00:00,27/2/2022 00:00:00,"P11-2022"
"P&V","NORTH AREA RANGERS","PREMISES RELATED EXPENDITURE","GM HORTICULTURE SCHEDULED","2143","GLENDALE GROUNDS MANAGEMENT LI",8/2/2022 00:00:00,"258983",124.03,"GL0214","GLENDALE GROUNDS MANAGEMENT LIMITED",31/1/2022 00:00:00,27/2/2022 00:00:00,"P11-2022"
"P&V","SOUTH AREA RANGERS","PREMISES RELATED EXPENDITURE","GM HORTICULTURE SCHEDULED","2143","GLENDALE GROUNDS MANAGEMENT LI",8/2/2022 00:00:00,"258983",71.11,"GL0214","GLENDALE GROUNDS MANAGEMENT LIMITED",31/1/2022 00:00:00,27/2/2022 00:00:00,"P11-2022"
"P&V","ABBEY GARDENS","PREMISES RELATED EXPENDITURE","GM HORTICULTURE SCHEDULED","2143","GLENDALE GROUNDS MANAGEMENT LI",8/2/2022 00:00:00,"258983",969.08,"GL0214","GLENDALE GROUNDS MANAGEMENT LIMITED",31/1/2022 00:00:00,27/2/2022 00:00:00,"P11-2022"
"P&V","GUNPOWDER PARK","PREMISES RELATED EXPENDITURE","GM HORTICULTURE SCHEDULED","2143","GLENDALE GROUNDS MANAGEMENT LI",8/2/2022 00:00:00,"258983",127.21,"GL0214","GLENDALE GROUNDS MANAGEMENT LIMITED",31/1/2022 00:00:00,27/2/2022 00:00:00,"P11-2022"
"P&V","RIVER LEE COUNTRY PARK","PREMISES RELATED EXPENDITURE","GM HORTICULTURE SCHEDULED","2143","GLENDALE GROUNDS MANAGEMENT LI",8/2/2022 00:00:00,"258983",66.01,"GL0214","GLENDALE GROUNDS MANAGEMENT LIMITED",31/1/2022 00:00:00,27/2/2022 00:00:00,"P11-2022"
,"LEE VALLEY VELOPARK","PREMISES RELATED EXPENDITURE","GM HORTICULTURE SCHEDULED","2143","GLENDALE GROUNDS MANAGEMENT LI",8/2/2022 00:00:00,"258983",550,"GL0214","GLENDALE GROUNDS MANAGEMENT LIMITED",31/1/2022 00:00:00,27/2/2022 00:00:00,"P11-2022"
,"LV HOCKEY AND TENNIS CENTRE","PREMISES RELATED EXPENDITURE","GM HORTICULTURE SCHEDULED","2143","GLENDALE GROUNDS MANAGEMENT LI",8/2/2022 00:00:00,"258983",695.85,"GL0214","GLENDALE GROUNDS MANAGEMENT LIMITED",31/1/2022 00:00:00,27/2/2022 00:00:00,"P11-2022"
"P&V","THREE MILLS","PREMISES RELATED EXPENDITURE","GM HORTICULTURE SCHEDULED","2143","GLENDALE GROUNDS MANAGEMENT LI",8/2/2022 00:00:00,"258983",26.45,"GL0214","GLENDALE GROUNDS MANAGEMENT LIMITED",31/1/2022 00:00:00,27/2/2022 00:00:00,"P11-2022"
,"LEE VALLEY RIDING CENTRE","PREMISES RELATED EXPENDITURE","GM HORTICULTURE SCHEDULED","2143","GLENDALE GROUNDS MANAGEMENT LI",8/2/2022 00:00:00,"258983",6.61,"GL0214","GLENDALE GROUNDS MANAGEMENT LIMITED",31/1/2022 00:00:00,27/2/2022 00:00:00,"P11-2022"
"P&V","FORMER LV LIDO SITE","PREMISES RELATED EXPENDITURE","GM HORTICULTURE SCHEDULED","2143","GLENDALE GROUNDS MANAGEMENT LI",8/2/2022 00:00:00,"258983",6.31,"GL0214","GLENDALE GROUNDS MANAGEMENT LIMITED",31/1/2022 00:00:00,27/2/2022 00:00:00,"P11-2022"
,"LEE VALLEY WHITE WATER CENTRE","PREMISES RELATED EXPENDITURE","GM HORTICULTURE SCHEDULED","2143","GLENDALE GROUNDS MANAGEMENT LI",8/2/2022 00:00:00,"258983",3.79,"GL0214","GLENDALE GROUNDS MANAGEMENT LIMITED",31/1/2022 00:00:00,27/2/2022 00:00:00,"P11-2022"
"P&V","NORTH AREA RANGERS","PREMISES RELATED EXPENDITURE","GM ARBORICULTURE UNSCHEDULED","2146","P116237-SERVICE-Additional Tree Works - White Water Centre Fr",14/2/2022 00:00:00,"259032",170,"VE0004","PRINCIPAL TREES LTD",31/1/2022 00:00:00,27/2/2022 00:00:00,"P11-2022"
"P&V","NORTH AREA RANGERS","PREMISES RELATED EXPENDITURE","GM ARBORICULTURE UNSCHEDULED","2146","P116727-SERVICE-Emergency Tree Works Stanstead Innings",27/2/2022 00:00:00,"259910",220,"VE0004","PRINCIPAL TREES LTD",31/1/2022 00:00:00,27/2/2022 00:00:00,"P11-2022"
"P&V","RIVER LEE COUNTRY PARK","PREMISES RELATED EXPENDITURE","GM ARBORICULTURE UNSCHEDULED","2146","P115818-SERVICE-Tree Works - Waltham Marsh",14/2/2022 00:00:00,"258508",1595,"MU0030","P J MUSK TREES",31/1/2022 00:00:00,27/2/2022 00:00:00,"P11-2022"
"P&V","RIVER LEE COUNTRY PARK","PREMISES RELATED EXPENDITURE","GM ARBORICULTURE UNSCHEDULED","2146","P115816-SERVICE-Tree Works - Cheshunt Country Walk",7/2/2022 00:00:00,"258659",795,"MU0030","P J MUSK TREES",31/1/2022 00:00:00,27/2/2022 00:00:00,"P11-2022"
"P&V","RIVER LEE COUNTRY PARK","PREMISES RELATED EXPENDITURE","GM ARBORICULTURE UNSCHEDULED","2146","P116234-SERVICE-Tree Works - Fisher Green Car Park",7/2/2022 00:00:00,"258961",880,"MU0030","P J MUSK TREES",31/1/2022 00:00:00,27/2/2022 00:00:00,"P11-2022"
"P&V","RIVER LEE COUNTRY PARK","PREMISES RELATED EXPENDITURE","GM ARBORICULTURE UNSCHEDULED","2146","P116233-SERVICE-Tree Works at River Lee",7/2/2022 00:00:00,"258962",900,"MU0030","P J MUSK TREES",31/1/2022 00:00:00,27/2/2022 00:00:00,"P11-2022"
"P&V","RIVER LEE COUNTRY PARK","PREMISES RELATED EXPENDITURE","GM ARBORICULTURE UNSCHEDULED","2146","P115650-SERVICE-Tree Inspection Poplars - White Water Centre",14/2/2022 00:00:00,"259033",460,"VE0004","PRINCIPAL TREES LTD",31/1/2022 00:00:00,27/2/2022 00:00:00,"P11-2022"
"P&V","RIVER LEE COUNTRY PARK","PREMISES RELATED EXPENDITURE","GM ARBORICULTURE UNSCHEDULED","2146","P116838-SERVICE-Storm Damage Tree Works at Fishers Green",27/2/2022 00:00:00,"259924",150,"MU0030","P J MUSK TREES",31/1/2022 00:00:00,27/2/2022 00:00:00,"P11-2022"
"P&V","RIVER LEE COUNTRY PARK","PREMISES RELATED EXPENDITURE","GM ARBORICULTURE UNSCHEDULED","2146","P116274-SERVICE-Tree Works - Broxbourne Riverside",27/2/2022 00:00:00,"259925",796,"MU0030","P J MUSK TREES",31/1/2022 00:00:00,27/2/2022 00:00:00,"P11-2022"
"P&V","RIVER LEE COUNTRY PARK","PREMISES RELATED EXPENDITURE","GM ARBORICULTURE UNSCHEDULED","2146","P116274-SERVICE-Tree Works - Old Mill & Meadows Car Park",27/2/2022 00:00:00,"259925",780,"MU0030","P J MUSK TREES",31/1/2022 00:00:00,27/2/2022 00:00:00,"P11-2022"
"P&V","RIVER LEE COUNTRY PARK","PREMISES RELATED EXPENDITURE","GM ARBORICULTURE UNSCHEDULED","2146","P116274-SERVICE-Tree Works - Old Mill & Meadows",27/2/2022 00:00:00,"259925",700,"MU0030","P J MUSK TREES",31/1/2022 00:00:00,27/2/2022 00:00:00,"P11-2022"
"P&V","FORMER LV LIDO SITE","PREMISES RELATED EXPENDITURE","GM ARBORICULTURE UNSCHEDULED","2146","P116275-SERVICE-Tree works - Broxbourne Riverside",24/2/2022 00:00:00,"259576",1590,"MU0030","P J MUSK TREES",31/1/2022 00:00:00,27/2/2022 00:00:00,"P11-2022"
"P&V","NORTH AREA RANGERS","PREMISES RELATED EXPENDITURE","GM NON MAIN CONT UNSCHEDULED","2147","P116226-SERVICE-Oil Poluution Clean Up at Old Mill & Meadows",7/2/2022 00:00:00,"258503",4500,"BU0090","BUSH WHEELER SERVICES LTD",31/1/2022 00:00:00,27/2/2022 00:00:00,"P11-2022"
"P&V","SOUTH AREA RANGERS","PREMISES RELATED EXPENDITURE","GM NON MAIN CONT UNSCHEDULED","2147","P115314-SERVICE-Footpath Gravel to Hockey & Tennis Centre",24/2/2022 00:00:00,"257584",554.43,"GL0214","GLENDALE GROUNDS MANAGEMENT LIMITED",31/1/2022 00:00:00,27/2/2022 00:00:00,"P11-2022"
"P&V","SOUTH AREA RANGERS","PREMISES RELATED EXPENDITURE","GM NON MAIN CONT UNSCHEDULED","2147","P115313-SERVICE-Footpath Gravel to Velo Park",24/2/2022 00:00:00,"257585",554.43,"GL0214","GLENDALE GROUNDS MANAGEMENT LIMITED",31/1/2022 00:00:00,27/2/2022 00:00:00,"P11-2022"
"P&V","SOUTH AREA RANGERS","PREMISES RELATED EXPENDITURE","GM NON MAIN CONT UNSCHEDULED","2147","P115966-SERVICE-Apply Symbols to Brideg at WaterWorks",7/2/2022 00:00:00,"258708",350,"LI0251","LINEWAYS LTD",31/1/2022 00:00:00,27/2/2022 00:00:00,"P11-2022"
"P&V","RIVER LEE COUNTRY PARK","PREMISES RELATED EXPENDITURE","GM NON MAIN CONT UNSCHEDULED","2147","P116315-SERVICE-Delivery Rubber Mats",7/2/2022 00:00:00,"258751",20,"EX0408","EXPRESS MATTING SERVICES LIMITED",31/1/2022 00:00:00,27/2/2022 00:00:00,"P11-2022"
"P&V","RIVER LEE COUNTRY PARK","PREMISES RELATED EXPENDITURE","GM NON MAIN CONT UNSCHEDULED","2147","P116315-SERVICE-12x Rubber Grass Mats with Pegs and Ties",7/2/2022 00:00:00,"258751",303.96,"EX0408","EXPRESS MATTING SERVICES LIMITED",31/1/2022 00:00:00,27/2/2022 00:00:00,"P11-2022"
"P&V","SOUTH AREA RANGERS","PREMISES RELATED EXPENDITURE","HABITAT MANAGEMENT WORKS","2149","P115722-SERVICE-Tree Works - WaterWorks",7/2/2022 00:00:00,"258705",450,"PA0222","PARKIN & PARKER TREE SPECIALISTS",31/1/2022 00:00:00,27/2/2022 00:00:00,"P11-2022"
"P&V","SOUTH AREA RANGERS","PREMISES RELATED EXPENDITURE","HABITAT MANAGEMENT WORKS","2149","P115724-SERVICE-Tree Works - Middlesex Filter Beds",7/2/2022 00:00:00,"258772",350,"PA0222","PARKIN & PARKER TREE SPECIALISTS",31/1/2022 00:00:00,27/2/2022 00:00:00,"P11-2022"
"P&V","SOUTH AREA RANGERS","PREMISES RELATED EXPENDITURE","HABITAT MANAGEMENT WORKS","2149","P115724-SERVICE-Tree Works - Middlesex Filter Beds",7/2/2022 00:00:00,"258772",350,"PA0222","PARKIN & PARKER TREE SPECIALISTS",31/1/2022 00:00:00,27/2/2022 00:00:00,"P11-2022"
"P&V","SOUTH AREA RANGERS","PREMISES RELATED EXPENDITURE","HABITAT MANAGEMENT WORKS","2149","P115724-SERVICE-Tree Works - Middlesex Filter Beds",7/2/2022 00:00:00,"258772",250,"PA0222","PARKIN & PARKER TREE SPECIALISTS",31/1/2022 00:00:00,27/2/2022 00:00:00,"P11-2022"
"P&V","SOUTH AREA RANGERS","PREMISES RELATED EXPENDITURE","HABITAT MANAGEMENT WORKS","2149","P115181-SERVICE-Bramble Clearance at Wathamstow Marsh",7/2/2022 00:00:00,"258937",520,"MA0002","GTM RURAL  ENTERPRISES LIMITED",31/1/2022 00:00:00,27/2/2022 00:00:00,"P11-2022"
"P&V","SOUTH AREA RANGERS","PREMISES RELATED EXPENDITURE","HABITAT MANAGEMENT WORKS","2149","P116242-SERVICE-Tree Works - Tottenham Marshes",23/2/2022 00:00:00,"259022",895,"PA0222","PARKIN & PARKER TREE SPECIALISTS",31/1/2022 00:00:00,27/2/2022 00:00:00,"P11-2022"
"P&V","SOUTH AREA RANGERS","PREMISES RELATED EXPENDITURE","HABITAT MANAGEMENT WORKS","2149","P116243-SERVICE-Tree Works - Millmead Road",24/2/2022 00:00:00,"259575",895,"PA0222","PARKIN & PARKER TREE SPECIALISTS",31/1/2022 00:00:00,27/2/2022 00:00:00,"P11-2022"
"P&V","GUNPOWDER PARK","PREMISES RELATED EXPENDITURE","HABITAT MANAGEMENT WORKS","2149","P115658-SERVICE-Tree Works - Swan &Pike Pool",7/2/2022 00:00:00,"257907",150,"PA0222","PARKIN & PARKER TREE SPECIALISTS",31/1/2022 00:00:00,27/2/2022 00:00:00,"P11-2022"
"P&V","GUNPOWDER PARK","PREMISES RELATED EXPENDITURE","HABITAT MANAGEMENT WORKS","2149","P115658-SERVICE-Tree Works - Swan &Pike Pool",7/2/2022 00:00:00,"257907",95,"PA0222","PARKIN & PARKER TREE SPECIALISTS",31/1/2022 00:00:00,27/2/2022 00:00:00,"P11-2022"
"P&V","GUNPOWDER PARK","PREMISES RELATED EXPENDITURE","HABITAT MANAGEMENT WORKS","2149","P115658-SERVICE-Tree Works - Swan &Pike Pool",7/2/2022 00:00:00,"257907",300,"PA0222","PARKIN & PARKER TREE SPECIALISTS",31/1/2022 00:00:00,27/2/2022 00:00:00,"P11-2022"
"P&V","THREE MILLS","PREMISES RELATED EXPENDITURE","HABITAT MANAGEMENT WORKS","2149","P115937-SERVICE-Tree Works at Three Mills",14/2/2022 00:00:00,"259265",850,"PA0222","PARKIN & PARKER TREE SPECIALISTS",31/1/2022 00:00:00,27/2/2022 00:00:00,"P11-2022"
,"LEE VALLEY RIDING CENTRE","PREMISES RELATED EXPENDITURE","CESSPOOL EMPTYING","2210","P111895-SERVICE-quarterly visits plus tanker",27/2/2022 00:00:00,"259814",225,"HY0042","HYDRO DRAINS LTD",31/1/2022 00:00:00,27/2/2022 00:00:00,"P11-2022"
,"LEE VALLEY MARINA SPRINGFIELD","PREMISES RELATED EXPENDITURE","GENERAL WASTE","2211","P116429-SERVICE-Jan,Feb,March 2022 General waste & Recyling",7/2/2022 00:00:00,"258927",1126.4,"CL0037","VEOLIA ES (UK) LTD",31/1/2022 00:00:00,27/2/2022 00:00:00,"P11-2022"
,"LEE VALLEY MARINA STANSTEAD","PREMISES RELATED EXPENDITURE","GENERAL WASTE","2211","P112012-SERVICE-Annual waste removal RH &SA moorings",7/2/2022 00:00:00,"258870",672.5,"CL0037","VEOLIA ES (UK) LTD",31/1/2022 00:00:00,27/2/2022 00:00:00,"P11-2022"
,"LEE VALLEY MARINA STANSTEAD","PREMISES RELATED EXPENDITURE","GENERAL WASTE","2211","P112012-SERVICE-Annual waste removal RH &SA moorings",7/2/2022 00:00:00,"258871",204.6,"CL0037","VEOLIA ES (UK) LTD",31/1/2022 00:00:00,27/2/2022 00:00:00,"P11-2022"
,"LEE VALLEY MARINA STANSTEAD","PREMISES RELATED EXPENDITURE","GENERAL WASTE","2211","P112012-SERVICE-Annual waste removal RH &SA moorings",7/2/2022 00:00:00,"258872",13.47,"CL0037","VEOLIA ES (UK) LTD",31/1/2022 00:00:00,27/2/2022 00:00:00,"P11-2022"
,"LEE VALLEY CARAVAN PARK","PREMISES RELATED EXPENDITURE","GENERAL WASTE","2211","P116525-SERVICE-Rubbish collections",14/2/2022 00:00:00,"258873",131.97,"CL0037","VEOLIA ES (UK) LTD",31/1/2022 00:00:00,27/2/2022 00:00:00,"P11-2022"
"P&V","SOUTH AREA RANGERS","PREMISES RELATED EXPENDITURE","GENERAL WASTE","2211","P116358-SERVICE-Skip at WaterWorks Centre",7/2/2022 00:00:00,"258752",280,"GB0239","GBN SERVICES LTD",31/1/2022 00:00:00,27/2/2022 00:00:00,"P11-2022"
"P&V","SOUTH AREA RANGERS","PREMISES RELATED EXPENDITURE","GENERAL WASTE","2211","P116358-SERVICE-Skip at WaterWorks Centre",22/2/2022 00:00:00,"259502",280,"GB0239","GBN SERVICES LTD",31/1/2022 00:00:00,27/2/2022 00:00:00,"P11-2022"
"P&V","RIVER LEE COUNTRY PARK","PREMISES RELATED EXPENDITURE","GENERAL WASTE","2211","P115803-SERVICE-12yd General Rubbish Skip at Holyfield Hall F",7/2/2022 00:00:00,"258699",280,"GB0239","GBN SERVICES LTD",31/1/2022 00:00:00,27/2/2022 00:00:00,"P11-2022"
"P&V","RIVER LEE COUNTRY PARK","PREMISES RELATED EXPENDITURE","GENERAL WASTE","2211","P116108-SERVICE-6x 746625 - Black Refuse Bags",7/2/2022 00:00:00,"258901",147.9,"GR0020","GREENHAM TRADING LIMITED",31/1/2022 00:00:00,27/2/2022 00:00:00,"P11-2022"
"P&V","RIVER LEE COUNTRY PARK","PREMISES RELATED EXPENDITURE","GENERAL WASTE","2211","P116356-SERVICE-12yd General Rubbish Skip at Holyfield Hall F",24/2/2022 00:00:00,"259542",280,"GB0239","GBN SERVICES LTD",31/1/2022 00:00:00,27/2/2022 00:00:00,"P11-2022"
,"LEE VALLEY VELOPARK","PREMISES RELATED EXPENDITURE","GENERAL WASTE","2211","P116392-SERVICE-Sanitary Waste and Products",14/2/2022 00:00:00,"258691",285.27,"PE0015","PHS GROUP PLC",31/1/2022 00:00:00,27/2/2022 00:00:00,"P11-2022"
,"LEE VALLEY VELOPARK","PREMISES RELATED EXPENDITURE","GENERAL WASTE","2211","P116427-SERVICE-Waste Collection",9/2/2022 00:00:00,"258933",658.83,"CL0037","VEOLIA ES (UK) LTD",31/1/2022 00:00:00,27/2/2022 00:00:00,"P11-2022"
,"LV HOCKEY AND TENNIS CENTRE","PREMISES RELATED EXPENDITURE","GENERAL WASTE","2211","P113890-SERVICE-waste removal and duty of care",8/2/2022 00:00:00,"258932",368.27,"CL0037","VEOLIA ES (UK) LTD",31/1/2022 00:00:00,27/2/2022 00:00:00,"P11-2022"
,"LEE VALLEY RIDING CENTRE","PREMISES RELATED EXPENDITURE","GENERAL WASTE","2211","P112045-SERVICE-Recycling waste & compactor",8/2/2022 00:00:00,"258970",1357.51,"BY0049","BYWATERS (LEYTON) LTD",31/1/2022 00:00:00,27/2/2022 00:00:00,"P11-2022"
,"LV LEISURE CENTRE CAMPSITE","PREMISES RELATED EXPENDITURE","GENERAL WASTE","2211","P116386-SERVICE-Skip collection and exchange",8/2/2022 00:00:00,"258874",588.77,"CL0037","VEOLIA ES (UK) LTD",31/1/2022 00:00:00,27/2/2022 00:00:00,"P11-2022"
,"LV LEISURE CENTRE CAMPSITE","PREMISES RELATED EXPENDITURE","GENERAL WASTE","2211","P116536-SERVICE-Recycling empty",24/2/2022 00:00:00,"258976",188.08,"BY0049","BYWATERS (LEYTON) LTD",31/1/2022 00:00:00,27/2/2022 00:00:00,"P11-2022"
,"LEE VALLEY WHITE WATER CENTRE","PREMISES RELATED EXPENDITURE","GENERAL WASTE","2211","P114687-SERVICE-Oct to Mar Refuse collection",9/2/2022 00:00:00,"258977",1628.61,"BY0049","BYWATERS (LEYTON) LTD",31/1/2022 00:00:00,27/2/2022 00:00:00,"P11-2022"
"P&V","MYDDELTON HOUSE","PREMISES RELATED EXPENDITURE","RECYCLING","2214","P113574-SERVICE-Recycling",8/2/2022 00:00:00,"257847",94.72,"CA0341","F & R CAWLEY LTD",31/1/2022 00:00:00,27/2/2022 00:00:00,"P11-2022"
"P&V","MYDDELTON HOUSE","PREMISES RELATED EXPENDITURE","RECYCLING","2214","P113574-SERVICE-Recycling",8/2/2022 00:00:00,"258757",98.28,"CA0341","F & R CAWLEY LTD",31/1/2022 00:00:00,27/2/2022 00:00:00,"P11-2022"
"P&V","MYDDELTON HOUSE","PREMISES RELATED EXPENDITURE","RECYCLING","2214","P113574-SERVICE-Recycling",8/2/2022 00:00:00,"258963",96.72,"CA0341","F & R CAWLEY LTD",31/1/2022 00:00:00,27/2/2022 00:00:00,"P11-2022"
"P&V","MYDDELTON HOUSE","PREMISES RELATED EXPENDITURE","BUILDING SERVICE AGREEMENTS","2220","P114366-SERVICE-Sanitary Services",9/2/2022 00:00:00,"258608",166.18,"PE0015","PHS GROUP PLC",31/1/2022 00:00:00,27/2/2022 00:00:00,"P11-2022"
"P&V","MYDDELTON HOUSE","PREMISES RELATED EXPENDITURE","BUILDING SERVICE AGREEMENTS","2220","P116505-SERVICE-fire system repaid",9/2/2022 00:00:00,"258727",176.78,"AD0015","ADT FIRE & SECURITY PLC",31/1/2022 00:00:00,27/2/2022 00:00:00,"P11-2022"
,"LEE VALLEY MARINA STANSTEAD","PREMISES RELATED EXPENDITURE","BUILDING SERVICE AGREEMENTS","2220","P116566-SERVICE-ceiling heaters service, cherry picker hire.",27/2/2022 00:00:00,"259313",1573,"IN0203","THE INDEPENDENT HEATING COMPANY LTD",31/1/2022 00:00:00,27/2/2022 00:00:00,"P11-2022"
,"LEE VALLEY CAMPSITE","PREMISES RELATED EXPENDITURE","BUILDING SERVICE AGREEMENTS","2220","P116658-SERVICE-Annual Chlorination Checks",27/2/2022 00:00:00,"259601",1320,"SO0400","SOUTHERN GREEN SERVICES LIMITED",31/1/2022 00:00:00,27/2/2022 00:00:00,"P11-2022"
,"LEE VALLEY CAMPSITE","PREMISES RELATED EXPENDITURE","BUILDING SERVICE AGREEMENTS","2220","P116659-SERVICE-New Hot water pump B Block",27/2/2022 00:00:00,"259602",530,"SO0400","SOUTHERN GREEN SERVICES LIMITED",31/1/2022 00:00:00,27/2/2022 00:00:00,"P11-2022"
"P&V","RYE HOUSE GATEHOUSE","PREMISES RELATED EXPENDITURE","BUILDING SERVICE AGREEMENTS","2220","P116657-SERVICE-Electrical Testing - RHGH",23/2/2022 00:00:00,"258741",480,"BR0018","BRADSHAW ELECTRICAL LIMITED",31/1/2022 00:00:00,27/2/2022 00:00:00,"P11-2022"
"P&V","GUNPOWDER PARK","PREMISES RELATED EXPENDITURE","BUILDING SERVICE AGREEMENTS","2220","P116312-SERVICE-Building Servcie Agreement - Gunpowder Park",7/2/2022 00:00:00,"258711",145.96,"CO0199","ENGIE FM LIMITED",31/1/2022 00:00:00,27/2/2022 00:00:00,"P11-2022"
"P&V","GUNPOWDER PARK","PREMISES RELATED EXPENDITURE","BUILDING SERVICE AGREEMENTS","2220","P116312-SERVICE-Building Servcie Agreement - Gunpowder Park",7/2/2022 00:00:00,"258712",145.96,"CO0199","ENGIE FM LIMITED",31/1/2022 00:00:00,27/2/2022 00:00:00,"P11-2022"
"P&V","GUNPOWDER PARK","PREMISES RELATED EXPENDITURE","BUILDING SERVICE AGREEMENTS","2220","P116312-SERVICE-Building Servcie Agreement - Gunpowder Park",7/2/2022 00:00:00,"258713",145.96,"CO0199","ENGIE FM LIMITED",31/1/2022 00:00:00,27/2/2022 00:00:00,"P11-2022"
"P&V","GUNPOWDER PARK","PREMISES RELATED EXPENDITURE","BUILDING SERVICE AGREEMENTS","2220","P116312-SERVICE-Building Servcie Agreement - Gunpowder Park",7/2/2022 00:00:00,"258714",145.96,"CO0199","ENGIE FM LIMITED",31/1/2022 00:00:00,27/2/2022 00:00:00,"P11-2022"
"P&V","GUNPOWDER PARK","PREMISES RELATED EXPENDITURE","BUILDING SERVICE AGREEMENTS","2220","P116312-SERVICE-Building Servcie Agreement - Gunpowder Park",7/2/2022 00:00:00,"258715",145.96,"CO0199","ENGIE FM LIMITED",31/1/2022 00:00:00,27/2/2022 00:00:00,"P11-2022"
"P&V","GUNPOWDER PARK","PREMISES RELATED EXPENDITURE","BUILDING SERVICE AGREEMENTS","2220","P111200-SERVICE-Sanitary Disposal - Gunpowder Park - Public T",14/2/2022 00:00:00,"259069",14.3,"PE0015","PHS GROUP PLC",31/1/2022 00:00:00,27/2/2022 00:00:00,"P11-2022"
"P&V","RIVER LEE COUNTRY PARK","PREMISES RELATED EXPENDITURE","BUILDING SERVICE AGREEMENTS","2220","P111202-SERVICE-Sanitary Disposal - Fishers Green Toilets",14/2/2022 00:00:00,"259068",11.37,"PE0015","PHS GROUP PLC",31/1/2022 00:00:00,27/2/2022 00:00:00,"P11-2022"
,"LEE VALLEY VELOPARK","PREMISES RELATED EXPENDITURE","BUILDING SERVICE AGREEMENTS","2220","P111429-SERVICE-BMS Contract VP",27/2/2022 00:00:00,"259630",590,"IN0197","INTEGRATED BUILDING MANAGEMENT SYSTEMS LTD",31/1/2022 00:00:00,27/2/2022 00:00:00,"P11-2022"
,"LV HOCKEY AND TENNIS CENTRE","PREMISES RELATED EXPENDITURE","BUILDING SERVICE AGREEMENTS","2220","P116354-SERVICE-stock taking Jan 2022",7/2/2022 00:00:00,"258750",141,"VE0038","VENNERS LTD",31/1/2022 00:00:00,27/2/2022 00:00:00,"P11-2022"
,"LEE VALLEY RIDING CENTRE","PREMISES RELATED EXPENDITURE","BUILDING SERVICE AGREEMENTS","2220","P116353-SERVICE-stock taking Jan 22",7/2/2022 00:00:00,"258747",141,"VE0038","VENNERS LTD",31/1/2022 00:00:00,27/2/2022 00:00:00,"P11-2022"
,"LV LEISURE CENTRE GOLF COURSE","PREMISES RELATED EXPENDITURE","BUILDING SERVICE AGREEMENTS","2220","P116747-SERVICE-PHS Services",27/2/2022 00:00:00,"259024",142.29,"PE0015","PHS GROUP PLC",31/1/2022 00:00:00,27/2/2022 00:00:00,"P11-2022"
,"LEE VALLEY CARAVAN PARK","PREMISES RELATED EXPENDITURE","ENGINEERING SERVICE AGREEMENTS","2221","P116602-SERVICE-Chlorination & de-scale of facilities blocks",24/2/2022 00:00:00,"259505",1710,"SO0400","SOUTHERN GREEN SERVICES LIMITED",31/1/2022 00:00:00,27/2/2022 00:00:00,"P11-2022"
"CEO","RESIDENTIAL ACCOMMODATION","PREMISES RELATED EXPENDITURE","BUILDING REPAIRS & MAINTENANCE","2222","P116224-SERVICE-Replacement Woodburner at Aquaside",16/2/2022 00:00:00,"258486",1275.83,"ES0397","ESSEX STOVES AND CHIMNEYS",31/1/2022 00:00:00,27/2/2022 00:00:00,"P11-2022"
"CEO","RESIDENTIAL ACCOMMODATION","PREMISES RELATED EXPENDITURE","BUILDING REPAIRS & MAINTENANCE","2222","P113155-SERVICE-Repairs & Maintenance",7/2/2022 00:00:00,"258505",300,"CA0165","CASTLES",31/1/2022 00:00:00,27/2/2022 00:00:00,"P11-2022"
"CEO","RESIDENTIAL ACCOMMODATION","PREMISES RELATED EXPENDITURE","BUILDING REPAIRS & MAINTENANCE","2222","P116364-SERVICE-Pest Control - Roselea Bungalow",14/2/2022 00:00:00,"258506",60,"CA0165","CASTLES",31/1/2022 00:00:00,27/2/2022 00:00:00,"P11-2022"
"CEO","RESIDENTIAL ACCOMMODATION","PREMISES RELATED EXPENDITURE","BUILDING REPAIRS & MAINTENANCE","2222","P116365-SERVICE-Gas Certificate - Pindar Cottage",14/2/2022 00:00:00,"258674",82.5,"CA0165","CASTLES",31/1/2022 00:00:00,27/2/2022 00:00:00,"P11-2022"
"CEO","RESIDENTIAL ACCOMMODATION","PREMISES RELATED EXPENDITURE","BUILDING REPAIRS & MAINTENANCE","2222","P116615-SERVICE-2 Bungalow - Shower Call Out",22/2/2022 00:00:00,"259195",350,"WA0315","PAUL WALLACE ESTATE AGENTS",31/1/2022 00:00:00,27/2/2022 00:00:00,"P11-2022"
"CEO","RESIDENTIAL ACCOMMODATION","PREMISES RELATED EXPENDITURE","BUILDING REPAIRS & MAINTENANCE","2222","P116756-SERVICE-Railway Cottage Gas Certificate",27/2/2022 00:00:00,"259584",80,"WA0315","PAUL WALLACE ESTATE AGENTS",31/1/2022 00:00:00,27/2/2022 00:00:00,"P11-2022"
"CEO","COMMERCIAL ACCOMMODATION","PREMISES RELATED EXPENDITURE","BUILDING REPAIRS & MAINTENANCE","2222","P111994-SERVICE-2 x Stop blocks concret",14/2/2022 00:00:00,"258681",62,"NA0171","NAIVETTE SERVICES LTD",31/1/2022 00:00:00,27/2/2022 00:00:00,"P11-2022"
"CEO","COMMERCIAL ACCOMMODATION","PREMISES RELATED EXPENDITURE","BUILDING REPAIRS & MAINTENANCE","2222","P116502-SERVICE-New Lock, Unit L, LV Forge",14/2/2022 00:00:00,"258731",150,"JH0181","J H M CONSTRUCTION  (STEEL WORK)",31/1/2022 00:00:00,27/2/2022 00:00:00,"P11-2022"
,"LEE VALLEY MARINA SPRINGFIELD","PREMISES RELATED EXPENDITURE","BUILDING REPAIRS & MAINTENANCE","2222","P116294-SERVICE-To carry out EICR to external sockets",7/2/2022 00:00:00,"258514",1850,"BR0018","BRADSHAW ELECTRICAL LIMITED",31/1/2022 00:00:00,27/2/2022 00:00:00,"P11-2022"
,"LEE VALLEY MARINA SPRINGFIELD","PREMISES RELATED EXPENDITURE","BUILDING REPAIRS & MAINTENANCE","2222","P116294-SERVICE-To carry out EICR to fixed installation",7/2/2022 00:00:00,"258514",1480,"BR0018","BRADSHAW ELECTRICAL LIMITED",31/1/2022 00:00:00,27/2/2022 00:00:00,"P11-2022"
,"LEE VALLEY MARINA SPRINGFIELD","PREMISES RELATED EXPENDITURE","BUILDING REPAIRS & MAINTENANCE","2222","P116096-SERVICE-Replace cable, ducting & pipework to far side",7/2/2022 00:00:00,"258723",900,"DE0013","DENNIS SECURITY CENTRE",31/1/2022 00:00:00,27/2/2022 00:00:00,"P11-2022"
,"LEE VALLEY MARINA SPRINGFIELD","PREMISES RELATED EXPENDITURE","BUILDING REPAIRS & MAINTENANCE","2222","P116094-SERVICE-Water pump, lay concrete foundation",7/2/2022 00:00:00,"258972",1491.93,"DE0013","DENNIS SECURITY CENTRE",31/1/2022 00:00:00,27/2/2022 00:00:00,"P11-2022"
,"LEE VALLEY MARINA SPRINGFIELD","PREMISES RELATED EXPENDITURE","BUILDING REPAIRS & MAINTENANCE","2222","P116807-SERVICE-Annual Intruder Alarm Service main site &",27/2/2022 00:00:00,"259801",193.33,"CH0088","CHUBB FIRE & SECURITY",31/1/2022 00:00:00,27/2/2022 00:00:00,"P11-2022"
,"LEE VALLEY MARINA STANSTEAD","PREMISES RELATED EXPENDITURE","BUILDING REPAIRS & MAINTENANCE","2222","P116565-SERVICE-brad socket 2 and pod 19 maintenance",22/2/2022 00:00:00,"258639",60,"BR0018","BRADSHAW ELECTRICAL LIMITED",31/1/2022 00:00:00,27/2/2022 00:00:00,"P11-2022"
,"LEE VALLEY WATERWORKS CENTRE","PREMISES RELATED EXPENDITURE","BUILDING REPAIRS & MAINTENANCE","2222","P116109-SERVICE-Fence Repairs at WaterWorks Car Park",7/2/2022 00:00:00,"258940",531,"LW0268","LWC ENGINEERING LIMITED",31/1/2022 00:00:00,27/2/2022 00:00:00,"P11-2022"
,"LEE VALLEY CAMPSITE","PREMISES RELATED EXPENDITURE","BUILDING REPAIRS & MAINTENANCE","2222","P116483-SERVICE-Various Site Repairs",9/2/2022 00:00:00,"258739",250,"BR0018","BRADSHAW ELECTRICAL LIMITED",31/1/2022 00:00:00,27/2/2022 00:00:00,"P11-2022"
,"LEE VALLEY CAMPSITE","PREMISES RELATED EXPENDITURE","BUILDING REPAIRS & MAINTENANCE","2222","P116628-SERVICE-ECIR - Touring fields & cocoon   1200.00",22/2/2022 00:00:00,"259304",3105,"BR0018","BRADSHAW ELECTRICAL LIMITED",31/1/2022 00:00:00,27/2/2022 00:00:00,"P11-2022"
,"LV CAMPSITE CARAVAN SALES","PREMISES RELATED EXPENDITURE","BUILDING REPAIRS & MAINTENANCE","2222","P116604-SERVICE-gas commission, new trap kitchen, kitchen tap",24/2/2022 00:00:00,"259506",695,"SO0400","SOUTHERN GREEN SERVICES LIMITED",31/1/2022 00:00:00,27/2/2022 00:00:00,"P11-2022"
,"LV CAMPSITE CARAVAN SALES","PREMISES RELATED EXPENDITURE","BUILDING REPAIRS & MAINTENANCE","2222","P116605-SERVICE-plot 21 sewardstone, commission and repair le",24/2/2022 00:00:00,"259507",590,"SO0400","SOUTHERN GREEN SERVICES LIMITED",31/1/2022 00:00:00,27/2/2022 00:00:00,"P11-2022"
,"LEE VALLEY CARAVAN PARK","PREMISES RELATED EXPENDITURE","BUILDING REPAIRS & MAINTENANCE","2222","P116409-SERVICE-Bungalow - EICR",14/2/2022 00:00:00,"258700",180,"BR0018","BRADSHAW ELECTRICAL LIMITED",31/1/2022 00:00:00,27/2/2022 00:00:00,"P11-2022"
,"LEE VALLEY CARAVAN PARK","PREMISES RELATED EXPENDITURE","BUILDING REPAIRS & MAINTENANCE","2222","P116411-SERVICE-replace light post bulb",14/2/2022 00:00:00,"258703",95,"BR0018","BRADSHAW ELECTRICAL LIMITED",31/1/2022 00:00:00,27/2/2022 00:00:00,"P11-2022"
,"LEE VALLEY CARAVAN PARK","PREMISES RELATED EXPENDITURE","BUILDING REPAIRS & MAINTENANCE","2222","P116519-SERVICE-Supply & replace lightening bollards",14/2/2022 00:00:00,"258718",490,"BR0018","BRADSHAW ELECTRICAL LIMITED",31/1/2022 00:00:00,27/2/2022 00:00:00,"P11-2022"
,"LEE VALLEY CARAVAN PARK","PREMISES RELATED EXPENDITURE","BUILDING REPAIRS & MAINTENANCE","2222","P116523-SERVICE-Installation of staff van",14/2/2022 00:00:00,"258719",650,"BR0018","BRADSHAW ELECTRICAL LIMITED",31/1/2022 00:00:00,27/2/2022 00:00:00,"P11-2022"
,"LEE VALLEY CARAVAN PARK","PREMISES RELATED EXPENDITURE","BUILDING REPAIRS & MAINTENANCE","2222","P116599-SERVICE-Test boiler & cooker in Static",16/2/2022 00:00:00,"259247",140,"PA0348","PAUL JONES",31/1/2022 00:00:00,27/2/2022 00:00:00,"P11-2022"
,"LEE VALLEY CARAVAN PARK","PREMISES RELATED EXPENDITURE","BUILDING REPAIRS & MAINTENANCE","2222","P116753-SERVICE-connect gas pipes, no leaks",24/2/2022 00:00:00,"259316",50,"PA0348","PAUL JONES",31/1/2022 00:00:00,27/2/2022 00:00:00,"P11-2022"
,"LEE VALLEY CARAVAN PARK","PREMISES RELATED EXPENDITURE","BUILDING REPAIRS & MAINTENANCE","2222","P116760-SERVICE-Floor paint and other items",24/2/2022 00:00:00,"259327",89.5,"SC0057","SCREWFIX DIRECT LTD",31/1/2022 00:00:00,27/2/2022 00:00:00,"P11-2022"
,"LEE VALLEY CARAVAN PARK","PREMISES RELATED EXPENDITURE","BUILDING REPAIRS & MAINTENANCE","2222","P116762-SERVICE-base paint & brushes ansd tarpaulin",24/2/2022 00:00:00,"259494",80.12,"SC0057","SCREWFIX DIRECT LTD",31/1/2022 00:00:00,27/2/2022 00:00:00,"P11-2022"
"P&V","RIVER LEE COUNTRY PARK","PREMISES RELATED EXPENDITURE","BUILDING REPAIRS & MAINTENANCE","2222","P116635-SERVICE-Unblock Fishers Green Toilets",22/2/2022 00:00:00,"259006",98,"KE0023","KENDALL & SONS LIMITED",31/1/2022 00:00:00,27/2/2022 00:00:00,"P11-2022"
,"LEE VALLEY VELOPARK","PREMISES RELATED EXPENDITURE","BUILDING REPAIRS & MAINTENANCE","2222","P115498-SERVICE-Inspection and Repairs",7/2/2022 00:00:00,"258709",1420,"SC0470","SCS GROUP",31/1/2022 00:00:00,27/2/2022 00:00:00,"P11-2022"
,"LEE VALLEY VELOPARK","PREMISES RELATED EXPENDITURE","BUILDING REPAIRS & MAINTENANCE","2222","P115835-SERVICE-Head House Posts",7/2/2022 00:00:00,"258740",1285,"BR0018","BRADSHAW ELECTRICAL LIMITED",31/1/2022 00:00:00,27/2/2022 00:00:00,"P11-2022"
,"LEE VALLEY VELOPARK","PREMISES RELATED EXPENDITURE","BUILDING REPAIRS & MAINTENANCE","2222","P116395-SERVICE-Suremix 60 Size V",9/2/2022 00:00:00,"258746",51.3,"BO0015","BOC LTD",31/1/2022 00:00:00,27/2/2022 00:00:00,"P11-2022"
,"LEE VALLEY VELOPARK","PREMISES RELATED EXPENDITURE","BUILDING REPAIRS & MAINTENANCE","2222","P116485-SERVICE-Access Control aintenance",14/2/2022 00:00:00,"258990",849,"AD0015","ADT FIRE & SECURITY PLC",31/1/2022 00:00:00,27/2/2022 00:00:00,"P11-2022"
,"LEE VALLEY VELOPARK","PREMISES RELATED EXPENDITURE","BUILDING REPAIRS & MAINTENANCE","2222","P116404-SERVICE-Lamps and Ballasts",14/2/2022 00:00:00,"259010",144.95,"IN0159","INTERNATIONAL LAMPS LTD",31/1/2022 00:00:00,27/2/2022 00:00:00,"P11-2022"
,"LEE VALLEY VELOPARK","PREMISES RELATED EXPENDITURE","BUILDING REPAIRS & MAINTENANCE","2222","P116404-SERVICE-Lamps and Ballasts",14/2/2022 00:00:00,"259208",29.7,"IN0159","INTERNATIONAL LAMPS LTD",31/1/2022 00:00:00,27/2/2022 00:00:00,"P11-2022"
,"LEE VALLEY VELOPARK","PREMISES RELATED EXPENDITURE","BUILDING REPAIRS & MAINTENANCE","2222","P116404-SERVICE-Lamps and Ballasts",14/2/2022 00:00:00,"259209",185.55,"IN0159","INTERNATIONAL LAMPS LTD",31/1/2022 00:00:00,27/2/2022 00:00:00,"P11-2022"
,"LEE VALLEY VELOPARK","PREMISES RELATED EXPENDITURE","BUILDING REPAIRS & MAINTENANCE","2222","P116569-SERVICE-Planned Maintenance",16/2/2022 00:00:00,"259251",770,"PH0319","SIGNIFY COMMERCIAL UK LIMITED (PHILIPS LIGHTI",31/1/2022 00:00:00,27/2/2022 00:00:00,"P11-2022"
,"LEE VALLEY VELOPARK","PREMISES RELATED EXPENDITURE","BUILDING REPAIRS & MAINTENANCE","2222","P116249-SERVICE-Dioxychlor III Unit Works",14/2/2022 00:00:00,"259252",320,"GO0211","GOODWATER LTD",31/1/2022 00:00:00,27/2/2022 00:00:00,"P11-2022"
,"LEE VALLEY VELOPARK","PREMISES RELATED EXPENDITURE","BUILDING REPAIRS & MAINTENANCE","2222","P116305-SERVICE-Timing Strips",22/2/2022 00:00:00,"259314",1884,"SW0443","THE SWATCH GROUP (UK) LIMITED",31/1/2022 00:00:00,27/2/2022 00:00:00,"P11-2022"
,"LEE VALLEY VELOPARK","PREMISES RELATED EXPENDITURE","BUILDING REPAIRS & MAINTENANCE","2222","P114625-SERVICE-DHW Pump Valves",27/2/2022 00:00:00,"259901",1610,"GI0137","R & P GIBBS LIMITED",31/1/2022 00:00:00,27/2/2022 00:00:00,"P11-2022"
,"LEE VALLEY VELOPARK","PREMISES RELATED EXPENDITURE","BUILDING REPAIRS & MAINTENANCE","2222","P116307-SERVICE-Water Fountain",27/2/2022 00:00:00,"259902",109,"GI0137","R & P GIBBS LIMITED",31/1/2022 00:00:00,27/2/2022 00:00:00,"P11-2022"
,"LEE VALLEY VELOPARK","PREMISES RELATED EXPENDITURE","BUILDING REPAIRS & MAINTENANCE","2222","P115264-SERVICE-Ducting Insulation",27/2/2022 00:00:00,"259903",944.64,"GI0137","R & P GIBBS LIMITED",31/1/2022 00:00:00,27/2/2022 00:00:00,"P11-2022"
,"LEE VALLEY VELOPARK","PREMISES RELATED EXPENDITURE","BUILDING REPAIRS & MAINTENANCE","2222","P115794-SERVICE-Valve Maintenance",27/2/2022 00:00:00,"259904",883.95,"GI0137","R & P GIBBS LIMITED",31/1/2022 00:00:00,27/2/2022 00:00:00,"P11-2022"
,"LV HOCKEY AND TENNIS CENTRE","PREMISES RELATED EXPENDITURE","BUILDING REPAIRS & MAINTENANCE","2222","P116491-SERVICE-repair for alarm",9/2/2022 00:00:00,"258493",446.9,"AD0015","ADT FIRE & SECURITY PLC",31/1/2022 00:00:00,27/2/2022 00:00:00,"P11-2022"
,"LV HOCKEY AND TENNIS CENTRE","PREMISES RELATED EXPENDITURE","BUILDING REPAIRS & MAINTENANCE","2222","P116191-SERVICE-quote 200610",14/2/2022 00:00:00,"259039",811.4,"PO0412","PROTOCOOL LIMITED",31/1/2022 00:00:00,27/2/2022 00:00:00,"P11-2022"
,"LV HOCKEY AND TENNIS CENTRE","PREMISES RELATED EXPENDITURE","BUILDING REPAIRS & MAINTENANCE","2222","P116191-SERVICE-quote 200602",14/2/2022 00:00:00,"259040",791.39,"PO0412","PROTOCOOL LIMITED",31/1/2022 00:00:00,27/2/2022 00:00:00,"P11-2022"
,"LV HOCKEY AND TENNIS CENTRE","PREMISES RELATED EXPENDITURE","BUILDING REPAIRS & MAINTENANCE","2222","P116545-SERVICE-Algae removal",22/2/2022 00:00:00,"259312",439.65,"GL0214","GLENDALE GROUNDS MANAGEMENT LIMITED",31/1/2022 00:00:00,27/2/2022 00:00:00,"P11-2022"
,"LV HOCKEY AND TENNIS CENTRE","PREMISES RELATED EXPENDITURE","BUILDING REPAIRS & MAINTENANCE","2222","P116191-SERVICE-quote 200608",27/2/2022 00:00:00,"259618",456.1,"PO0412","PROTOCOOL LIMITED",31/1/2022 00:00:00,27/2/2022 00:00:00,"P11-2022"
,"LV HOCKEY AND TENNIS CENTRE","PREMISES RELATED EXPENDITURE","BUILDING REPAIRS & MAINTENANCE","2222","P116827-SERVICE-quote 200566",27/2/2022 00:00:00,"259620",805.2,"PO0412","PROTOCOOL LIMITED",31/1/2022 00:00:00,27/2/2022 00:00:00,"P11-2022"
,"LV HOCKEY AND TENNIS CENTRE","PREMISES RELATED EXPENDITURE","BUILDING REPAIRS & MAINTENANCE","2222","P116822-SERVICE-work on intruder system",27/2/2022 00:00:00,"259808",430,"AD0015","ADT FIRE & SECURITY PLC",31/1/2022 00:00:00,27/2/2022 00:00:00,"P11-2022"
,"LV HOCKEY AND TENNIS CENTRE","PREMISES RELATED EXPENDITURE","BUILDING REPAIRS & MAINTENANCE","2222","P116875-SERVICE-intruder alarm fault repair",27/2/2022 00:00:00,"259841",226,"AD0015","ADT FIRE & SECURITY PLC",31/1/2022 00:00:00,27/2/2022 00:00:00,"P11-2022"
,"LEE VALLEY RIDING CENTRE","PREMISES RELATED EXPENDITURE","BUILDING REPAIRS & MAINTENANCE","2222","P116369-SERVICE-adt call out and repair",7/2/2022 00:00:00,"258668",75,"AD0015","ADT FIRE & SECURITY PLC",31/1/2022 00:00:00,27/2/2022 00:00:00,"P11-2022"
,"LEE VALLEY RIDING CENTRE","PREMISES RELATED EXPENDITURE","BUILDING REPAIRS & MAINTENANCE","2222","P116361-SERVICE-test trace and repair",7/2/2022 00:00:00,"258701",180,"BR0018","BRADSHAW ELECTRICAL LIMITED",31/1/2022 00:00:00,27/2/2022 00:00:00,"P11-2022"
,"LEE VALLEY RIDING CENTRE","PREMISES RELATED EXPENDITURE","BUILDING REPAIRS & MAINTENANCE","2222","P115191-SERVICE-Engineer site visit half day",8/2/2022 00:00:00,"258938",350,"SY0865","SYNERGY DESIGN AND CONTROL LTD",31/1/2022 00:00:00,27/2/2022 00:00:00,"P11-2022"
,"LEE VALLEY RIDING CENTRE","PREMISES RELATED EXPENDITURE","BUILDING REPAIRS & MAINTENANCE","2222","P116821-SERVICE-call out and install equipment",27/2/2022 00:00:00,"259518",473.29,"AD0015","ADT FIRE & SECURITY PLC",31/1/2022 00:00:00,27/2/2022 00:00:00,"P11-2022"
,"LEE VALLEY RIDING CENTRE","PREMISES RELATED EXPENDITURE","BUILDING REPAIRS & MAINTENANCE","2222","P116332-SERVICE-solarium service",27/2/2022 00:00:00,"259622",395,"KY0127","KYLIX UK LIMITED",31/1/2022 00:00:00,27/2/2022 00:00:00,"P11-2022"
,"LEE VALLEY RIDING CENTRE","PREMISES RELATED EXPENDITURE","BUILDING REPAIRS & MAINTENANCE","2222","P116332-SERVICE-replace bulbs",27/2/2022 00:00:00,"259622",252,"KY0127","KYLIX UK LIMITED",31/1/2022 00:00:00,27/2/2022 00:00:00,"P11-2022"
,"LEE VALLEY RIDING CENTRE","PREMISES RELATED EXPENDITURE","BUILDING REPAIRS & MAINTENANCE","2222","P112358-SERVICE-soap and sanitary dispensers and bins",27/2/2022 00:00:00,"259779",145.44,"PE0015","PHS GROUP PLC",31/1/2022 00:00:00,27/2/2022 00:00:00,"P11-2022"
,"LEE VALLEY RIDING CENTRE","PREMISES RELATED EXPENDITURE","BUILDING REPAIRS & MAINTENANCE","2222","P116526-SERVICE-auto doors service",27/2/2022 00:00:00,"259816",230,"SU0398","SUPREME DOOR SPRING CO",31/1/2022 00:00:00,27/2/2022 00:00:00,"P11-2022"
,"LV LEISURE CENTRE CAMPSITE","PREMISES RELATED EXPENDITURE","BUILDING REPAIRS & MAINTENANCE","2222","P116023-SERVICE-Cistern replaced",14/2/2022 00:00:00,"259055",150,"PA0348","PAUL JONES",31/1/2022 00:00:00,27/2/2022 00:00:00,"P11-2022"
,"LV LEISURE CENTRE CAMPSITE","PREMISES RELATED EXPENDITURE","BUILDING REPAIRS & MAINTENANCE","2222","P116026-SERVICE-Taps replaced",14/2/2022 00:00:00,"259056",410,"PA0348","PAUL JONES",31/1/2022 00:00:00,27/2/2022 00:00:00,"P11-2022"
,"LV LEISURE CENTRE CAMPSITE","PREMISES RELATED EXPENDITURE","BUILDING REPAIRS & MAINTENANCE","2222","P116646-SERVICE-Replace basin and thermostatic blender valve",27/2/2022 00:00:00,"259522",410,"PA0348","PAUL JONES",31/1/2022 00:00:00,27/2/2022 00:00:00,"P11-2022"
,"LV LEISURE CENTRE CAMPSITE","PREMISES RELATED EXPENDITURE","BUILDING REPAIRS & MAINTENANCE","2222","P116647-SERVICE-Replaced cubicle door locks",24/2/2022 00:00:00,"259527",600,"PA0348","PAUL JONES",31/1/2022 00:00:00,27/2/2022 00:00:00,"P11-2022"
,"LV LEISURE CENTRE CAMPSITE","PREMISES RELATED EXPENDITURE","BUILDING REPAIRS & MAINTENANCE","2222","P116759-SERVICE-Ladies thermostat and valves replaced",27/2/2022 00:00:00,"259568",410,"PA0348","PAUL JONES",31/1/2022 00:00:00,27/2/2022 00:00:00,"P11-2022"
,"LEE VALLEY ATHLETICS CENTRE","PREMISES RELATED EXPENDITURE","BUILDING REPAIRS & MAINTENANCE","2222","P116241-SERVICE-12 X SU2144 BINS @ 73.90",7/2/2022 00:00:00,"258653",886.8,"LE0272","JP LENNARD LIMITED",31/1/2022 00:00:00,27/2/2022 00:00:00,"P11-2022"
,"LEE VALLEY ATHLETICS CENTRE","PREMISES RELATED EXPENDITURE","BUILDING REPAIRS & MAINTENANCE","2222","P116181-SERVICE-LVAC - SALT AS PER EMAIL G FERGUSON",9/2/2022 00:00:00,"258958",317,"AL0074","BRENNTAG UK GROUP LIMITED",31/1/2022 00:00:00,27/2/2022 00:00:00,"P11-2022"
,"LEE VALLEY ATHLETICS CENTRE","PREMISES RELATED EXPENDITURE","BUILDING REPAIRS & MAINTENANCE","2222","P115325-SERVICE-LVAC TROJAN 6 VOLT BATT, LABOUR, CALL OUT",22/2/2022 00:00:00,"259244",1166,"GO0221","GOLF CAR UK LIMITED",31/1/2022 00:00:00,27/2/2022 00:00:00,"P11-2022"
,"LEE VALLEY ATHLETICS CENTRE","PREMISES RELATED EXPENDITURE","BUILDING REPAIRS & MAINTENANCE","2222","P116734-SERVICE-LVAC CALL OUT 21/1/22 INTRUDER ALARM INV 4904",24/2/2022 00:00:00,"259587",217,"AD0015","ADT FIRE & SECURITY PLC",31/1/2022 00:00:00,27/2/2022 00:00:00,"P11-2022"
,"LEE VALLEY WHITE WATER CENTRE","PREMISES RELATED EXPENDITURE","BUILDING REPAIRS & MAINTENANCE","2222","P116378-SERVICE-Docket N0.  CZ461699",7/2/2022 00:00:00,"258878",102.89,"AD0015","ADT FIRE & SECURITY PLC",31/1/2022 00:00:00,27/2/2022 00:00:00,"P11-2022"
,"LEE VALLEY WHITE WATER CENTRE","PREMISES RELATED EXPENDITURE","BUILDING REPAIRS & MAINTENANCE","2222","P115318-SERVICE-Emergency Light Tests Sept to March",7/2/2022 00:00:00,"258905",330,"GI0137","R & P GIBBS LIMITED",31/1/2022 00:00:00,27/2/2022 00:00:00,"P11-2022"
,"LEE VALLEY WHITE WATER CENTRE","PREMISES RELATED EXPENDITURE","BUILDING REPAIRS & MAINTENANCE","2222","P115874-SERVICE-Fire Damper Testing",24/2/2022 00:00:00,"259633",1755,"UK0079","UK FM SERVICES",31/1/2022 00:00:00,27/2/2022 00:00:00,"P11-2022"
,"LEE VALLEY WHITE WATER CENTRE","PREMISES RELATED EXPENDITURE","BUILDING REPAIRS & MAINTENANCE","2222","P116763-SERVICE-10-02-22 - Emergency call out for luights in",27/2/2022 00:00:00,"259792",70,"GI0137","R & P GIBBS LIMITED",31/1/2022 00:00:00,27/2/2022 00:00:00,"P11-2022"
,"LEE VALLEY WHITE WATER CENTRE","PREMISES RELATED EXPENDITURE","BUILDING REPAIRS & MAINTENANCE","2222","P115426-SERVICE-Chaing Room Loghts - Est. 2021-318",27/2/2022 00:00:00,"259905",2966.4,"GI0137","R & P GIBBS LIMITED",31/1/2022 00:00:00,27/2/2022 00:00:00,"P11-2022"
,"LEE VALLEY ATHLETICS CENTRE","PREMISES RELATED EXPENDITURE","ENGINEERING SERVICES CONTRACT","2223","P116464-SERVICE-LVAC STOCKTAKE INV V22011085 21.1.22",9/2/2022 00:00:00,"258749",141,"VE0038","VENNERS LTD",31/1/2022 00:00:00,27/2/2022 00:00:00,"P11-2022"
,"LEE VALLEY ATHLETICS CENTRE","PREMISES RELATED EXPENDITURE","ENGINEERING SERVICES CONTRACT","2223","P111604-SERVICE-LVAC ANNUAL REFUSE COLLECTION 21/22",7/2/2022 00:00:00,"258789",430.06,"SI0659","SIMPLY WASTE SOLUTIONS",31/1/2022 00:00:00,27/2/2022 00:00:00,"P11-2022"
,"LEE VALLEY ATHLETICS CENTRE","PREMISES RELATED EXPENDITURE","ENGINEERING SERVICES CONTRACT","2223","P111755-SERVICE-LVAC ANNUAL MAINTENANCE 21/22",24/2/2022 00:00:00,"259605",1415,"KE0163","KERSHAW MECHANICAL SERVICES LTD",31/1/2022 00:00:00,27/2/2022 00:00:00,"P11-2022"
,"LEE VALLEY WHITE WATER CENTRE","PREMISES RELATED EXPENDITURE","ENGINEERING SERVICES CONTRACT","2223","P116160-SERVICE-Lift on Monday 17.01.22",8/2/2022 00:00:00,"258947",1100,"QU0004","QUINTO CRANE & PLANT LIMITED",31/1/2022 00:00:00,27/2/2022 00:00:00,"P11-2022"
,"LEE VALLEY WHITE WATER CENTRE","PREMISES RELATED EXPENDITURE","ENGINEERING SERVICES CONTRACT","2223","P114617-SERVICE-Oct 21 to Mar 2022",14/2/2022 00:00:00,"259011",1530,"AM0309","AMP 5 LIMITED",31/1/2022 00:00:00,27/2/2022 00:00:00,"P11-2022"
,"LEE VALLEY WHITE WATER CENTRE","PREMISES RELATED EXPENDITURE","ENGINEERING SERVICES CONTRACT","2223","P116215-SERVICE-Work Order WO-00121130 Call Out on 13.01.22",16/2/2022 00:00:00,"259231",583,"CL0039","XYLEM WATER SOLUTIONS UK  LIMITED",31/1/2022 00:00:00,27/2/2022 00:00:00,"P11-2022"
,"LEE VALLEY WHITE WATER CENTRE","PREMISES RELATED EXPENDITURE","ENGINEERING SERVICES CONTRACT","2223","P114918-SERVICE-Repairs to Olympic Pump 5",16/2/2022 00:00:00,"259232",1198,"CL0039","XYLEM WATER SOLUTIONS UK  LIMITED",31/1/2022 00:00:00,27/2/2022 00:00:00,"P11-2022"
,"LEE VALLEY WHITE WATER CENTRE","PREMISES RELATED EXPENDITURE","ENGINEERING SERVICES CONTRACT","2223","P114068-SERVICE-PAT Testing",22/2/2022 00:00:00,"259283",465,"KE0163","KERSHAW MECHANICAL SERVICES LTD",31/1/2022 00:00:00,27/2/2022 00:00:00,"P11-2022"
,"LEE VALLEY WHITE WATER CENTRE","PREMISES RELATED EXPENDITURE","ENGINEERING SERVICES CONTRACT","2223","P116413-SERVICE-WO-00123929 Legacy 1 to tighten glands",22/2/2022 00:00:00,"259295",425,"CL0039","XYLEM WATER SOLUTIONS UK  LIMITED",31/1/2022 00:00:00,27/2/2022 00:00:00,"P11-2022"
,"LEE VALLEY WHITE WATER CENTRE","PREMISES RELATED EXPENDITURE","ENGINEERING SERVICES CONTRACT","2223","P114399-SERVICE-Changing Ventilation Units",24/2/2022 00:00:00,"259336",1703.89,"GI0137","R & P GIBBS LIMITED",31/1/2022 00:00:00,27/2/2022 00:00:00,"P11-2022"
,"LEE VALLEY WHITE WATER CENTRE","PREMISES RELATED EXPENDITURE","ENGINEERING SERVICES CONTRACT","2223","P116509-SERVICE-Crane for Wednesday 16th February",27/2/2022 00:00:00,"259914",1100,"QU0004","QUINTO CRANE & PLANT LIMITED",31/1/2022 00:00:00,27/2/2022 00:00:00,"P11-2022"
"P&V","SOUTH AREA RANGERS","SUPPLIES AND SERVICES","FENCES/GATES ETC.","2231","P115553-SERVICE-Railing Metalwork - Middlesex Filter Beds",7/2/2022 00:00:00,"258939",425,"LW0268","LWC ENGINEERING LIMITED",31/1/2022 00:00:00,27/2/2022 00:00:00,"P11-2022"
"P&V","GUNPOWDER PARK","SUPPLIES AND SERVICES","FENCES/GATES ETC.","2231","P116018-SERVICE-Fence Repairs at Rammey Marsh Car Park",7/2/2022 00:00:00,"258971",780,"JO0019","R G JOYCE",31/1/2022 00:00:00,27/2/2022 00:00:00,"P11-2022"
"P&V","RIVER LEE COUNTRY PARK","SUPPLIES AND SERVICES","FENCES/GATES ETC.","2231","P116086-SERVICE-Remove Old Fence at North Bowyers",8/2/2022 00:00:00,"258895",950,"JO0019","R G JOYCE",31/1/2022 00:00:00,27/2/2022 00:00:00,"P11-2022"
"P&V","RIVER LEE COUNTRY PARK","SUPPLIES AND SERVICES","FENCES/GATES ETC.","2231","P116085-SERVICE-Remove Old Fence at South Bowyers",8/2/2022 00:00:00,"258896",950,"JO0019","R G JOYCE",31/1/2022 00:00:00,27/2/2022 00:00:00,"P11-2022"
"P&V","RIVER LEE COUNTRY PARK","SUPPLIES AND SERVICES","FENCES/GATES ETC.","2231","P116084-SERVICE-Install Gate at Trinity Lane",8/2/2022 00:00:00,"258897",560,"JO0019","R G JOYCE",31/1/2022 00:00:00,27/2/2022 00:00:00,"P11-2022"
"P&V","RIVER LEE COUNTRY PARK","SUPPLIES AND SERVICES","FENCES/GATES ETC.","2231","P116316-SERVICE-30x Round Fencing Posts",7/2/2022 00:00:00,"258968",132.6,"TI0164","414 TIMBER & FENCING",31/1/2022 00:00:00,27/2/2022 00:00:00,"P11-2022"
"P&V","RIVER LEE COUNTRY PARK","SUPPLIES AND SERVICES","FENCES/GATES ETC.","2231","P115338-SERVICE-Delivery - Plaque",22/2/2022 00:00:00,"259280",8.33,"JA0162","JAG'S TROPHIES",31/1/2022 00:00:00,27/2/2022 00:00:00,"P11-2022"
"P&V","RIVER LEE COUNTRY PARK","SUPPLIES AND SERVICES","FENCES/GATES ETC.","2231","P115338-SERVICE-Memorial Plaque - Essam Hussein",22/2/2022 00:00:00,"259280",83.33,"JA0162","JAG'S TROPHIES",31/1/2022 00:00:00,27/2/2022 00:00:00,"P11-2022"
"P&V","RIVER LEE COUNTRY PARK","SUPPLIES AND SERVICES","PARK SIGNS AND BOARDS","2236","P115293-SERVICE-Delivery",14/2/2022 00:00:00,"259053",22,"FI0135","FITZPATRICK WOOLMER DESIGN & PUBLISHING LTD",31/1/2022 00:00:00,27/2/2022 00:00:00,"P11-2022"
"P&V","RIVER LEE COUNTRY PARK","SUPPLIES AND SERVICES","PARK SIGNS AND BOARDS","2236","P115293-SERVICE-Interp Panel - Clayton Hill",14/2/2022 00:00:00,"259053",27.5,"FI0135","FITZPATRICK WOOLMER DESIGN & PUBLISHING LTD",31/1/2022 00:00:00,27/2/2022 00:00:00,"P11-2022"
"P&V","RIVER LEE COUNTRY PARK","SUPPLIES AND SERVICES","PARK SIGNS AND BOARDS","2236","P115293-SERVICE-Interp Panel - Clayton Hill",14/2/2022 00:00:00,"259053",195,"FI0135","FITZPATRICK WOOLMER DESIGN & PUBLISHING LTD",31/1/2022 00:00:00,27/2/2022 00:00:00,"P11-2022"
"CEO","RESIDENTIAL ACCOMMODATION","EXPENDITURE FROM REPAIRS FUND","EXPENDITURE FROM REPAIRS FUND","2240","P114795-SERVICE-Holyfield F/Hse External Window repairs",27/2/2022 00:00:00,"259493",9537.5,"MI0308","MITIE PROPERTY SERVICES ( UK) LIMITED",31/1/2022 00:00:00,27/2/2022 00:00:00,"P11-2022"
"CEO","RESIDENTIAL ACCOMMODATION","EXPENDITURE FROM REPAIRS FUND","EXPENDITURE FROM REPAIRS FUND","2240","P114795-SERVICE-RM Agreed increase",27/2/2022 00:00:00,"259493",2897.2,"MI0308","MITIE PROPERTY SERVICES ( UK) LIMITED",31/1/2022 00:00:00,27/2/2022 00:00:00,"P11-2022"
"CEO","COMMERCIAL ACCOMMODATION","PREMISES RELATED EXPENDITURE","EAST HALE ALLOTMENTS","2261","P112083-SERVICE-Allotment Bins",14/2/2022 00:00:00,"258926",113.46,"CL0037","VEOLIA ES (UK) LTD",31/1/2022 00:00:00,27/2/2022 00:00:00,"P11-2022"
"CEO","RESIDENTIAL ACCOMMODATION","PREMISES RELATED EXPENDITURE","ENERGY COSTS (ELECTRICITY)","2332","BRITISH GAS BUSINESS",7/2/2022 00:00:00,"258728",160.41,"BR0030","BRITISH GAS BUSINESS",31/1/2022 00:00:00,27/2/2022 00:00:00,"P11-2022"
"CEO","COMMERCIAL ACCOMMODATION","PREMISES RELATED EXPENDITURE","ENERGY COSTS (ELECTRICITY)","2332","E-ON NEXT ENERGY LTD",16/2/2022 00:00:00,"258988",58.19,"EO0398","E-ON NEXT ENERGY LTD",31/1/2022 00:00:00,27/2/2022 00:00:00,"P11-2022"
,"LEE VALLEY MARINA SPRINGFIELD","PREMISES RELATED EXPENDITURE","ENERGY COSTS (ELECTRICITY)","2332","KENT COUNTY COUNCIL (KCS)",27/2/2022 00:00:00,"259937",4765.27,"KE0007","KENT COUNTY COUNCIL (KCS)",31/1/2022 00:00:00,27/2/2022 00:00:00,"P11-2022"
"P&V","LEE VALLEY FARM HOLYFIELDHALL","PREMISES RELATED EXPENDITURE","ENERGY COSTS (ELECTRICITY)","2332","P116611-SERVICE-Metering Services",16/2/2022 00:00:00,"259186",64.26,"WE0267","WESTERN POWER DISTRIBUTION",31/1/2022 00:00:00,27/2/2022 00:00:00,"P11-2022"
"P&V","LEE VALLEY FARM HOLYFIELDHALL","PREMISES RELATED EXPENDITURE","ENERGY COSTS (ELECTRICITY)","2332","BRITISH GAS BUSINESS",16/2/2022 00:00:00,"259293",113.19,"BR0030","BRITISH GAS BUSINESS",31/1/2022 00:00:00,27/2/2022 00:00:00,"P11-2022"
"P&V","CAR PARK INCOME","PREMISES RELATED EXPENDITURE","ENERGY COSTS (ELECTRICITY)","2332","NPOWER LIMITED",22/2/2022 00:00:00,"259346",35.94,"NP0123","NPOWER LIMITED",31/1/2022 00:00:00,27/2/2022 00:00:00,"P11-2022"
,"LEE VALLEY VELOPARK","PREMISES RELATED EXPENDITURE","ENERGY COSTS (ELECTRICITY)","2332","P116687-SERVICE-Energy Supply",22/2/2022 00:00:00,"259335",20439.18,"LO0410","(MAIN) LONDON LEGACY DEVELOPMENT CORPORATION",31/1/2022 00:00:00,27/2/2022 00:00:00,"P11-2022"
,"LEE VALLEY VELOPARK","PREMISES RELATED EXPENDITURE","ENERGY COSTS (ELECTRICITY)","2332","KENT COUNTY COUNCIL (KCS)",27/2/2022 00:00:00,"259938",42.04,"KE0007","KENT COUNTY COUNCIL (KCS)",31/1/2022 00:00:00,27/2/2022 00:00:00,"P11-2022"
,"LEE VALLEY VELOPARK","PREMISES RELATED EXPENDITURE","ENERGY COSTS (ELECTRICITY)","2332","KENT COUNTY COUNCIL (KCS)",27/2/2022 00:00:00,"259939",158.24,"KE0007","KENT COUNTY COUNCIL (KCS)",31/1/2022 00:00:00,27/2/2022 00:00:00,"P11-2022"
,"LEE VALLEY VELOPARK","PREMISES RELATED EXPENDITURE","ENERGY COSTS (ELECTRICITY)","2332","KENT COUNTY COUNCIL (KCS)",27/2/2022 00:00:00,"259940",101.01,"KE0007","KENT COUNTY COUNCIL (KCS)",31/1/2022 00:00:00,27/2/2022 00:00:00,"P11-2022"
,"LEE VALLEY VELOPARK","PREMISES RELATED EXPENDITURE","ENERGY COSTS (ELECTRICITY)","2332","KENT COUNTY COUNCIL (KCS)",27/2/2022 00:00:00,"259940",1.02,"KE0007","KENT COUNTY COUNCIL (KCS)",31/1/2022 00:00:00,27/2/2022 00:00:00,"P11-2022"
,"LV HOCKEY AND TENNIS CENTRE","PREMISES RELATED EXPENDITURE","ENERGY COSTS (ELECTRICITY)","2332","P116379-SERVICE-November 21",22/2/2022 00:00:00,"259334",1126.66,"LO0410","(MAIN) LONDON LEGACY DEVELOPMENT CORPORATION",31/1/2022 00:00:00,27/2/2022 00:00:00,"P11-2022"
,"LV HOCKEY AND TENNIS CENTRE","PREMISES RELATED EXPENDITURE","ENERGY COSTS (ELECTRICITY)","2332","P116379-SERVICE-october 2021",22/2/2022 00:00:00,"259334",594.12,"LO0410","(MAIN) LONDON LEGACY DEVELOPMENT CORPORATION",31/1/2022 00:00:00,27/2/2022 00:00:00,"P11-2022"
,"LV HOCKEY AND TENNIS CENTRE","PREMISES RELATED EXPENDITURE","ENERGY COSTS (ELECTRICITY)","2332","P116379-SERVICE-December 2021",22/2/2022 00:00:00,"259334",8292.12,"LO0410","(MAIN) LONDON LEGACY DEVELOPMENT CORPORATION",31/1/2022 00:00:00,27/2/2022 00:00:00,"P11-2022"
,"LV HOCKEY AND TENNIS CENTRE","PREMISES RELATED EXPENDITURE","ENERGY COSTS (ELECTRICITY)","2332","NPOWER LIMITED",22/2/2022 00:00:00,"259340",11174.93,"NP0123","NPOWER LIMITED",31/1/2022 00:00:00,27/2/2022 00:00:00,"P11-2022"
,"LEE VALLEY RIDING CENTRE","PREMISES RELATED EXPENDITURE","ENERGY COSTS (ELECTRICITY)","2332","NPOWER LIMITED",22/2/2022 00:00:00,"259345",1024.02,"NP0123","NPOWER LIMITED",31/1/2022 00:00:00,27/2/2022 00:00:00,"P11-2022"
,"LEE VALLEY RIDING CENTRE","PREMISES RELATED EXPENDITURE","ENERGY COSTS (ELECTRICITY)","2332","EDF ENERGY 1 LIMITED",27/2/2022 00:00:00,"259638",101.21,"ED0077","EDF ENERGY 1 LIMITED",31/1/2022 00:00:00,27/2/2022 00:00:00,"P11-2022"
,"LEE VALLEY WHITE WATER CENTRE","PREMISES RELATED EXPENDITURE","ENERGY COSTS (ELECTRICITY)","2332","NPOWER LIMITED",22/2/2022 00:00:00,"259341",11114.49,"NP0123","NPOWER LIMITED",31/1/2022 00:00:00,27/2/2022 00:00:00,"P11-2022"
,"LEE VALLEY WHITE WATER CENTRE","PREMISES RELATED EXPENDITURE","ENERGY COSTS (ELECTRICITY)","2332","NPOWER LIMITED",22/2/2022 00:00:00,"259342",548.88,"NP0123","NPOWER LIMITED",31/1/2022 00:00:00,27/2/2022 00:00:00,"P11-2022"
,"LEE VALLEY WHITE WATER CENTRE","PREMISES RELATED EXPENDITURE","ENERGY COSTS (ELECTRICITY)","2332","NPOWER LIMITED",22/2/2022 00:00:00,"259343",9968.32,"NP0123","NPOWER LIMITED",31/1/2022 00:00:00,27/2/2022 00:00:00,"P11-2022"
,"LEE VALLEY WHITE WATER CENTRE","PREMISES RELATED EXPENDITURE","ENERGY COSTS (ELECTRICITY)","2332","NPOWER LIMITED",22/2/2022 00:00:00,"259344",19896.03,"NP0123","NPOWER LIMITED",31/1/2022 00:00:00,27/2/2022 00:00:00,"P11-2022"
"P&V","MYDDELTON HOUSE","PREMISES RELATED EXPENDITURE","ENERGY COSTS (GAS)","2333","KENT COUNTY COUNCIL (KCS)",7/2/2022 00:00:00,"258264",845.48,"KE0007","KENT COUNTY COUNCIL (KCS)",31/1/2022 00:00:00,27/2/2022 00:00:00,"P11-2022"
"CEO","RESIDENTIAL ACCOMMODATION","PREMISES RELATED EXPENDITURE","ENERGY COSTS (GAS)","2333","BRITISH GAS BUSINESS",7/2/2022 00:00:00,"258728",25.79,"BR0030","BRITISH GAS BUSINESS",31/1/2022 00:00:00,27/2/2022 00:00:00,"P11-2022"
,"LEE VALLEY MARINA SPRINGFIELD","PREMISES RELATED EXPENDITURE","ENERGY COSTS (GAS)","2333","KENT COUNTY COUNCIL (KCS)",22/2/2022 00:00:00,"259223",524.05,"KE0007","KENT COUNTY COUNCIL (KCS)",31/1/2022 00:00:00,27/2/2022 00:00:00,"P11-2022"
,"LEE VALLEY MARINA STANSTEAD","PREMISES RELATED EXPENDITURE","ENERGY COSTS (GAS)","2333","KENT COUNTY COUNCIL (KCS)",22/2/2022 00:00:00,"259220",114.56,"KE0007","KENT COUNTY COUNCIL (KCS)",31/1/2022 00:00:00,27/2/2022 00:00:00,"P11-2022"
,"LEE VALLEY MARINA STANSTEAD","PREMISES RELATED EXPENDITURE","ENERGY COSTS (GAS)","2333","KENT COUNTY COUNCIL (KCS)",22/2/2022 00:00:00,"259221",490.41,"KE0007","KENT COUNTY COUNCIL (KCS)",31/1/2022 00:00:00,27/2/2022 00:00:00,"P11-2022"
,"LEE VALLEY WATERWORKS CENTRE","PREMISES RELATED EXPENDITURE","ENERGY COSTS (GAS)","2333","KENT COUNTY COUNCIL (KCS)",14/2/2022 00:00:00,"259219",411.62,"KE0007","KENT COUNTY COUNCIL (KCS)",31/1/2022 00:00:00,27/2/2022 00:00:00,"P11-2022"
,"LEE VALLEY CAMPSITE","PREMISES RELATED EXPENDITURE","ENERGY COSTS (GAS)","2333","KENT COUNTY COUNCIL (KCS)",15/2/2022 00:00:00,"259218",610.11,"KE0007","KENT COUNTY COUNCIL (KCS)",31/1/2022 00:00:00,27/2/2022 00:00:00,"P11-2022"
,"LEE VALLEY CARAVAN PARK","PREMISES RELATED EXPENDITURE","ENERGY COSTS (GAS)","2333","P116293-SERVICE-Replacement gas meter HH31",7/2/2022 00:00:00,"258722",330,"SO0400","SOUTHERN GREEN SERVICES LIMITED",31/1/2022 00:00:00,27/2/2022 00:00:00,"P11-2022"
,"LEE VALLEY CARAVAN PARK","PREMISES RELATED EXPENDITURE","ENERGY COSTS (GAS)","2333","P116524-SERVICE-Gas delivery",14/2/2022 00:00:00,"258868",2565,"AV0327","AVANTI GAS LIMITED",31/1/2022 00:00:00,27/2/2022 00:00:00,"P11-2022"
,"LEE VALLEY CARAVAN PARK","PREMISES RELATED EXPENDITURE","ENERGY COSTS (GAS)","2333","P116598-SERVICE-Re-fill of gas tanks",16/2/2022 00:00:00,"259065",8170.27,"AV0327","AVANTI GAS LIMITED",31/1/2022 00:00:00,27/2/2022 00:00:00,"P11-2022"
,"LEE VALLEY RIDING CENTRE","PREMISES RELATED EXPENDITURE","ENERGY COSTS (GAS)","2333","TOTALENERGIES GAS & POWER LIMI",14/2/2022 00:00:00,"259210",258.87,"TO0168","TOTALENERGIES GAS & POWER LIMITED",31/1/2022 00:00:00,27/2/2022 00:00:00,"P11-2022"
,"LEE VALLEY RIDING CENTRE","PREMISES RELATED EXPENDITURE","ENERGY COSTS (GAS)","2333","BRITISH GAS BUSINESS",27/2/2022 00:00:00,"259807",213.57,"BR0029","BRITISH GAS BUSINESS",31/1/2022 00:00:00,27/2/2022 00:00:00,"P11-2022"
,"LEE VALLEY ICE CENTRE","PREMISES RELATED EXPENDITURE","ENERGY COSTS (GAS)","2333","TOTALENERGIES GAS & POWER LIMI",24/2/2022 00:00:00,"253178",1520.51,"TO0168","TOTALENERGIES GAS & POWER LIMITED",31/1/2022 00:00:00,27/2/2022 00:00:00,"P11-2022"
,"LEE VALLEY ICE CENTRE","PREMISES RELATED EXPENDITURE","ENERGY COSTS (GAS)","2333","TOTALENERGIES GAS & POWER LIMI",24/2/2022 00:00:00,"253179",1003.2,"TO0168","TOTALENERGIES GAS & POWER LIMITED",31/1/2022 00:00:00,27/2/2022 00:00:00,"P11-2022"
,"LEE VALLEY ICE CENTRE","PREMISES RELATED EXPENDITURE","ENERGY COSTS (GAS)","2333","TOTALENERGIES GAS & POWER LIMI",24/2/2022 00:00:00,"253180",1156.1,"TO0168","TOTALENERGIES GAS & POWER LIMITED",31/1/2022 00:00:00,27/2/2022 00:00:00,"P11-2022"
,"LEE VALLEY ICE CENTRE","PREMISES RELATED EXPENDITURE","ENERGY COSTS (GAS)","2333","TOTALENERGIES GAS & POWER LIMI",24/2/2022 00:00:00,"253181",338.55,"TO0168","TOTALENERGIES GAS & POWER LIMITED",31/1/2022 00:00:00,27/2/2022 00:00:00,"P11-2022"
,"LEE VALLEY ICE CENTRE","PREMISES RELATED EXPENDITURE","ENERGY COSTS (GAS)","2333","KENT COUNTY COUNCIL (KCS)",22/2/2022 00:00:00,"256593",-400.61,"KE0007","KENT COUNTY COUNCIL (KCS)",31/1/2022 00:00:00,27/2/2022 00:00:00,"P11-2022"
,"LEE VALLEY ICE CENTRE","PREMISES RELATED EXPENDITURE","ENERGY COSTS (GAS)","2333","KENT COUNTY COUNCIL (KCS)",22/2/2022 00:00:00,"256594",400.61,"KE0007","KENT COUNTY COUNCIL (KCS)",31/1/2022 00:00:00,27/2/2022 00:00:00,"P11-2022"
,"LV LEISURE CENTRE CAMPSITE","PREMISES RELATED EXPENDITURE","ENERGY COSTS (GAS)","2333","KENT COUNTY COUNCIL (KCS)",14/2/2022 00:00:00,"259222",2256,"KE0007","KENT COUNTY COUNCIL (KCS)",31/1/2022 00:00:00,27/2/2022 00:00:00,"P11-2022"
"P&V","MYDDELTON HOUSE","PREMISES RELATED EXPENDITURE","ENERGY COSTS (BIOMASS FUEL)","2334","P116437-SERVICE-BSL pellets",8/2/2022 00:00:00,"258657",1168.86,"DU0251","DURRANT ELECTRICAL & MECHANICAL LTD",31/1/2022 00:00:00,27/2/2022 00:00:00,"P11-2022"
,"LEE VALLEY MARINA STANSTEAD","PREMISES RELATED EXPENDITURE","RENT (EXTERNAL)","2442","CANAL & RIVER TRUST",27/2/2022 00:00:00,"259594",11875,"BR0036","CANAL & RIVER TRUST",31/1/2022 00:00:00,27/2/2022 00:00:00,"P11-2022"
"P&V","YOUTH AND SCHOOLS","PREMISES RELATED EXPENDITURE","RENT (EXTERNAL)","2442","P116581-SERVICE-Rental of internal storage cuypboard",22/2/2022 00:00:00,"259306",291.67,"WA0108","WALTHAM ABBEY PAROCHIAL CHURCH COUNCIL",31/1/2022 00:00:00,27/2/2022 00:00:00,"P11-2022"
"P&V","NORTH AREA RANGERS","PREMISES RELATED EXPENDITURE","RENT (EXTERNAL)","2442","ROYDON PARISH COUNCIL",27/2/2022 00:00:00,"259819",1077.48,"RO0025","ROYDON PARISH COUNCIL",31/1/2022 00:00:00,27/2/2022 00:00:00,"P11-2022"
"CEO","RESIDENTIAL ACCOMMODATION","PREMISES RELATED EXPENDITURE","PROPERTY MANAGEMT/LETTING FEES","2447","P116755-SERVICE-Railway Cottage 6 Month Managment Fee",27/2/2022 00:00:00,"259368",750,"WA0315","PAUL WALLACE ESTATE AGENTS",31/1/2022 00:00:00,27/2/2022 00:00:00,"P11-2022"
"CEO","RESIDENTIAL ACCOMMODATION","PREMISES RELATED EXPENDITURE","WATER","2555","CASTLE WATER LIMITED",24/2/2022 00:00:00,"259320",96.99,"CA0625","CASTLE WATER LIMITED",31/1/2022 00:00:00,27/2/2022 00:00:00,"P11-2022"
"CEO","RESIDENTIAL ACCOMMODATION","PREMISES RELATED EXPENDITURE","WATER","2555","CASTLE WATER LIMITED",24/2/2022 00:00:00,"259320",50.88,"CA0625","CASTLE WATER LIMITED",31/1/2022 00:00:00,27/2/2022 00:00:00,"P11-2022"
,"LEE VALLEY MARINA SPRINGFIELD","PREMISES RELATED EXPENDITURE","WATER","2555","CASTLE WATER LIMITED",22/2/2022 00:00:00,"259300",1459.88,"CA0625","CASTLE WATER LIMITED",31/1/2022 00:00:00,27/2/2022 00:00:00,"P11-2022"
,"LEE VALLEY MARINA SPRINGFIELD","PREMISES RELATED EXPENDITURE","WATER","2555","CASTLE WATER LIMITED",22/2/2022 00:00:00,"259300",993.09,"CA0625","CASTLE WATER LIMITED",31/1/2022 00:00:00,27/2/2022 00:00:00,"P11-2022"
,"LEE VALLEY MARINA SPRINGFIELD","PREMISES RELATED EXPENDITURE","WATER","2555","CASTLE WATER LIMITED",27/2/2022 00:00:00,"259890",887.85,"CA0625","CASTLE WATER LIMITED",31/1/2022 00:00:00,27/2/2022 00:00:00,"P11-2022"
,"LEE VALLEY MARINA SPRINGFIELD","PREMISES RELATED EXPENDITURE","WATER","2555","CASTLE WATER LIMITED",27/2/2022 00:00:00,"259890",1303.92,"CA0625","CASTLE WATER LIMITED",31/1/2022 00:00:00,27/2/2022 00:00:00,"P11-2022"
,"LEE VALLEY MARINA STANSTEAD","PREMISES RELATED EXPENDITURE","WATER","2555","CASTLE WATER LIMITED",9/2/2022 00:00:00,"258941",128.16,"CA0625","CASTLE WATER LIMITED",31/1/2022 00:00:00,27/2/2022 00:00:00,"P11-2022"
,"LEE VALLEY MARINA STANSTEAD","PREMISES RELATED EXPENDITURE","WATER","2555","CASTLE WATER LIMITED",9/2/2022 00:00:00,"258941",122.4,"CA0625","CASTLE WATER LIMITED",31/1/2022 00:00:00,27/2/2022 00:00:00,"P11-2022"
,"LEE VALLEY WATERWORKS CENTRE","PREMISES RELATED EXPENDITURE","WATER","2555","CASTLE WATER LIMITED",7/2/2022 00:00:00,"258913",186.16,"CA0625","CASTLE WATER LIMITED",31/1/2022 00:00:00,27/2/2022 00:00:00,"P11-2022"
,"LEE VALLEY CAMPSITE","PREMISES RELATED EXPENDITURE","WATER","2555","CASTLE WATER LIMITED",8/2/2022 00:00:00,"258996",1403.97,"CA0625","CASTLE WATER LIMITED",31/1/2022 00:00:00,27/2/2022 00:00:00,"P11-2022"
,"LEE VALLEY CARAVAN PARK","PREMISES RELATED EXPENDITURE","WATER","2555","CASTLE WATER LIMITED",22/2/2022 00:00:00,"259299",2694.67,"CA0625","CASTLE WATER LIMITED",31/1/2022 00:00:00,27/2/2022 00:00:00,"P11-2022"
,"LEE VALLEY CARAVAN PARK","PREMISES RELATED EXPENDITURE","WATER","2555","CASTLE WATER LIMITED",22/2/2022 00:00:00,"259299",1760.7,"CA0625","CASTLE WATER LIMITED",31/1/2022 00:00:00,27/2/2022 00:00:00,"P11-2022"
,"LEE VALLEY VELOPARK","PREMISES RELATED EXPENDITURE","WATER","2555","CASTLE WATER LIMITED",9/2/2022 00:00:00,"258994",1410.03,"CA0625","CASTLE WATER LIMITED",31/1/2022 00:00:00,27/2/2022 00:00:00,"P11-2022"
,"LEE VALLEY VELOPARK","PREMISES RELATED EXPENDITURE","WATER","2555","CASTLE WATER LIMITED",9/2/2022 00:00:00,"258994",1029,"CA0625","CASTLE WATER LIMITED",31/1/2022 00:00:00,27/2/2022 00:00:00,"P11-2022"
,"LEE VALLEY VELOPARK","PREMISES RELATED EXPENDITURE","WATER","2555","CASTLE WATER LIMITED",27/2/2022 00:00:00,"259893",255.65,"CA0625","CASTLE WATER LIMITED",31/1/2022 00:00:00,27/2/2022 00:00:00,"P11-2022"
,"LEE VALLEY VELOPARK","PREMISES RELATED EXPENDITURE","WATER","2555","CASTLE WATER LIMITED",27/2/2022 00:00:00,"259893",854.71,"CA0625","CASTLE WATER LIMITED",31/1/2022 00:00:00,27/2/2022 00:00:00,"P11-2022"
,"LV HOCKEY AND TENNIS CENTRE","PREMISES RELATED EXPENDITURE","WATER","2555","CASTLE WATER LIMITED",16/2/2022 00:00:00,"259301",-974.33,"CA0625","CASTLE WATER LIMITED",31/1/2022 00:00:00,27/2/2022 00:00:00,"P11-2022"
,"LV HOCKEY AND TENNIS CENTRE","PREMISES RELATED EXPENDITURE","WATER","2555","CASTLE WATER LIMITED",16/2/2022 00:00:00,"259301",164.64,"CA0625","CASTLE WATER LIMITED",31/1/2022 00:00:00,27/2/2022 00:00:00,"P11-2022"
,"LV HOCKEY AND TENNIS CENTRE","PREMISES RELATED EXPENDITURE","WATER","2555","CASTLE WATER LIMITED",27/2/2022 00:00:00,"259838",2042.12,"CA0625","CASTLE WATER LIMITED",31/1/2022 00:00:00,27/2/2022 00:00:00,"P11-2022"
,"LV HOCKEY AND TENNIS CENTRE","PREMISES RELATED EXPENDITURE","WATER","2555","CASTLE WATER LIMITED",27/2/2022 00:00:00,"259838",2165.71,"CA0625","CASTLE WATER LIMITED",31/1/2022 00:00:00,27/2/2022 00:00:00,"P11-2022"
,"LEE VALLEY RIDING CENTRE","PREMISES RELATED EXPENDITURE","WATER","2555","CASTLE WATER LIMITED",16/2/2022 00:00:00,"259315",212.23,"CA0625","CASTLE WATER LIMITED",31/1/2022 00:00:00,27/2/2022 00:00:00,"P11-2022"
,"LEE VALLEY RIDING CENTRE","PREMISES RELATED EXPENDITURE","WATER","2555","CASTLE WATER LIMITED",16/2/2022 00:00:00,"259315",217.47,"CA0625","CASTLE WATER LIMITED",31/1/2022 00:00:00,27/2/2022 00:00:00,"P11-2022"
,"LV LEISURE CENTRE CAMPSITE","PREMISES RELATED EXPENDITURE","WATER","2555","CASTLE WATER LIMITED",7/2/2022 00:00:00,"258914",28.93,"CA0625","CASTLE WATER LIMITED",31/1/2022 00:00:00,27/2/2022 00:00:00,"P11-2022"
,"LV LEISURE CENTRE CAMPSITE","PREMISES RELATED EXPENDITURE","WATER","2555","CASTLE WATER LIMITED",14/2/2022 00:00:00,"258993",30.08,"CA0625","CASTLE WATER LIMITED",31/1/2022 00:00:00,27/2/2022 00:00:00,"P11-2022"
,"LV LEISURE CENTRE CAMPSITE","PREMISES RELATED EXPENDITURE","WATER","2555","CASTLE WATER LIMITED",14/2/2022 00:00:00,"258993",28.14,"CA0625","CASTLE WATER LIMITED",31/1/2022 00:00:00,27/2/2022 00:00:00,"P11-2022"
,"LV LEISURE CENTRE CAMPSITE","PREMISES RELATED EXPENDITURE","WATER","2555","CASTLE WATER LIMITED",14/2/2022 00:00:00,"258995",2454.34,"CA0625","CASTLE WATER LIMITED",31/1/2022 00:00:00,27/2/2022 00:00:00,"P11-2022"
,"LV LEISURE CENTRE CAMPSITE","PREMISES RELATED EXPENDITURE","WATER","2555","CASTLE WATER LIMITED",14/2/2022 00:00:00,"258995",3397.28,"CA0625","CASTLE WATER LIMITED",31/1/2022 00:00:00,27/2/2022 00:00:00,"P11-2022"
,"LV LEISURE CENTRE CAMPSITE","PREMISES RELATED EXPENDITURE","WATER","2555","CASTLE WATER LIMITED",27/2/2022 00:00:00,"259892",2792.75,"CA0625","CASTLE WATER LIMITED",31/1/2022 00:00:00,27/2/2022 00:00:00,"P11-2022"
,"LV LEISURE CENTRE CAMPSITE","PREMISES RELATED EXPENDITURE","WATER","2555","CASTLE WATER LIMITED",27/2/2022 00:00:00,"259892",2045.39,"CA0625","CASTLE WATER LIMITED",31/1/2022 00:00:00,27/2/2022 00:00:00,"P11-2022"
,"LEE VALLEY ATHLETICS CENTRE","PREMISES RELATED EXPENDITURE","WATER","2555","CASTLE WATER LIMITED",16/2/2022 00:00:00,"259298",474.3,"CA0625","CASTLE WATER LIMITED",31/1/2022 00:00:00,27/2/2022 00:00:00,"P11-2022"
,"LEE VALLEY ATHLETICS CENTRE","PREMISES RELATED EXPENDITURE","WATER","2555","CASTLE WATER LIMITED",16/2/2022 00:00:00,"259298",380.39,"CA0625","CASTLE WATER LIMITED",31/1/2022 00:00:00,27/2/2022 00:00:00,"P11-2022"
,"LEE VALLEY WHITE WATER CENTRE","PREMISES RELATED EXPENDITURE","WATER","2555","CASTLE WATER LIMITED",7/2/2022 00:00:00,"258790",1052.68,"CA0625","CASTLE WATER LIMITED",31/1/2022 00:00:00,27/2/2022 00:00:00,"P11-2022"
,"LEE VALLEY WHITE WATER CENTRE","PREMISES RELATED EXPENDITURE","WATER","2555","CASTLE WATER LIMITED",7/2/2022 00:00:00,"258790",903.28,"CA0625","CASTLE WATER LIMITED",31/1/2022 00:00:00,27/2/2022 00:00:00,"P11-2022"
,"LEE VALLEY WHITE WATER CENTRE","PREMISES RELATED EXPENDITURE","WATER","2555","CASTLE WATER LIMITED",27/2/2022 00:00:00,"259774",8.03,"CA0625","CASTLE WATER LIMITED",31/1/2022 00:00:00,27/2/2022 00:00:00,"P11-2022"
,"LEE VALLEY WHITE WATER CENTRE","PREMISES RELATED EXPENDITURE","WATER","2555","CASTLE WATER LIMITED",27/2/2022 00:00:00,"259774",5,"CA0625","CASTLE WATER LIMITED",31/1/2022 00:00:00,27/2/2022 00:00:00,"P11-2022"
,"LEE VALLEY MARINA SPRINGFIELD","PREMISES RELATED EXPENDITURE","CLEANING & DOMESTIC SUPPLIES","2666","P116362-SERVICE-Site cleaning for Jan,Feb,March 2022",7/2/2022 00:00:00,"258684",912.33,"MA0015","MAYFAIR CLEANING COMPANY LIMITED",31/1/2022 00:00:00,27/2/2022 00:00:00,"P11-2022"
,"LEE VALLEY MARINA SPRINGFIELD","PREMISES RELATED EXPENDITURE","CLEANING & DOMESTIC SUPPLIES","2666","P112164-SERVICE-To supply items as requested",7/2/2022 00:00:00,"258973",39.56,"HY0043","HYGIENE SYSTEMS LTD",31/1/2022 00:00:00,27/2/2022 00:00:00,"P11-2022"
,"LEE VALLEY MARINA SPRINGFIELD","PREMISES RELATED EXPENDITURE","CLEANING & DOMESTIC SUPPLIES","2666","P114462-SERVICE-To supply items as requested",22/2/2022 00:00:00,"259533",131.46,"HY0043","HYGIENE SYSTEMS LTD",31/1/2022 00:00:00,27/2/2022 00:00:00,"P11-2022"
,"LEE VALLEY MARINA SPRINGFIELD","PREMISES RELATED EXPENDITURE","CLEANING & DOMESTIC SUPPLIES","2666","P116809-SERVICE-Sanitary disposal/Dust mats/Eco shield/Air fr",27/2/2022 00:00:00,"259550",186.18,"PE0015","PHS GROUP PLC",31/1/2022 00:00:00,27/2/2022 00:00:00,"P11-2022"
,"LEE VALLEY MARINA SPRINGFIELD","PREMISES RELATED EXPENDITURE","CLEANING & DOMESTIC SUPPLIES","2666","P116362-SERVICE-Site cleaning for Jan,Feb,March 2022",27/2/2022 00:00:00,"259877",912.33,"MA0015","MAYFAIR CLEANING COMPANY LIMITED",31/1/2022 00:00:00,27/2/2022 00:00:00,"P11-2022"
,"LEE VALLEY WATERWORKS CENTRE","PREMISES RELATED EXPENDITURE","CLEANING & DOMESTIC SUPPLIES","2666","P116366-SERVICE-Cleaning WaterWorks Centre - Jan 2022",7/2/2022 00:00:00,"258729",526,"GL0214","GLENDALE GROUNDS MANAGEMENT LIMITED",31/1/2022 00:00:00,27/2/2022 00:00:00,"P11-2022"
,"LEE VALLEY CAMPSITE","PREMISES RELATED EXPENDITURE","CLEANING & DOMESTIC SUPPLIES","2666","P116198-SERVICE-Deodoriser concentrate",8/2/2022 00:00:00,"258189",11.88,"HY0043","HYGIENE SYSTEMS LTD",31/1/2022 00:00:00,27/2/2022 00:00:00,"P11-2022"
,"LEE VALLEY CAMPSITE","PREMISES RELATED EXPENDITURE","CLEANING & DOMESTIC SUPPLIES","2666","P116198-SERVICE-Aerial liquitabs",8/2/2022 00:00:00,"258189",32.1,"HY0043","HYGIENE SYSTEMS LTD",31/1/2022 00:00:00,27/2/2022 00:00:00,"P11-2022"
,"LEE VALLEY CAMPSITE","PREMISES RELATED EXPENDITURE","CLEANING & DOMESTIC SUPPLIES","2666","P116425-SERVICE-Cleaning materials",9/2/2022 00:00:00,"258929",13.08,"HY0043","HYGIENE SYSTEMS LTD",31/1/2022 00:00:00,27/2/2022 00:00:00,"P11-2022"
,"LEE VALLEY CAMPSITE","PREMISES RELATED EXPENDITURE","CLEANING & DOMESTIC SUPPLIES","2666","P116425-SERVICE-Cleaning materials",9/2/2022 00:00:00,"258930",91.52,"HY0043","HYGIENE SYSTEMS LTD",31/1/2022 00:00:00,27/2/2022 00:00:00,"P11-2022"
,"LEE VALLEY VELOPARK","PREMISES RELATED EXPENDITURE","CLEANING & DOMESTIC SUPPLIES","2666","P116335-SERVICE-Cleaning Supplies",14/2/2022 00:00:00,"259230",1239.76,"BR0025","BREEZE SOUTHERN LTD",31/1/2022 00:00:00,27/2/2022 00:00:00,"P11-2022"
,"LV HOCKEY AND TENNIS CENTRE","PREMISES RELATED EXPENDITURE","CLEANING & DOMESTIC SUPPLIES","2666","P113781-SERVICE-Hygiene services feb - mar 2022",7/2/2022 00:00:00,"258690",144.91,"PE0015","PHS GROUP PLC",31/1/2022 00:00:00,27/2/2022 00:00:00,"P11-2022"
,"LV HOCKEY AND TENNIS CENTRE","PREMISES RELATED EXPENDITURE","CLEANING & DOMESTIC SUPPLIES","2666","P113781-SERVICE-Hygiene prducts August - Dec 2021",7/2/2022 00:00:00,"258690",84.73,"PE0015","PHS GROUP PLC",31/1/2022 00:00:00,27/2/2022 00:00:00,"P11-2022"
,"LV HOCKEY AND TENNIS CENTRE","PREMISES RELATED EXPENDITURE","CLEANING & DOMESTIC SUPPLIES","2666","P113781-SERVICE-hygiene services",7/2/2022 00:00:00,"258690",135.18,"PE0015","PHS GROUP PLC",31/1/2022 00:00:00,27/2/2022 00:00:00,"P11-2022"
,"LV HOCKEY AND TENNIS CENTRE","PREMISES RELATED EXPENDITURE","CLEANING & DOMESTIC SUPPLIES","2666","P115141-SERVICE-cleaning supplies until March 2022",7/2/2022 00:00:00,"258726",158.91,"BR0025","BREEZE SOUTHERN LTD",31/1/2022 00:00:00,27/2/2022 00:00:00,"P11-2022"
,"LV HOCKEY AND TENNIS CENTRE","PREMISES RELATED EXPENDITURE","CLEANING & DOMESTIC SUPPLIES","2666","P116820-SERVICE-centre cleaning week ending feb 6th",27/2/2022 00:00:00,"259785",235.92,"CA0498","CASNA GROUP",31/1/2022 00:00:00,27/2/2022 00:00:00,"P11-2022"
,"LV LEISURE CENTRE CAMPSITE","PREMISES RELATED EXPENDITURE","CLEANING & DOMESTIC SUPPLIES","2666","P116708-SERVICE-Cleaning supplies",27/2/2022 00:00:00,"259818",95.54,"HY0043","HYGIENE SYSTEMS LTD",31/1/2022 00:00:00,27/2/2022 00:00:00,"P11-2022"
,"LEE VALLEY ATHLETICS CENTRE","PREMISES RELATED EXPENDITURE","CLEANING & DOMESTIC SUPPLIES","2666","P116479-SERVICE-CLEANING PRODUCTS - REF EMAIL  AMBER BEAKON 9",27/2/2022 00:00:00,"259289",388.02,"HY0043","HYGIENE SYSTEMS LTD",31/1/2022 00:00:00,27/2/2022 00:00:00,"P11-2022"
,"LEE VALLEY WHITE WATER CENTRE","PREMISES RELATED EXPENDITURE","CLEANING & DOMESTIC SUPPLIES","2666","P116398-SERVICE-Cleaning supplies",14/2/2022 00:00:00,"259062",126.47,"SU0595","SUMMIT HYGIENE LTD",31/1/2022 00:00:00,27/2/2022 00:00:00,"P11-2022"
"P&V","LEE VALLEY FARM HOLYFIELDHALL","TRANSPORT RELATED EXPENDITURE","TRANSPORT RUNNING EXPENSES","3333","P116420-SERVICE-Slurry Pit Power",7/2/2022 00:00:00,"258720",100,"BR0018","BRADSHAW ELECTRICAL LIMITED",31/1/2022 00:00:00,27/2/2022 00:00:00,"P11-2022"
"P&V","LEE VALLEY FARM HOLYFIELDHALL","TRANSPORT RELATED EXPENDITURE","TRANSPORT RUNNING EXPENSES","3333","P113981-SERVICE-Parts",8/2/2022 00:00:00,"258920",70.95,"GR0022","GROUP COMPONENTS LIMITED",31/1/2022 00:00:00,27/2/2022 00:00:00,"P11-2022"
"P&V","LEE VALLEY FARM HOLYFIELDHALL","TRANSPORT RELATED EXPENDITURE","TRANSPORT RUNNING EXPENSES","3333","P116055-SERVICE-5000ltrs Red Diesel",8/2/2022 00:00:00,"258944",3575,"HA0400","WATSON FUELS",31/1/2022 00:00:00,27/2/2022 00:00:00,"P11-2022"
"P&V","LEE VALLEY FARM HOLYFIELDHALL","TRANSPORT RELATED EXPENDITURE","TRANSPORT RUNNING EXPENSES","3333","P116418-SERVICE-Waste Oil Collection",7/2/2022 00:00:00,"258966",160,"AS0486","ASSOCIATED GARAGE SERVICES",31/1/2022 00:00:00,27/2/2022 00:00:00,"P11-2022"
"P&V","LEE VALLEY FARM HOLYFIELDHALL","TRANSPORT RELATED EXPENDITURE","TRANSPORT RUNNING EXPENSES","3333","P114205-SERVICE-Parts",16/2/2022 00:00:00,"259009",7.2,"RW0257","R. W. CRAWFORD AGRICULTURAL MACHINERY LTD",31/1/2022 00:00:00,27/2/2022 00:00:00,"P11-2022"
"P&V","LEE VALLEY FARM HOLYFIELDHALL","TRANSPORT RELATED EXPENDITURE","TRANSPORT RUNNING EXPENSES","3333","P116610-SERVICE-Parts",16/2/2022 00:00:00,"259021",55,"CO0395","COMPLETELY HYDRAULIC",31/1/2022 00:00:00,27/2/2022 00:00:00,"P11-2022"
"P&V","LEE VALLEY FARM HOLYFIELDHALL","TRANSPORT RELATED EXPENDITURE","TRANSPORT RUNNING EXPENSES","3333","P116610-SERVICE-Parts",16/2/2022 00:00:00,"259064",49.8,"CO0395","COMPLETELY HYDRAULIC",31/1/2022 00:00:00,27/2/2022 00:00:00,"P11-2022"
"P&V","LEE VALLEY FARM HOLYFIELDHALL","TRANSPORT RELATED EXPENDITURE","TRANSPORT RUNNING EXPENSES","3333","P116607-SERVICE-Various Parts",16/2/2022 00:00:00,"259188",179.52,"HY0447","J W HYDRAULICS LTD",31/1/2022 00:00:00,27/2/2022 00:00:00,"P11-2022"
"P&V","LEE VALLEY FARM HOLYFIELDHALL","TRANSPORT RELATED EXPENDITURE","TRANSPORT RUNNING EXPENSES","3333","P114237-SERVICE-Parts",22/2/2022 00:00:00,"259284",110,"SP0034","SPALDINGS (UK) LIMITED",31/1/2022 00:00:00,27/2/2022 00:00:00,"P11-2022"
"P&V","LEE VALLEY FARM HOLYFIELDHALL","TRANSPORT RELATED EXPENDITURE","TRANSPORT RUNNING EXPENSES","3333","P114237-SERVICE-Parts",27/2/2022 00:00:00,"259656",363,"SP0034","SPALDINGS (UK) LIMITED",31/1/2022 00:00:00,27/2/2022 00:00:00,"P11-2022"
"P&V","LEE VALLEY FARM HOLYFIELDHALL","TRANSPORT RELATED EXPENDITURE","TRANSPORT RUNNING EXPENSES","3333","P116719-SERVICE-Carriage",27/2/2022 00:00:00,"259797",12,"AG0440","AGRI-LINC LIMITED",31/1/2022 00:00:00,27/2/2022 00:00:00,"P11-2022"
"P&V","LEE VALLEY FARM HOLYFIELDHALL","TRANSPORT RELATED EXPENDITURE","TRANSPORT RUNNING EXPENSES","3333","P116719-SERVICE-Coulter Boot to Fit Simba Miniflow",27/2/2022 00:00:00,"259797",768,"AG0440","AGRI-LINC LIMITED",31/1/2022 00:00:00,27/2/2022 00:00:00,"P11-2022"
"P&V","FISHERIES MANAGEMENT","TRANSPORT RELATED EXPENDITURE","VEHICLE FUEL","3335","ALLSTAR BUSINESS SOLUTIONS LTD",7/2/2022 00:00:00,"258733",79.88,"AR0035","ALLSTAR BUSINESS SOLUTIONS LTD",31/1/2022 00:00:00,27/2/2022 00:00:00,"P11-2022"
,"LEE VALLEY MARINA STANSTEAD","TRANSPORT RELATED EXPENDITURE","VEHICLE FUEL","3335","ALLSTAR BUSINESS SOLUTIONS LTD",7/2/2022 00:00:00,"258733",73.38,"AR0035","ALLSTAR BUSINESS SOLUTIONS LTD",31/1/2022 00:00:00,27/2/2022 00:00:00,"P11-2022"
"P&V","LEE VALLEY FARM HOLYFIELDHALL","TRANSPORT RELATED EXPENDITURE","VEHICLE FUEL","3335","ALLSTAR BUSINESS SOLUTIONS LTD",7/2/2022 00:00:00,"258733",70.62,"AR0035","ALLSTAR BUSINESS SOLUTIONS LTD",31/1/2022 00:00:00,27/2/2022 00:00:00,"P11-2022"
,"LEE VALLEY CAMPSITE","TRANSPORT RELATED EXPENDITURE","VEHICLE FUEL","3335","ALLSTAR BUSINESS SOLUTIONS LTD",7/2/2022 00:00:00,"258733",50.56,"AR0035","ALLSTAR BUSINESS SOLUTIONS LTD",31/1/2022 00:00:00,27/2/2022 00:00:00,"P11-2022"
,"LEE VALLEY CARAVAN PARK","TRANSPORT RELATED EXPENDITURE","VEHICLE FUEL","3335","ALLSTAR BUSINESS SOLUTIONS LTD",7/2/2022 00:00:00,"258733",51.49,"AR0035","ALLSTAR BUSINESS SOLUTIONS LTD",31/1/2022 00:00:00,27/2/2022 00:00:00,"P11-2022"
"P&V","MYDDELTON HOUSE GARDENS","TRANSPORT RELATED EXPENDITURE","VEHICLE FUEL","3335","ALLSTAR BUSINESS SOLUTIONS LTD",7/2/2022 00:00:00,"258733",9.58,"AR0035","ALLSTAR BUSINESS SOLUTIONS LTD",31/1/2022 00:00:00,27/2/2022 00:00:00,"P11-2022"
"P&V","SOUTH AREA RANGERS","TRANSPORT RELATED EXPENDITURE","VEHICLE FUEL","3335","ALLSTAR BUSINESS SOLUTIONS LTD",7/2/2022 00:00:00,"258733",284.05,"AR0035","ALLSTAR BUSINESS SOLUTIONS LTD",31/1/2022 00:00:00,27/2/2022 00:00:00,"P11-2022"
"P&V","RIVER LEE COUNTRY PARK","TRANSPORT RELATED EXPENDITURE","VEHICLE FUEL","3335","ALLSTAR BUSINESS SOLUTIONS LTD",7/2/2022 00:00:00,"258732",10.45,"AR0035","ALLSTAR BUSINESS SOLUTIONS LTD",31/1/2022 00:00:00,27/2/2022 00:00:00,"P11-2022"
"P&V","RIVER LEE COUNTRY PARK","TRANSPORT RELATED EXPENDITURE","VEHICLE FUEL","3335","ALLSTAR BUSINESS SOLUTIONS LTD",7/2/2022 00:00:00,"258733",346.21,"AR0035","ALLSTAR BUSINESS SOLUTIONS LTD",31/1/2022 00:00:00,27/2/2022 00:00:00,"P11-2022"
"P&V","RIVER LEE COUNTRY PARK","TRANSPORT RELATED EXPENDITURE","VEHICLE FUEL","3335","ALLSTAR BUSINESS SOLUTIONS LTD",7/2/2022 00:00:00,"258733",83.6,"AR0035","ALLSTAR BUSINESS SOLUTIONS LTD",31/1/2022 00:00:00,27/2/2022 00:00:00,"P11-2022"
,"LV HOCKEY AND TENNIS CENTRE","TRANSPORT RELATED EXPENDITURE","VEHICLE FUEL","3335","ALLSTAR BUSINESS SOLUTIONS LTD",7/2/2022 00:00:00,"258733",19.86,"AR0035","ALLSTAR BUSINESS SOLUTIONS LTD",31/1/2022 00:00:00,27/2/2022 00:00:00,"P11-2022"
"P&V","NORTH AREA RANGERS","TRANSPORT RELATED EXPENDITURE","VEHICLE REPAIRS & MAINTENANCE","3338","P115984-SERVICE-Ifor Williams Big Cage Trailer Spares & Labou",27/2/2022 00:00:00,"258753",231.35,"TO0071","G T TOWING",31/1/2022 00:00:00,27/2/2022 00:00:00,"P11-2022"
"P&V","NORTH AREA RANGERS","TRANSPORT RELATED EXPENDITURE","VEHICLE REPAIRS & MAINTENANCE","3338","P115984-SERVICE-Ifor Williams Big Cage Trailer Spares & Labou",27/2/2022 00:00:00,"258942",53.94,"TO0071","G T TOWING",31/1/2022 00:00:00,27/2/2022 00:00:00,"P11-2022"
"P&V","NORTH AREA RANGERS","TRANSPORT RELATED EXPENDITURE","VEHICLE REPAIRS & MAINTENANCE","3338","P115984-SERVICE-Ifor Williams Long Wheel Base - Spares & Labo",27/2/2022 00:00:00,"258942",31.38,"TO0071","G T TOWING",31/1/2022 00:00:00,27/2/2022 00:00:00,"P11-2022"
"P&V","NORTH AREA RANGERS","TRANSPORT RELATED EXPENDITURE","VEHICLE REPAIRS & MAINTENANCE","3338","P115984-SERVICE-Ifor Williams Box Trailer - Spares & Labour",27/2/2022 00:00:00,"259026",166.12,"TO0071","G T TOWING",31/1/2022 00:00:00,27/2/2022 00:00:00,"P11-2022"
"P&V","NORTH AREA RANGERS","TRANSPORT RELATED EXPENDITURE","VEHICLE REPAIRS & MAINTENANCE","3338","P115984-SERVICE-Ifor Williams Long Wheel Base - Spares & Labo",27/2/2022 00:00:00,"259026",89.97,"TO0071","G T TOWING",31/1/2022 00:00:00,27/2/2022 00:00:00,"P11-2022"
"P&V","NORTH AREA RANGERS","TRANSPORT RELATED EXPENDITURE","VEHICLE REPAIRS & MAINTENANCE","3338","P115984-SERVICE-Trailer Service - Water Bowser SCH HBU900p",27/2/2022 00:00:00,"259026",90,"TO0071","G T TOWING",31/1/2022 00:00:00,27/2/2022 00:00:00,"P11-2022"
"P&V","NORTH AREA RANGERS","TRANSPORT RELATED EXPENDITURE","VEHICLE REPAIRS & MAINTENANCE","3338","P115984-SERVICE-Water Bowser SCH HBU900p - Spares & Labour",27/2/2022 00:00:00,"259026",49.2,"TO0071","G T TOWING",31/1/2022 00:00:00,27/2/2022 00:00:00,"P11-2022"
"P&V","NORTH AREA RANGERS","TRANSPORT RELATED EXPENDITURE","VEHICLE REPAIRS & MAINTENANCE","3338","P115984-SERVICE-Trailer Service - Ifor Williams Big Cage Trai",27/2/2022 00:00:00,"259281",24.51,"TO0071","G T TOWING",31/1/2022 00:00:00,27/2/2022 00:00:00,"P11-2022"
"P&V","NORTH AREA RANGERS","TRANSPORT RELATED EXPENDITURE","VEHICLE REPAIRS & MAINTENANCE","3338","P115984-SERVICE-Ifor Williams Trailer Spares P6 Trailer & Lab",27/2/2022 00:00:00,"259281",25.32,"TO0071","G T TOWING",31/1/2022 00:00:00,27/2/2022 00:00:00,"P11-2022"
"P&V","NORTH AREA RANGERS","TRANSPORT RELATED EXPENDITURE","VEHICLE REPAIRS & MAINTENANCE","3338","P115984-SERVICE-Ifor Williams Box Trailer - Spares & Labour",27/2/2022 00:00:00,"259281",89.37,"TO0071","G T TOWING",31/1/2022 00:00:00,27/2/2022 00:00:00,"P11-2022"
,"LV HOCKEY AND TENNIS CENTRE","TRANSPORT RELATED EXPENDITURE","VEHICLE REPAIRS & MAINTENANCE","3338","P116810-SERVICE-puncture repair",27/2/2022 00:00:00,"259557",130,"AP0245","APS LIMITED",31/1/2022 00:00:00,27/2/2022 00:00:00,"P11-2022"
,"LEE VALLEY RIDING CENTRE","TRANSPORT RELATED EXPENDITURE","VEHICLE REPAIRS & MAINTENANCE","3338","P114580-SERVICE-mule repairs",27/2/2022 00:00:00,"259649",496,"RW0257","R. W. CRAWFORD AGRICULTURAL MACHINERY LTD",31/1/2022 00:00:00,27/2/2022 00:00:00,"P11-2022"
,"LEE VALLEY MARINA SPRINGFIELD","SUPPLIES AND SERVICES","EQUIPMENT & MATERIALS","4111","P116138-SERVICE-De Icing salt & PPE",7/2/2022 00:00:00,"258697",239.99,"SA0008","SAFETEC DIRECT LTD",31/1/2022 00:00:00,27/2/2022 00:00:00,"P11-2022"
,"LEE VALLEY MARINA SPRINGFIELD","SUPPLIES AND SERVICES","EQUIPMENT & MATERIALS","4111","P116655-SERVICE-Workshop tools",22/2/2022 00:00:00,"259538",467.85,"ME0484","MERIDIAN ZERO DISTRIBUTION LIMITED",31/1/2022 00:00:00,27/2/2022 00:00:00,"P11-2022"
,"LEE VALLEY MARINA STANSTEAD","SUPPLIES AND SERVICES","EQUIPMENT & MATERIALS","4111","P116329-SERVICE-latch,screwdriver/drill bits, saw, cleaner",7/2/2022 00:00:00,"258883",91.87,"SC0057","SCREWFIX DIRECT LTD",31/1/2022 00:00:00,27/2/2022 00:00:00,"P11-2022"
,"STANSTEAD RECHARGEABLE WORKS","SUPPLIES AND SERVICES","EQUIPMENT & MATERIALS","4111","P116295-SERVICE-weld rods, cutting&grinding discs, gate pin",7/2/2022 00:00:00,"258704",351.5,"EN0309","PRH ENGINEERING LIMITED",31/1/2022 00:00:00,27/2/2022 00:00:00,"P11-2022"
,"STANSTEAD RECHARGEABLE WORKS","SUPPLIES AND SERVICES","EQUIPMENT & MATERIALS","4111","P116078-SERVICE-blacking",15/2/2022 00:00:00,"258765",1064.8,"SM0658","SML PAINTS AND COATINGS",31/1/2022 00:00:00,27/2/2022 00:00:00,"P11-2022"
,"STANSTEAD RECHARGEABLE WORKS","SUPPLIES AND SERVICES","EQUIPMENT & MATERIALS","4111","P116318-SERVICE-Calfire items for chandlery  010222",15/2/2022 00:00:00,"258978",154.72,"CA0660","CALFIRE SPARELINE LIMITED",31/1/2022 00:00:00,27/2/2022 00:00:00,"P11-2022"
,"STANSTEAD RECHARGEABLE WORKS","SUPPLIES AND SERVICES","EQUIPMENT & MATERIALS","4111","P116318-SERVICE-Calfire items for chandlery  010222",27/2/2022 00:00:00,"259667",26,"CA0660","CALFIRE SPARELINE LIMITED",31/1/2022 00:00:00,27/2/2022 00:00:00,"P11-2022"
,"LEE VALLEY CAMPSITE","SUPPLIES AND SERVICES","EQUIPMENT & MATERIALS","4111","P116438-SERVICE-padlocks",24/2/2022 00:00:00,"259043",15.99,"AM0406","AMAZON PAYMENTS UK LIMITED",31/1/2022 00:00:00,27/2/2022 00:00:00,"P11-2022"
,"LEE VALLEY CAMPSITE","SUPPLIES AND SERVICES","EQUIPMENT & MATERIALS","4111","P116031-SERVICE-6x Single Hot Plates",22/2/2022 00:00:00,"259317",30,"PA0348","PAUL JONES",31/1/2022 00:00:00,27/2/2022 00:00:00,"P11-2022"
,"LEE VALLEY CAMPSITE","SUPPLIES AND SERVICES","EQUIPMENT & MATERIALS","4111","P116559-SERVICE-Amazon supplies",24/2/2022 00:00:00,"259323",5.24,"AM0406","AMAZON PAYMENTS UK LIMITED",31/1/2022 00:00:00,27/2/2022 00:00:00,"P11-2022"
,"LEE VALLEY CAMPSITE","SUPPLIES AND SERVICES","EQUIPMENT & MATERIALS","4111","P116559-SERVICE-Amazon supplies",24/2/2022 00:00:00,"259324",29.12,"AM0406","AMAZON PAYMENTS UK LIMITED",31/1/2022 00:00:00,27/2/2022 00:00:00,"P11-2022"
,"LEE VALLEY CAMPSITE","SUPPLIES AND SERVICES","EQUIPMENT & MATERIALS","4111","P116559-SERVICE-Amazon supplies",24/2/2022 00:00:00,"259325",6.07,"AM0406","AMAZON PAYMENTS UK LIMITED",31/1/2022 00:00:00,27/2/2022 00:00:00,"P11-2022"
,"LEE VALLEY CAMPSITE","SUPPLIES AND SERVICES","EQUIPMENT & MATERIALS","4111","P116559-SERVICE-Amazon supplies",24/2/2022 00:00:00,"259326",20.17,"AM0406","AMAZON PAYMENTS UK LIMITED",31/1/2022 00:00:00,27/2/2022 00:00:00,"P11-2022"
,"LEE VALLEY CAMPSITE","SUPPLIES AND SERVICES","EQUIPMENT & MATERIALS","4111","P116705-SERVICE-Mattress protectors",27/2/2022 00:00:00,"259645",149.5,"AM0406","AMAZON PAYMENTS UK LIMITED",31/1/2022 00:00:00,27/2/2022 00:00:00,"P11-2022"
,"LEE VALLEY CARAVAN PARK","SUPPLIES AND SERVICES","EQUIPMENT & MATERIALS","4111","P116410-SERVICE-Paint",14/2/2022 00:00:00,"258693",40.45,"SC0057","SCREWFIX DIRECT LTD",31/1/2022 00:00:00,27/2/2022 00:00:00,"P11-2022"
,"LEE VALLEY CARAVAN PARK","SUPPLIES AND SERVICES","EQUIPMENT & MATERIALS","4111","P116704-SERVICE-Amazon Supplies",27/2/2022 00:00:00,"259642",4.16,"AM0406","AMAZON PAYMENTS UK LIMITED",31/1/2022 00:00:00,27/2/2022 00:00:00,"P11-2022"
,"LEE VALLEY CARAVAN PARK","SUPPLIES AND SERVICES","EQUIPMENT & MATERIALS","4111","P116704-SERVICE-Amazon Supplies",27/2/2022 00:00:00,"259643",68.78,"AM0406","AMAZON PAYMENTS UK LIMITED",31/1/2022 00:00:00,27/2/2022 00:00:00,"P11-2022"
,"LEE VALLEY CARAVAN PARK","SUPPLIES AND SERVICES","EQUIPMENT & MATERIALS","4111","P116704-SERVICE-Amazon Supplies",27/2/2022 00:00:00,"259644",9.99,"AM0406","AMAZON PAYMENTS UK LIMITED",31/1/2022 00:00:00,27/2/2022 00:00:00,"P11-2022"
"P&V","MYDDELTON HOUSE GARDENS","SUPPLIES AND SERVICES","EQUIPMENT & MATERIALS","4111","P116517-SERVICE-manure order feb 22",14/2/2022 00:00:00,"259196",838.33,"TH0051","THOMPSONS OF CREWS HILL LTD",31/1/2022 00:00:00,27/2/2022 00:00:00,"P11-2022"
"P&V","MYDDELTON HOUSE GARDENS","SUPPLIES AND SERVICES","EQUIPMENT & MATERIALS","4111","P115948-SERVICE-garden tools and equitment",24/2/2022 00:00:00,"259583",41.66,"CL0093","CLOCKHOUSE NURSERY",31/1/2022 00:00:00,27/2/2022 00:00:00,"P11-2022"
"P&V","SOUTH AREA RANGERS","SUPPLIES AND SERVICES","EQUIPMENT & MATERIALS","4111","P116422-SERVICE-1x  Assorted Cable Ties 1000 Pack - 45376",14/2/2022 00:00:00,"259066",14.16,"SC0057","SCREWFIX DIRECT LTD",31/1/2022 00:00:00,27/2/2022 00:00:00,"P11-2022"
"P&V","SOUTH AREA RANGERS","SUPPLIES AND SERVICES","EQUIPMENT & MATERIALS","4111","P116422-SERVICE-1x 20Ltr Euro Container - 47126",14/2/2022 00:00:00,"259066",15.82,"SC0057","SCREWFIX DIRECT LTD",31/1/2022 00:00:00,27/2/2022 00:00:00,"P11-2022"
"P&V","SOUTH AREA RANGERS","SUPPLIES AND SERVICES","EQUIPMENT & MATERIALS","4111","P116422-SERVICE-5x No Nonsense Paint Kettles - 60087",14/2/2022 00:00:00,"259066",6.63,"SC0057","SCREWFIX DIRECT LTD",31/1/2022 00:00:00,27/2/2022 00:00:00,"P11-2022"
"P&V","SOUTH AREA RANGERS","SUPPLIES AND SERVICES","EQUIPMENT & MATERIALS","4111","P116422-SERVICE-1x Hand Scrubbing Brush Stiff 10 Pack - 8806X",14/2/2022 00:00:00,"259066",0.03,"SC0057","SCREWFIX DIRECT LTD",31/1/2022 00:00:00,27/2/2022 00:00:00,"P11-2022"
"P&V","SOUTH AREA RANGERS","SUPPLIES AND SERVICES","EQUIPMENT & MATERIALS","4111","P116422-SERVICE-4x  Walsall Solid Wheel Barrow Tyres - 498HF",14/2/2022 00:00:00,"259066",78.26,"SC0057","SCREWFIX DIRECT LTD",31/1/2022 00:00:00,27/2/2022 00:00:00,"P11-2022"
"P&V","SOUTH AREA RANGERS","SUPPLIES AND SERVICES","EQUIPMENT & MATERIALS","4111","P116422-SERVICE-1x 3 Way Services Cabinet  Key - 16428",14/2/2022 00:00:00,"259066",1.9,"SC0057","SCREWFIX DIRECT LTD",31/1/2022 00:00:00,27/2/2022 00:00:00,"P11-2022"
"P&V","SOUTH AREA RANGERS","SUPPLIES AND SERVICES","EQUIPMENT & MATERIALS","4111","P116422-SERVICE-4x Wallace Sharps Bin - 8859F",14/2/2022 00:00:00,"259066",16.63,"SC0057","SCREWFIX DIRECT LTD",31/1/2022 00:00:00,27/2/2022 00:00:00,"P11-2022"
"P&V","SOUTH AREA RANGERS","SUPPLIES AND SERVICES","EQUIPMENT & MATERIALS","4111","P116703-SERVICE-2x AA Batteries Pk 8",24/2/2022 00:00:00,"259612",6.67,"BQ0164","TRADE UK ACCOUNT",31/1/2022 00:00:00,27/2/2022 00:00:00,"P11-2022"
"P&V","SOUTH AREA RANGERS","SUPPLIES AND SERVICES","EQUIPMENT & MATERIALS","4111","P116702-SERVICE-5x Scruibbing Brush",24/2/2022 00:00:00,"259613",7.08,"BQ0164","TRADE UK ACCOUNT",31/1/2022 00:00:00,27/2/2022 00:00:00,"P11-2022"
"P&V","SOUTH AREA RANGERS","SUPPLIES AND SERVICES","EQUIPMENT & MATERIALS","4111","P116702-SERVICE-2x Magnusson Brush set",24/2/2022 00:00:00,"259613",13.33,"BQ0164","TRADE UK ACCOUNT",31/1/2022 00:00:00,27/2/2022 00:00:00,"P11-2022"
"P&V","SOUTH AREA RANGERS","SUPPLIES AND SERVICES","EQUIPMENT & MATERIALS","4111","P116702-SERVICE-2x Dustpan & Brush Set",24/2/2022 00:00:00,"259613",2.67,"BQ0164","TRADE UK ACCOUNT",31/1/2022 00:00:00,27/2/2022 00:00:00,"P11-2022"
"P&V","SOUTH AREA RANGERS","SUPPLIES AND SERVICES","EQUIPMENT & MATERIALS","4111","P116702-SERVICE-4x Dry Powder Fire Extinguishers 0.6Kg",24/2/2022 00:00:00,"259613",43.33,"BQ0164","TRADE UK ACCOUNT",31/1/2022 00:00:00,27/2/2022 00:00:00,"P11-2022"
"P&V","SOUTH AREA RANGERS","SUPPLIES AND SERVICES","EQUIPMENT & MATERIALS","4111","P116702-SERVICE-1x Car Wash Brush Karcher",24/2/2022 00:00:00,"259613",7.2,"BQ0164","TRADE UK ACCOUNT",31/1/2022 00:00:00,27/2/2022 00:00:00,"P11-2022"
"P&V","RIVER LEE COUNTRY PARK","SUPPLIES AND SERVICES","EQUIPMENT & MATERIALS","4111","P115491-SERVICE-Delivery",22/2/2022 00:00:00,"259503",246,"ST0041","BROXAP LTD",31/1/2022 00:00:00,27/2/2022 00:00:00,"P11-2022"
"P&V","RIVER LEE COUNTRY PARK","SUPPLIES AND SERVICES","EQUIPMENT & MATERIALS","4111","P115491-SERVICE-3x Penwortham Benches in Hardwood",22/2/2022 00:00:00,"259503",1731,"ST0041","BROXAP LTD",31/1/2022 00:00:00,27/2/2022 00:00:00,"P11-2022"
"P&V","ALMOST WILD CAMPSITE","SUPPLIES AND SERVICES","EQUIPMENT & MATERIALS","4111","P116441-SERVICE-safari tent lights",24/2/2022 00:00:00,"259070",73.14,"AM0406","AMAZON PAYMENTS UK LIMITED",31/1/2022 00:00:00,27/2/2022 00:00:00,"P11-2022"
,"LEE VALLEY VELOPARK","SUPPLIES AND SERVICES","EQUIPMENT & MATERIALS","4111","P116493-SERVICE-18,000 Wristbands",14/2/2022 00:00:00,"259086",578,"JC0052","JC LEISURE CONNEXIONS LTD",31/1/2022 00:00:00,27/2/2022 00:00:00,"P11-2022"
,"LEE VALLEY VELOPARK","SUPPLIES AND SERVICES","EQUIPMENT & MATERIALS","4111","P115270-SERVICE-Full Face Helmets",22/2/2022 00:00:00,"259318",-1657.98,"IS0153","ISON DISTRIBUTION LIMITED",31/1/2022 00:00:00,27/2/2022 00:00:00,"P11-2022"
,"LEE VALLEY VELOPARK","SUPPLIES AND SERVICES","EQUIPMENT & MATERIALS","4111","P115270-SERVICE-Full Face Helmets",22/2/2022 00:00:00,"259319",5158.16,"IS0153","ISON DISTRIBUTION LIMITED",31/1/2022 00:00:00,27/2/2022 00:00:00,"P11-2022"
,"LV HOCKEY AND TENNIS CENTRE","SUPPLIES AND SERVICES","EQUIPMENT & MATERIALS","4111","P113854-SERVICE-balls and equipment for use",7/2/2022 00:00:00,"258698",330.15,"HE0386","HEAD UK LTD",31/1/2022 00:00:00,27/2/2022 00:00:00,"P11-2022"
,"LV HOCKEY AND TENNIS CENTRE","SUPPLIES AND SERVICES","EQUIPMENT & MATERIALS","4111","P116802-SERVICE-filter change",27/2/2022 00:00:00,"258760",130,"TA0272","TASTEBUDS VENDING LI MITED",31/1/2022 00:00:00,27/2/2022 00:00:00,"P11-2022"
,"LV HOCKEY AND TENNIS CENTRE","SUPPLIES AND SERVICES","EQUIPMENT & MATERIALS","4111","P116368-SERVICE-replacement batteries x 4",15/2/2022 00:00:00,"259051",237.5,"EA0286","EARS PLC",31/1/2022 00:00:00,27/2/2022 00:00:00,"P11-2022"
,"LV HOCKEY AND TENNIS CENTRE","SUPPLIES AND SERVICES","EQUIPMENT & MATERIALS","4111","P113854-SERVICE-balls and equipment for use",22/2/2022 00:00:00,"259501",442.4,"HE0386","HEAD UK LTD",31/1/2022 00:00:00,27/2/2022 00:00:00,"P11-2022"
,"LV HOCKEY AND TENNIS CENTRE","SUPPLIES AND SERVICES","EQUIPMENT & MATERIALS","4111","P116571-SERVICE-x10 ballasts",27/2/2022 00:00:00,"259599",226,"IN0159","INTERNATIONAL LAMPS LTD",31/1/2022 00:00:00,27/2/2022 00:00:00,"P11-2022"
,"LV HOCKEY AND TENNIS CENTRE","SUPPLIES AND SERVICES","EQUIPMENT & MATERIALS","4111","P116660-SERVICE-batteries replaced",27/2/2022 00:00:00,"259653",155.64,"CL0488","CLYMAC LIMITED",31/1/2022 00:00:00,27/2/2022 00:00:00,"P11-2022"
,"LV HOCKEY AND TENNIS CENTRE","SUPPLIES AND SERVICES","EQUIPMENT & MATERIALS","4111","P113852-SERVICE-trophies for comps",27/2/2022 00:00:00,"259839",13.33,"BW0107","B & W DARTS AND TROPHIES LTD",31/1/2022 00:00:00,27/2/2022 00:00:00,"P11-2022"
,"LV HOCKEY AND TENNIS CENTRE","SUPPLIES AND SERVICES","EQUIPMENT & MATERIALS","4111","P116596-SERVICE-replace case",27/2/2022 00:00:00,"259851",85,"EA0286","EARS PLC",31/1/2022 00:00:00,27/2/2022 00:00:00,"P11-2022"
,"LV HOCKEY AND TENNIS CENTRE","SUPPLIES AND SERVICES","EQUIPMENT & MATERIALS","4111","P116596-SERVICE-replace volume control",27/2/2022 00:00:00,"259851",85,"EA0286","EARS PLC",31/1/2022 00:00:00,27/2/2022 00:00:00,"P11-2022"
,"LV HOCKEY AND TENNIS CENTRE","SUPPLIES AND SERVICES","EQUIPMENT & MATERIALS","4111","P116596-SERVICE-x14 mag li ion batteries",27/2/2022 00:00:00,"259851",770,"EA0286","EARS PLC",31/1/2022 00:00:00,27/2/2022 00:00:00,"P11-2022"
,"LV HOCKEY AND TENNIS CENTRE","SUPPLIES AND SERVICES","EQUIPMENT & MATERIALS","4111","P114147-SERVICE-suremix 100",27/2/2022 00:00:00,"259928",16.8,"BO0015","BOC LTD",31/1/2022 00:00:00,27/2/2022 00:00:00,"P11-2022"
,"LEE VALLEY RIDING CENTRE","SUPPLIES AND SERVICES","EQUIPMENT & MATERIALS","4111","P116154-SERVICE-post and rails x50",27/2/2022 00:00:00,"259572",706.11,"FA0099","FARM & COUNTRY SUPPLIES LTD",31/1/2022 00:00:00,27/2/2022 00:00:00,"P11-2022"
,"LEE VALLEY RIDING CENTRE","SUPPLIES AND SERVICES","EQUIPMENT & MATERIALS","4111","P116526-SERVICE-parts",27/2/2022 00:00:00,"259816",158,"SU0398","SUPREME DOOR SPRING CO",31/1/2022 00:00:00,27/2/2022 00:00:00,"P11-2022"
,"LV LEISURE CENTRE CAMPSITE","SUPPLIES AND SERVICES","EQUIPMENT & MATERIALS","4111","P116152-SERVICE-Amazon supplies",9/2/2022 00:00:00,"258400",9.57,"AM0406","AMAZON PAYMENTS UK LIMITED",31/1/2022 00:00:00,27/2/2022 00:00:00,"P11-2022"
,"LV LEISURE CENTRE CAMPSITE","SUPPLIES AND SERVICES","EQUIPMENT & MATERIALS","4111","P116152-SERVICE-Amazon supplies",9/2/2022 00:00:00,"258401",9.57,"AM0406","AMAZON PAYMENTS UK LIMITED",31/1/2022 00:00:00,27/2/2022 00:00:00,"P11-2022"
,"LV LEISURE CENTRE CAMPSITE","SUPPLIES AND SERVICES","EQUIPMENT & MATERIALS","4111","P116152-SERVICE-Amazon supplies",9/2/2022 00:00:00,"258402",9.57,"AM0406","AMAZON PAYMENTS UK LIMITED",31/1/2022 00:00:00,27/2/2022 00:00:00,"P11-2022"
,"LV LEISURE CENTRE CAMPSITE","SUPPLIES AND SERVICES","EQUIPMENT & MATERIALS","4111","P116152-SERVICE-Amazon supplies",9/2/2022 00:00:00,"258403",9.57,"AM0406","AMAZON PAYMENTS UK LIMITED",31/1/2022 00:00:00,27/2/2022 00:00:00,"P11-2022"
,"LV LEISURE CENTRE CAMPSITE","SUPPLIES AND SERVICES","EQUIPMENT & MATERIALS","4111","P116152-SERVICE-Amazon supplies",9/2/2022 00:00:00,"258404",9.57,"AM0406","AMAZON PAYMENTS UK LIMITED",31/1/2022 00:00:00,27/2/2022 00:00:00,"P11-2022"
,"LV LEISURE CENTRE CAMPSITE","SUPPLIES AND SERVICES","EQUIPMENT & MATERIALS","4111","P116152-SERVICE-Amazon supplies",9/2/2022 00:00:00,"258405",9.57,"AM0406","AMAZON PAYMENTS UK LIMITED",31/1/2022 00:00:00,27/2/2022 00:00:00,"P11-2022"
,"LV LEISURE CENTRE CAMPSITE","SUPPLIES AND SERVICES","EQUIPMENT & MATERIALS","4111","P116152-SERVICE-Amazon supplies",9/2/2022 00:00:00,"258422",18,"AM0406","AMAZON PAYMENTS UK LIMITED",31/1/2022 00:00:00,27/2/2022 00:00:00,"P11-2022"
,"LV LEISURE CENTRE CAMPSITE","SUPPLIES AND SERVICES","EQUIPMENT & MATERIALS","4111","P116152-SERVICE-Amazon supplies",9/2/2022 00:00:00,"258423",6.66,"AM0406","AMAZON PAYMENTS UK LIMITED",31/1/2022 00:00:00,27/2/2022 00:00:00,"P11-2022"
,"LV LEISURE CENTRE CAMPSITE","SUPPLIES AND SERVICES","EQUIPMENT & MATERIALS","4111","P116416-SERVICE-paint,wood for the tepeee area",8/2/2022 00:00:00,"258935",125.28,"BQ0164","TRADE UK ACCOUNT",31/1/2022 00:00:00,27/2/2022 00:00:00,"P11-2022"
,"LV LEISURE CENTRE CAMPSITE","SUPPLIES AND SERVICES","EQUIPMENT & MATERIALS","4111","P116417-SERVICE-Wooden posts",8/2/2022 00:00:00,"258936",42.67,"BQ0164","TRADE UK ACCOUNT",31/1/2022 00:00:00,27/2/2022 00:00:00,"P11-2022"
,"LV LEISURE CENTRE CAMPSITE","SUPPLIES AND SERVICES","EQUIPMENT & MATERIALS","4111","P116439-SERVICE-stationary supplies",24/2/2022 00:00:00,"259044",2.91,"AM0406","AMAZON PAYMENTS UK LIMITED",31/1/2022 00:00:00,27/2/2022 00:00:00,"P11-2022"
,"LV LEISURE CENTRE CAMPSITE","SUPPLIES AND SERVICES","EQUIPMENT & MATERIALS","4111","P116535-SERVICE-paint and brushes",15/2/2022 00:00:00,"259067",80,"BQ0164","TRADE UK ACCOUNT",31/1/2022 00:00:00,27/2/2022 00:00:00,"P11-2022"
,"LV LEISURE CENTRE CAMPSITE","SUPPLIES AND SERVICES","EQUIPMENT & MATERIALS","4111","P116439-SERVICE-stationary supplies",24/2/2022 00:00:00,"259071",15.77,"AM0406","AMAZON PAYMENTS UK LIMITED",31/1/2022 00:00:00,27/2/2022 00:00:00,"P11-2022"
,"LV LEISURE CENTRE CAMPSITE","SUPPLIES AND SERVICES","EQUIPMENT & MATERIALS","4111","P116439-SERVICE-stationary supplies",24/2/2022 00:00:00,"259072",14.86,"AM0406","AMAZON PAYMENTS UK LIMITED",31/1/2022 00:00:00,27/2/2022 00:00:00,"P11-2022"
,"LV LEISURE CENTRE CAMPSITE","SUPPLIES AND SERVICES","EQUIPMENT & MATERIALS","4111","P116439-SERVICE-stationary supplies",24/2/2022 00:00:00,"259214",168.33,"AM0406","AMAZON PAYMENTS UK LIMITED",31/1/2022 00:00:00,27/2/2022 00:00:00,"P11-2022"
,"LV LEISURE CENTRE CAMPSITE","SUPPLIES AND SERVICES","EQUIPMENT & MATERIALS","4111","P116528-SERVICE-AMAZON SUPPLIES",24/2/2022 00:00:00,"259226",12.92,"AM0406","AMAZON PAYMENTS UK LIMITED",31/1/2022 00:00:00,27/2/2022 00:00:00,"P11-2022"
,"LV LEISURE CENTRE CAMPSITE","SUPPLIES AND SERVICES","EQUIPMENT & MATERIALS","4111","P116528-SERVICE-AMAZON SUPPLIES",24/2/2022 00:00:00,"259227",54.95,"AM0406","AMAZON PAYMENTS UK LIMITED",31/1/2022 00:00:00,27/2/2022 00:00:00,"P11-2022"
,"LV LEISURE CENTRE CAMPSITE","SUPPLIES AND SERVICES","EQUIPMENT & MATERIALS","4111","P116535-SERVICE-paint and brushes",15/2/2022 00:00:00,"259237",-3.33,"BQ0164","TRADE UK ACCOUNT",31/1/2022 00:00:00,27/2/2022 00:00:00,"P11-2022"
,"LV LEISURE CENTRE CAMPSITE","SUPPLIES AND SERVICES","EQUIPMENT & MATERIALS","4111","P116774-SERVICE-hotplates",27/2/2022 00:00:00,"259246",110,"PA0348","PAUL JONES",31/1/2022 00:00:00,27/2/2022 00:00:00,"P11-2022"
,"LV LEISURE CENTRE CAMPSITE","SUPPLIES AND SERVICES","EQUIPMENT & MATERIALS","4111","P116600-SERVICE-Rrigation tank/leak",24/2/2022 00:00:00,"259270",941.77,"SJ0635","SJS IRRIGATION",31/1/2022 00:00:00,27/2/2022 00:00:00,"P11-2022"
,"LV LEISURE CENTRE CAMPSITE","SUPPLIES AND SERVICES","EQUIPMENT & MATERIALS","4111","P116528-SERVICE-AMAZON SUPPLIES",24/2/2022 00:00:00,"259321",18.92,"AM0406","AMAZON PAYMENTS UK LIMITED",31/1/2022 00:00:00,27/2/2022 00:00:00,"P11-2022"
,"LV LEISURE CENTRE CAMPSITE","SUPPLIES AND SERVICES","EQUIPMENT & MATERIALS","4111","P116528-SERVICE-AMAZON SUPPLIES",24/2/2022 00:00:00,"259322",7.49,"AM0406","AMAZON PAYMENTS UK LIMITED",31/1/2022 00:00:00,27/2/2022 00:00:00,"P11-2022"
,"LV LEISURE CENTRE CAMPSITE","SUPPLIES AND SERVICES","EQUIPMENT & MATERIALS","4111","P116774-SERVICE-hotplates",27/2/2022 00:00:00,"259528",-110,"PA0348","PAUL JONES",31/1/2022 00:00:00,27/2/2022 00:00:00,"P11-2022"
,"LV LEISURE CENTRE CAMPSITE","SUPPLIES AND SERVICES","EQUIPMENT & MATERIALS","4111","P116650-SERVICE-Gtec edmonton",27/2/2022 00:00:00,"259665",475.75,"GE0440","GTEC'S",31/1/2022 00:00:00,27/2/2022 00:00:00,"P11-2022"
,"LV LEISURE CENTRE GOLF COURSE","SUPPLIES AND SERVICES","EQUIPMENT & MATERIALS","4111","P116750-SERVICE-Seton supplies",27/2/2022 00:00:00,"259524",68.95,"SE0018","BRADY CORPORATION LIMITED/SETON",31/1/2022 00:00:00,27/2/2022 00:00:00,"P11-2022"
,"LEE VALLEY ATHLETICS CENTRE","SUPPLIES AND SERVICES","EQUIPMENT & MATERIALS","4111","P115741-SERVICE-LVAC 2 X PV WEAR SHEETS AS PER EMAIL PMANSON",14/2/2022 00:00:00,"259016",4910,"PR0133","PROATHLETICS",31/1/2022 00:00:00,27/2/2022 00:00:00,"P11-2022"
,"LEE VALLEY ATHLETICS CENTRE","SUPPLIES AND SERVICES","EQUIPMENT & MATERIALS","4111","P116591-SERVICE-LVAC MEDALS ORDER 383625",22/2/2022 00:00:00,"259255",248.99,"IM0038","RUNNING IMP INTERNATIONAL SPORTS LTD",31/1/2022 00:00:00,27/2/2022 00:00:00,"P11-2022"
,"LEE VALLEY ATHLETICS CENTRE","SUPPLIES AND SERVICES","EQUIPMENT & MATERIALS","4111","P116521-SERVICE-LVAC 30 X WHITE GAFFER TAPE @ 3.00",23/2/2022 00:00:00,"259536",105.8,"LE0272","JP LENNARD LIMITED",31/1/2022 00:00:00,27/2/2022 00:00:00,"P11-2022"
,"LEE VALLEY ATHLETICS CENTRE","SUPPLIES AND SERVICES","EQUIPMENT & MATERIALS","4111","P116737-SERVICE-LVAC INV 1177 EDM & TIME CLOCK 5/1/22",24/2/2022 00:00:00,"259614",165,"PR0299","PRECISION ATHLETICS",31/1/2022 00:00:00,27/2/2022 00:00:00,"P11-2022"
,"LEE VALLEY ATHLETICS CENTRE","SUPPLIES AND SERVICES","EQUIPMENT & MATERIALS","4111","P116739-SERVICE-LVAC INV 1178 EDM + CLOCK 16/1/22",27/2/2022 00:00:00,"259615",165,"PR0299","PRECISION ATHLETICS",31/1/2022 00:00:00,27/2/2022 00:00:00,"P11-2022"
,"LEE VALLEY ATHLETICS CENTRE","SUPPLIES AND SERVICES","EQUIPMENT & MATERIALS","4111","P116740-SERVICE-LVAC INV 1179 EDM + CLOCK 29/1/22",27/2/2022 00:00:00,"259616",210,"PR0299","PRECISION ATHLETICS",31/1/2022 00:00:00,27/2/2022 00:00:00,"P11-2022"
,"LEE VALLEY ATHLETICS CENTRE","SUPPLIES AND SERVICES","EQUIPMENT & MATERIALS","4111","P116741-SERVICE-LVAC INV 1180 EDM + CLOCK 30/1/22",27/2/2022 00:00:00,"259617",225,"PR0299","PRECISION ATHLETICS",31/1/2022 00:00:00,27/2/2022 00:00:00,"P11-2022"
,"LEE VALLEY WHITE WATER CENTRE","SUPPLIES AND SERVICES","EQUIPMENT & MATERIALS","4111","P116151-SERVICE-Mats and Equip Blanket Order",7/2/2022 00:00:00,"258692",27.48,"AM0406","AMAZON PAYMENTS UK LIMITED",31/1/2022 00:00:00,27/2/2022 00:00:00,"P11-2022"
,"LEE VALLEY WHITE WATER CENTRE","SUPPLIES AND SERVICES","EQUIPMENT & MATERIALS","4111","P115547-SERVICE-Eaton Bussmann Series 20A F1 British",7/2/2022 00:00:00,"258768",45.82,"RS0046","RS COMPONENTS LIMITED",31/1/2022 00:00:00,27/2/2022 00:00:00,"P11-2022"
,"LEE VALLEY WHITE WATER CENTRE","SUPPLIES AND SERVICES","EQUIPMENT & MATERIALS","4111","P112373-SERVICE-Delivery",7/2/2022 00:00:00,"258770",4.95,"RS0046","RS COMPONENTS LIMITED",31/1/2022 00:00:00,27/2/2022 00:00:00,"P11-2022"
,"LEE VALLEY WHITE WATER CENTRE","SUPPLIES AND SERVICES","EQUIPMENT & MATERIALS","4111","P112373-SERVICE-1 x RS Pro 8A ceramic cartridge fuse 5 x 20mm",7/2/2022 00:00:00,"258770",1.6,"RS0046","RS COMPONENTS LIMITED",31/1/2022 00:00:00,27/2/2022 00:00:00,"P11-2022"
,"LEE VALLEY WHITE WATER CENTRE","SUPPLIES AND SERVICES","EQUIPMENT & MATERIALS","4111","P116151-SERVICE-Mats and Equip Blanket Order",8/2/2022 00:00:00,"258943",6.16,"AM0406","AMAZON PAYMENTS UK LIMITED",31/1/2022 00:00:00,27/2/2022 00:00:00,"P11-2022"
,"LEE VALLEY WHITE WATER CENTRE","SUPPLIES AND SERVICES","EQUIPMENT & MATERIALS","4111","P116151-SERVICE-Mats and Equip Blanket Order",8/2/2022 00:00:00,"258949",24.92,"AM0406","AMAZON PAYMENTS UK LIMITED",31/1/2022 00:00:00,27/2/2022 00:00:00,"P11-2022"
,"LEE VALLEY WHITE WATER CENTRE","SUPPLIES AND SERVICES","EQUIPMENT & MATERIALS","4111","P116286-SERVICE-Activities Equipment as per order dated",14/2/2022 00:00:00,"259041",1084.31,"PE0246","PEAK UK KAYAKING COMPANY LTD",31/1/2022 00:00:00,27/2/2022 00:00:00,"P11-2022"
,"LEE VALLEY WHITE WATER CENTRE","SUPPLIES AND SERVICES","EQUIPMENT & MATERIALS","4111","P116449-SERVICE-1 X 22NG-LXL NEOPRENE GLOVES",14/2/2022 00:00:00,"259042",12.89,"PE0246","PEAK UK KAYAKING COMPANY LTD",31/1/2022 00:00:00,27/2/2022 00:00:00,"P11-2022"
,"LEE VALLEY WHITE WATER CENTRE","SUPPLIES AND SERVICES","EQUIPMENT & MATERIALS","4111","P116449-SERVICE-1 X 22NG-XXL NEOPRENE GLOVES XXL",14/2/2022 00:00:00,"259042",12.89,"PE0246","PEAK UK KAYAKING COMPANY LTD",31/1/2022 00:00:00,27/2/2022 00:00:00,"P11-2022"
,"LEE VALLEY WHITE WATER CENTRE","SUPPLIES AND SERVICES","EQUIPMENT & MATERIALS","4111","P116449-SERVICE-1 X 22NG-SM NEOPRENE GLOVES SM",14/2/2022 00:00:00,"259042",12.89,"PE0246","PEAK UK KAYAKING COMPANY LTD",31/1/2022 00:00:00,27/2/2022 00:00:00,"P11-2022"
,"LEE VALLEY WHITE WATER CENTRE","SUPPLIES AND SERVICES","EQUIPMENT & MATERIALS","4111","P116151-SERVICE-Mats and Equip Blanket Order",14/2/2022 00:00:00,"259073",29.17,"AM0406","AMAZON PAYMENTS UK LIMITED",31/1/2022 00:00:00,27/2/2022 00:00:00,"P11-2022"
,"LEE VALLEY WHITE WATER CENTRE","SUPPLIES AND SERVICES","EQUIPMENT & MATERIALS","4111","P116533-SERVICE-Order as per emal sent on 07.02.22",22/2/2022 00:00:00,"259264",456.42,"CA0117","CABLE TIES DIRECT",31/1/2022 00:00:00,27/2/2022 00:00:00,"P11-2022"
,"LEE VALLEY CARAVAN PARK","SUPPLIES AND SERVICES","EQUIPMENT MAINTENANCE","4112","P116794-SERVICE-Preserver and brushes",27/2/2022 00:00:00,"259543",40.81,"SC0057","SCREWFIX DIRECT LTD",31/1/2022 00:00:00,27/2/2022 00:00:00,"P11-2022"
,"LV LEISURE CENTRE CAMPSITE","SUPPLIES AND SERVICES","EQUIPMENT MAINTENANCE","4112","P116283-SERVICE-EICR",7/2/2022 00:00:00,"258515",4650,"BR0018","BRADSHAW ELECTRICAL LIMITED",31/1/2022 00:00:00,27/2/2022 00:00:00,"P11-2022"
,"LV LEISURE CENTRE CAMPSITE","SUPPLIES AND SERVICES","EQUIPMENT MAINTENANCE","4112","P116384-SERVICE-Static disconnection",9/2/2022 00:00:00,"258702",60,"BR0018","BRADSHAW ELECTRICAL LIMITED",31/1/2022 00:00:00,27/2/2022 00:00:00,"P11-2022"
,"LV WHITE WATER CATERING","SUPPLIES AND SERVICES","EQUIPMENT MAINTENANCE","4112","P116284-SERVICE-mainenence",7/2/2022 00:00:00,"258670",514.85,"MA0417","MARSTAN FACILITIES LTD",31/1/2022 00:00:00,27/2/2022 00:00:00,"P11-2022"
"R&B","INFORMATION TECHNOLOGY","SUPPLIES AND SERVICES","IT CORE SYSTEMS","4113","P111362-SERVICE-Hosted Payroll May 21- March 22",14/2/2022 00:00:00,"258934",-542.51,"PA0453","PAYROLL BUSINESS SOLUTIONS LTD",31/1/2022 00:00:00,27/2/2022 00:00:00,"P11-2022"
"R&B","INFORMATION TECHNOLOGY","SUPPLIES AND SERVICES","IT CORE SYSTEMS","4113","P116561-SERVICE-CLMS Licence Fee, 2022-2023",22/2/2022 00:00:00,"259271",4355,"CR0526","CREATIVE LEARNING SYSTEMS",31/1/2022 00:00:00,27/2/2022 00:00:00,"P11-2022"
"R&B","INFORMATION TECHNOLOGY","SUPPLIES AND SERVICES","IT CORE SYSTEMS","4113","P116561-SERVICE-CLMS User Fee 4.30 Per Head",22/2/2022 00:00:00,"259271",860,"CR0526","CREATIVE LEARNING SYSTEMS",31/1/2022 00:00:00,27/2/2022 00:00:00,"P11-2022"
"R&B","INFORMATION TECHNOLOGY","SUPPLIES AND SERVICES","IT CORE SYSTEMS","4113","P116561-SERVICE-VINE Composica Authoring Tool Access (Develop",22/2/2022 00:00:00,"259271",900,"CR0526","CREATIVE LEARNING SYSTEMS",31/1/2022 00:00:00,27/2/2022 00:00:00,"P11-2022"
"R&B","INFORMATION TECHNOLOGY","SUPPLIES AND SERVICES","IT CORE SYSTEMS","4113","P116561-SERVICE-Managed Service Fee 220 Per Day",22/2/2022 00:00:00,"259271",660,"CR0526","CREATIVE LEARNING SYSTEMS",31/1/2022 00:00:00,27/2/2022 00:00:00,"P11-2022"
"R&B","INFORMATION TECHNOLOGY","SUPPLIES AND SERVICES","IT CORE SYSTEMS","4113","P116701-SERVICE-Monthly Fees 15 Feb 22 - 14 Mar 22",23/2/2022 00:00:00,"259371",351,"CO0440","VERIFONE SERVICES UK & IRELAND LTD",31/1/2022 00:00:00,27/2/2022 00:00:00,"P11-2022"
,"LSC INFORMATION TECHNOLOGY","SUPPLIES AND SERVICES","IT CORE SYSTEMS","4113","P113717-SERVICE-Verifone renewal for the ICP services for the",23/2/2022 00:00:00,"259369",652.31,"CO0440","VERIFONE SERVICES UK & IRELAND LTD",31/1/2022 00:00:00,27/2/2022 00:00:00,"P11-2022"
,"LSC INFORMATION TECHNOLOGY","SUPPLIES AND SERVICES","IT CORE SYSTEMS","4113","P113699-SERVICE-Page Band7 Payment - 12 Months - PAY-BA7-RET/",23/2/2022 00:00:00,"259370",375,"CO0440","VERIFONE SERVICES UK & IRELAND LTD",31/1/2022 00:00:00,27/2/2022 00:00:00,"P11-2022"
"R&B","INFORMATION TECHNOLOGY","SUPPLIES AND SERVICES","IT NETWORK & TELECOMS COSTS","4114","P111480-SERVICE-Monthly SIP Apr 21-Mar 22",7/2/2022 00:00:00,"258759",147.02,"FR0131","VOICEFLEX LTD",31/1/2022 00:00:00,27/2/2022 00:00:00,"P11-2022"
"R&B","INFORMATION TECHNOLOGY","SUPPLIES AND SERVICES","IT NETWORK & TELECOMS COSTS","4114","P116540-SERVICE-MPLS for all sites Feb 2022",14/2/2022 00:00:00,"259027",11996.86,"PP0200","PPSNET LIMITED",31/1/2022 00:00:00,27/2/2022 00:00:00,"P11-2022"
"P&V","MYDDELTON HOUSE","SUPPLIES AND SERVICES","IT HARDWARE & SOFTWARE COSTS","4116","ZEN INTERNET LTD",23/2/2022 00:00:00,"259256",42,"ZE0007","ZEN INTERNET LTD",31/1/2022 00:00:00,27/2/2022 00:00:00,"P11-2022"
"R&B","INFORMATION TECHNOLOGY","SUPPLIES AND SERVICES","IT HARDWARE & SOFTWARE COSTS","4116","P111692-SERVICE-Email filtering & large Files",14/2/2022 00:00:00,"259034",773,"IQ0022","IQUAL",31/1/2022 00:00:00,27/2/2022 00:00:00,"P11-2022"
,"LEE VALLEY MARINA SPRINGFIELD","SUPPLIES AND SERVICES","IT HARDWARE & SOFTWARE COSTS","4116","P116247-SERVICE-IP Dect base unit and 3 x handsets 219.50",14/2/2022 00:00:00,"259035",219.5,"IQ0022","IQUAL",31/1/2022 00:00:00,27/2/2022 00:00:00,"P11-2022"
,"LEE VALLEY MARINA SPRINGFIELD","SUPPLIES AND SERVICES","IT HARDWARE & SOFTWARE COSTS","4116","P116247-SERVICE-Avaya 3rd party licence",14/2/2022 00:00:00,"259035",138,"IQ0022","IQUAL",31/1/2022 00:00:00,27/2/2022 00:00:00,"P11-2022"
,"LEE VALLEY MARINA SPRINGFIELD","SUPPLIES AND SERVICES","IT HARDWARE & SOFTWARE COSTS","4116","ZEN INTERNET LTD",23/2/2022 00:00:00,"259330",38,"ZE0007","ZEN INTERNET LTD",31/1/2022 00:00:00,27/2/2022 00:00:00,"P11-2022"
,"LEE VALLEY MARINA STANSTEAD","SUPPLIES AND SERVICES","IT HARDWARE & SOFTWARE COSTS","4116","ZEN INTERNET LTD",23/2/2022 00:00:00,"259331",31.32,"ZE0007","ZEN INTERNET LTD",31/1/2022 00:00:00,27/2/2022 00:00:00,"P11-2022"
,"LEE VALLEY CARAVAN PARK","SUPPLIES AND SERVICES","IT HARDWARE & SOFTWARE COSTS","4116","P116541-SERVICE-Fibre connection Feb 2022",22/2/2022 00:00:00,"259028",835,"PP0200","PPSNET LIMITED",31/1/2022 00:00:00,27/2/2022 00:00:00,"P11-2022"
,"LEE VALLEY VELOPARK","SUPPLIES AND SERVICES","IT HARDWARE & SOFTWARE COSTS","4116","P116558-SERVICE-Dell Latitude 14"" - Intel Core i5-1135G7",23/2/2022 00:00:00,"259519",885,"IQ0022","IQUAL",31/1/2022 00:00:00,27/2/2022 00:00:00,"P11-2022"
,"LEE VALLEY VELOPARK","SUPPLIES AND SERVICES","IT HARDWARE & SOFTWARE COSTS","4116","P116558-SERVICE-carriage",23/2/2022 00:00:00,"259519",10,"IQ0022","IQUAL",31/1/2022 00:00:00,27/2/2022 00:00:00,"P11-2022"
,"LEE VALLEY RIDING CENTRE","SUPPLIES AND SERVICES","IT HARDWARE & SOFTWARE COSTS","4116","ZEN INTERNET LTD",14/2/2022 00:00:00,"259023",31.32,"ZE0007","ZEN INTERNET LTD",31/1/2022 00:00:00,27/2/2022 00:00:00,"P11-2022"
,"LEE VALLEY WHITE WATER CENTRE","SUPPLIES AND SERVICES","IT HARDWARE & SOFTWARE COSTS","4116","P116597-SERVICE-Drysuit repairs",22/2/2022 00:00:00,"259279",395.41,"HA0169","HAMMOND DRYSUITS LTD",31/1/2022 00:00:00,27/2/2022 00:00:00,"P11-2022"
,"LEE VALLEY ATHLETICS CENTRE","SUPPLIES AND SERVICES","VENDING AGREEMENTS","4117","BRAKE BROTHERS LIMITED",27/2/2022 00:00:00,"258217",45.85,"BR0019","BRAKE BROTHERS LIMITED",31/1/2022 00:00:00,27/2/2022 00:00:00,"P11-2022"
,"LEE VALLEY ATHLETICS CENTRE","SUPPLIES AND SERVICES","VENDING AGREEMENTS","4117","BRAKE BROTHERS LIMITED",27/2/2022 00:00:00,"258217",287.34,"BR0019","BRAKE BROTHERS LIMITED",31/1/2022 00:00:00,27/2/2022 00:00:00,"P11-2022"
,"LEE VALLEY ATHLETICS CENTRE","SUPPLIES AND SERVICES","VENDING AGREEMENTS","4117","BRAKE BROTHERS LIMITED",27/2/2022 00:00:00,"258217",-333.19,"BR0019","BRAKE BROTHERS LIMITED",31/1/2022 00:00:00,27/2/2022 00:00:00,"P11-2022"
,"LEE VALLEY ATHLETICS CENTRE","SUPPLIES AND SERVICES","VENDING AGREEMENTS","4117","P116278-SERVICE-LVAC INV 929949775 VENDING",27/2/2022 00:00:00,"258217",333.19,"BR0019","BRAKE BROTHERS LIMITED",31/1/2022 00:00:00,27/2/2022 00:00:00,"P11-2022"
,"LEE VALLEY ATHLETICS CENTRE","SUPPLIES AND SERVICES","VENDING AGREEMENTS","4117","BRAKE BROTHERS LIMITED",23/2/2022 00:00:00,"259308",476.4,"BR0019","BRAKE BROTHERS LIMITED",31/1/2022 00:00:00,27/2/2022 00:00:00,"P11-2022"
,"LEE VALLEY ATHLETICS CENTRE","SUPPLIES AND SERVICES","VENDING AGREEMENTS","4117","BRAKE BROTHERS LIMITED",23/2/2022 00:00:00,"259308",50.46,"BR0019","BRAKE BROTHERS LIMITED",31/1/2022 00:00:00,27/2/2022 00:00:00,"P11-2022"
,"LEE VALLEY ATHLETICS CENTRE","SUPPLIES AND SERVICES","VENDING AGREEMENTS","4117","BRAKE BROTHERS LIMITED",23/2/2022 00:00:00,"259308",-526.86,"BR0019","BRAKE BROTHERS LIMITED",31/1/2022 00:00:00,27/2/2022 00:00:00,"P11-2022"
,"LEE VALLEY ATHLETICS CENTRE","SUPPLIES AND SERVICES","VENDING AGREEMENTS","4117","P116710-SERVICE-LVAC STOCK INV 9299550727 11/2/22",23/2/2022 00:00:00,"259308",526.86,"BR0019","BRAKE BROTHERS LIMITED",31/1/2022 00:00:00,27/2/2022 00:00:00,"P11-2022"
,"LEE VALLEY ATHLETICS CENTRE","SUPPLIES AND SERVICES","VENDING AGREEMENTS","4117","P116733-SERVICE-LVAC STOCK INV P973649 16/2/22",24/2/2022 00:00:00,"259573",435.32,"RI0176","RIJO 42 INGREDIENTS LIMITED",31/1/2022 00:00:00,27/2/2022 00:00:00,"P11-2022"
,"LEE VALLEY ATHLETICS CENTRE","SUPPLIES AND SERVICES","VENDING AGREEMENTS","4117","RIJO 42 INGREDIENTS LIMITED",24/2/2022 00:00:00,"259573",-435.32,"RI0176","RIJO 42 INGREDIENTS LIMITED",31/1/2022 00:00:00,27/2/2022 00:00:00,"P11-2022"
,"LEE VALLEY ATHLETICS CENTRE","SUPPLIES AND SERVICES","VENDING AGREEMENTS","4117","RIJO 42 INGREDIENTS LIMITED",24/2/2022 00:00:00,"259573",113.4,"RI0176","RIJO 42 INGREDIENTS LIMITED",31/1/2022 00:00:00,27/2/2022 00:00:00,"P11-2022"
,"LEE VALLEY ATHLETICS CENTRE","SUPPLIES AND SERVICES","VENDING AGREEMENTS","4117","RIJO 42 INGREDIENTS LIMITED",24/2/2022 00:00:00,"259573",321.92,"RI0176","RIJO 42 INGREDIENTS LIMITED",31/1/2022 00:00:00,27/2/2022 00:00:00,"P11-2022"
,"LEE VALLEY MARINA SPRINGFIELD","SUPPLIES AND SERVICES","IT MAINTENANCE AGREEMENTS","4119","P116465-SERVICE-Supply & data Jan 22",14/2/2022 00:00:00,"258924",75.19,"CY0653","CYBERTILL",31/1/2022 00:00:00,27/2/2022 00:00:00,"P11-2022"
,"LEE VALLEY MARINA STANSTEAD","SUPPLIES AND SERVICES","IT MAINTENANCE AGREEMENTS","4119","P116465-SERVICE-Supply & data Jan 22",14/2/2022 00:00:00,"258924",75.2,"CY0653","CYBERTILL",31/1/2022 00:00:00,27/2/2022 00:00:00,"P11-2022"
,"LEE VALLEY CAMPSITE","SUPPLIES AND SERVICES","IT MAINTENANCE AGREEMENTS","4119","P114755-SERVICE-Monthly Subscription Nov 21 - Apr 22",23/2/2022 00:00:00,"259285",145.5,"NE0218","NETGUIDES LIMITED",31/1/2022 00:00:00,27/2/2022 00:00:00,"P11-2022"
,"LEE VALLEY CARAVAN PARK","SUPPLIES AND SERVICES","IT MAINTENANCE AGREEMENTS","4119","P114755-SERVICE-Monthly Subscriptions Nov 21 - April 22 DW",23/2/2022 00:00:00,"259285",145.5,"NE0218","NETGUIDES LIMITED",31/1/2022 00:00:00,27/2/2022 00:00:00,"P11-2022"
"P&V","ALMOST WILD CAMPSITE","SUPPLIES AND SERVICES","IT MAINTENANCE AGREEMENTS","4119","P114755-SERVICE-Monthly Subscription Nov 21 - April 22 AWC",23/2/2022 00:00:00,"259285",145.5,"NE0218","NETGUIDES LIMITED",31/1/2022 00:00:00,27/2/2022 00:00:00,"P11-2022"
,"LV LEISURE CENTRE CAMPSITE","SUPPLIES AND SERVICES","IT MAINTENANCE AGREEMENTS","4119","P114755-SERVICE-Monthly Subscription Nov 21 - April 22",23/2/2022 00:00:00,"259285",145.5,"NE0218","NETGUIDES LIMITED",31/1/2022 00:00:00,27/2/2022 00:00:00,"P11-2022"
,"LV LEISURE CENTRE GOLF COURSE","SUPPLIES AND SERVICES","IT MAINTENANCE AGREEMENTS","4119","P116380-SERVICE-Digitickets Services Jan 2022",8/2/2022 00:00:00,"258786",482.98,"DI0304","DIGITAL TICKETING SYSTEMS LTD (DIGITICKETS)",31/1/2022 00:00:00,27/2/2022 00:00:00,"P11-2022"
"P&V","SOUTH AREA RANGERS","SUPPLIES AND SERVICES","MATERIALS (LOCKS)","4124","P116800-SERVICE-2x Combi Padlocks",27/2/2022 00:00:00,"259866",33.32,"SC0057","SCREWFIX DIRECT LTD",31/1/2022 00:00:00,27/2/2022 00:00:00,"P11-2022"
,"LEE VALLEY CAMPSITE","SUPPLIES AND SERVICES","MATERIALS (GROUNDS MAINT)","4125","P116343-SERVICE-Fence paint for Campsite Maint",2/2/2022 00:00:00,"258465",70,"BQ0164","TRADE UK ACCOUNT",31/1/2022 00:00:00,27/2/2022 00:00:00,"P11-2022"
,"LEE VALLEY CAMPSITE","SUPPLIES AND SERVICES","MATERIALS (GROUNDS MAINT)","4125","P116590-SERVICE-site maintenance",16/2/2022 00:00:00,"259015",166.65,"BQ0164","TRADE UK ACCOUNT",31/1/2022 00:00:00,27/2/2022 00:00:00,"P11-2022"
,"LEE VALLEY CAMPSITE","SUPPLIES AND SERVICES","MATERIALS (GROUNDS MAINT)","4125","P116671-SERVICE-Car park markings",27/2/2022 00:00:00,"259593",800,"LI0251","LINEWAYS LTD",31/1/2022 00:00:00,27/2/2022 00:00:00,"P11-2022"
,"LEE VALLEY CAMPSITE","SUPPLIES AND SERVICES","MATERIALS (GROUNDS MAINT)","4125","P116672-SERVICE-2X 20mm shingle - Static Paths",27/2/2022 00:00:00,"259597",108.34,"TH0051","THOMPSONS OF CREWS HILL LTD",31/1/2022 00:00:00,27/2/2022 00:00:00,"P11-2022"
,"LV LEISURE CENTRE CAMPSITE","SUPPLIES AND SERVICES","MATERIALS (GROUNDS MAINT)","4125","P116387-SERVICE-Black gloss paint and brushes",14/2/2022 00:00:00,"258881",24.16,"BQ0164","TRADE UK ACCOUNT",31/1/2022 00:00:00,27/2/2022 00:00:00,"P11-2022"
,"LV LEISURE CENTRE CAMPSITE","SUPPLIES AND SERVICES","MATERIALS (GROUNDS MAINT)","4125","P116061-SERVICE-Maintenance supplies",8/2/2022 00:00:00,"258882",-24.16,"BQ0164","TRADE UK ACCOUNT",31/1/2022 00:00:00,27/2/2022 00:00:00,"P11-2022"
"P&V","MYDDELTON HOUSE GARDENS","SUPPLIES AND SERVICES","MATERIALS (PLANTS & SHRUBS)","4126","P116529-SERVICE-gardens plant order feb 22",22/2/2022 00:00:00,"259245",554.17,"BO0615","BOXTREES NURSERY LTD",31/1/2022 00:00:00,27/2/2022 00:00:00,"P11-2022"
"P&V","MYDDELTON HOUSE GARDENS","SUPPLIES AND SERVICES","MATERIALS (PLANTS & SHRUBS)","4126","P114813-SERVICE-Tulip Humilis Persian Pearl 6cm",27/2/2022 00:00:00,"259290",54,"PA0002","J PARKER DUTCH BULB WS LTD",31/1/2022 00:00:00,27/2/2022 00:00:00,"P11-2022"
"P&V","MYDDELTON HOUSE GARDENS","SUPPLIES AND SERVICES","MATERIALS (PLANTS & SHRUBS)","4126","P114813-SERVICE-Crocus Orange Monarch 5/6cm",27/2/2022 00:00:00,"259290",170,"PA0002","J PARKER DUTCH BULB WS LTD",31/1/2022 00:00:00,27/2/2022 00:00:00,"P11-2022"
"P&V","MYDDELTON HOUSE GARDENS","SUPPLIES AND SERVICES","MATERIALS (PLANTS & SHRUBS)","4126","P114813-SERVICE-bulb order october 2021",27/2/2022 00:00:00,"259290",190,"PA0002","J PARKER DUTCH BULB WS LTD",31/1/2022 00:00:00,27/2/2022 00:00:00,"P11-2022"
"P&V","MYDDELTON HOUSE GARDENS","SUPPLIES AND SERVICES","MATERIALS (PLANTS & SHRUBS)","4126","P114813-SERVICE-Crocus Gypsy Girl",27/2/2022 00:00:00,"259290",33,"PA0002","J PARKER DUTCH BULB WS LTD",31/1/2022 00:00:00,27/2/2022 00:00:00,"P11-2022"
"P&V","MYDDELTON HOUSE GARDENS","SUPPLIES AND SERVICES","MATERIALS (PLANTS & SHRUBS)","4126","P114813-SERVICE-Tulip Blushing Bride 11-12cm",27/2/2022 00:00:00,"259290",112,"PA0002","J PARKER DUTCH BULB WS LTD",31/1/2022 00:00:00,27/2/2022 00:00:00,"P11-2022"
"P&V","MYDDELTON HOUSE GARDENS","SUPPLIES AND SERVICES","MATERIALS (PLANTS & SHRUBS)","4126","P114813-SERVICE-Iris Reticulata Blue Note",27/2/2022 00:00:00,"259290",30,"PA0002","J PARKER DUTCH BULB WS LTD",31/1/2022 00:00:00,27/2/2022 00:00:00,"P11-2022"
"P&V","MYDDELTON HOUSE GARDENS","SUPPLIES AND SERVICES","MATERIALS (PLANTS & SHRUBS)","4126","P114813-SERVICE-Tulip Little Princess 6cm+",27/2/2022 00:00:00,"259290",45,"PA0002","J PARKER DUTCH BULB WS LTD",31/1/2022 00:00:00,27/2/2022 00:00:00,"P11-2022"
"P&V","MYDDELTON HOUSE GARDENS","SUPPLIES AND SERVICES","MATERIALS (PLANTS & SHRUBS)","4126","P114813-SERVICE-Tulip World Expression 11-12cm",27/2/2022 00:00:00,"259290",80,"PA0002","J PARKER DUTCH BULB WS LTD",31/1/2022 00:00:00,27/2/2022 00:00:00,"P11-2022"
"P&V","MYDDELTON HOUSE GARDENS","SUPPLIES AND SERVICES","MATERIALS (PLANTS & SHRUBS)","4126","P114813-SERVICE-Crocus Chrysanthus Herald",27/2/2022 00:00:00,"259290",51,"PA0002","J PARKER DUTCH BULB WS LTD",31/1/2022 00:00:00,27/2/2022 00:00:00,"P11-2022"
"P&V","MYDDLETON HSE HERITAGE CENTRE","SUPPLIES AND SERVICES","MATERIALS (PLANTS & SHRUBS)","4126","TAMAR ORGANICS",24/2/2022 00:00:00,"259358",35.1,"TA0591","TAMAR ORGANICS",31/1/2022 00:00:00,27/2/2022 00:00:00,"P11-2022"
"P&V","MYDDLETON HSE HERITAGE CENTRE","SUPPLIES AND SERVICES","MATERIALS (PLANTS & SHRUBS)","4126","TAMAR ORGANICS",24/2/2022 00:00:00,"259358",8.98,"TA0591","TAMAR ORGANICS",31/1/2022 00:00:00,27/2/2022 00:00:00,"P11-2022"
"P&V","MYDDLETON HSE HERITAGE CENTRE","SUPPLIES AND SERVICES","MATERIALS (PLANTS & SHRUBS)","4126","TAMAR ORGANICS",24/2/2022 00:00:00,"259358",-44.08,"TA0591","TAMAR ORGANICS",31/1/2022 00:00:00,27/2/2022 00:00:00,"P11-2022"
"P&V","MYDDLETON HSE HERITAGE CENTRE","SUPPLIES AND SERVICES","MATERIALS (PLANTS & SHRUBS)","4126","P115415-SERVICE-kitchen seed order 21",24/2/2022 00:00:00,"259358",44.08,"TA0591","TAMAR ORGANICS",31/1/2022 00:00:00,27/2/2022 00:00:00,"P11-2022"
"P&V","MYDDLETON HSE HERITAGE CENTRE","SUPPLIES AND SERVICES","MATERIALS (PLANTS & SHRUBS)","4126","P115417-SERVICE-kitchen seeds order 21",24/2/2022 00:00:00,"259365",39.81,"CH0298","CHILTERN SEEDS",31/1/2022 00:00:00,27/2/2022 00:00:00,"P11-2022"
"P&V","MYDDLETON HSE HERITAGE CENTRE","SUPPLIES AND SERVICES","MATERIALS (PLANTS & SHRUBS)","4126","CHILTERN SEEDS",24/2/2022 00:00:00,"259365",-39.81,"CH0298","CHILTERN SEEDS",31/1/2022 00:00:00,27/2/2022 00:00:00,"P11-2022"
"P&V","MYDDLETON HSE HERITAGE CENTRE","SUPPLIES AND SERVICES","MATERIALS (PLANTS & SHRUBS)","4126","CHILTERN SEEDS",24/2/2022 00:00:00,"259365",17.16,"CH0298","CHILTERN SEEDS",31/1/2022 00:00:00,27/2/2022 00:00:00,"P11-2022"
"P&V","MYDDLETON HSE HERITAGE CENTRE","SUPPLIES AND SERVICES","MATERIALS (PLANTS & SHRUBS)","4126","CHILTERN SEEDS",24/2/2022 00:00:00,"259365",22.65,"CH0298","CHILTERN SEEDS",31/1/2022 00:00:00,27/2/2022 00:00:00,"P11-2022"
"P&V","MYDDLETON HSE HERITAGE CENTRE","SUPPLIES AND SERVICES","MATERIALS (PLANTS & SHRUBS)","4126","P115419-SERVICE-kitchen seeds order 21",22/2/2022 00:00:00,"259372",10.4,"SE0670","SEA SPRING SEEDS",31/1/2022 00:00:00,27/2/2022 00:00:00,"P11-2022"
,"STANSTEAD RECHARGEABLE WORKS","SUPPLIES AND SERVICES","MATERIALS (TOOLS & PLANT)","4127","P115865-SERVICE-hire crane from Baldwins",22/2/2022 00:00:00,"258517",920,"BA0339","BALDWINS CRANE HIRE LTD",31/1/2022 00:00:00,27/2/2022 00:00:00,"P11-2022"
,"LEE VALLEY WHITE WATER CENTRE","SUPPLIES AND SERVICES","MATERIALS (CHEMICALS)","4131","P115989-SERVICE-Chemicals from Dec to March",7/2/2022 00:00:00,"258685",176.2,"AL0074","BRENNTAG UK GROUP LIMITED",31/1/2022 00:00:00,27/2/2022 00:00:00,"P11-2022"
,"LEE VALLEY WHITE WATER CENTRE","SUPPLIES AND SERVICES","MATERIALS (CHEMICALS)","4131","P115989-SERVICE-Chemicals from Dec to March",7/2/2022 00:00:00,"258686",427.76,"AL0074","BRENNTAG UK GROUP LIMITED",31/1/2022 00:00:00,27/2/2022 00:00:00,"P11-2022"
,"LEE VALLEY WHITE WATER CENTRE","SUPPLIES AND SERVICES","MATERIALS (CHEMICALS)","4131","P115989-SERVICE-Chemicals from Dec to March",16/2/2022 00:00:00,"259250",427.76,"AL0074","BRENNTAG UK GROUP LIMITED",31/1/2022 00:00:00,27/2/2022 00:00:00,"P11-2022"
,"LEE VALLEY WHITE WATER CENTRE","SUPPLIES AND SERVICES","MATERIALS (CHEMICALS)","4131","P115989-SERVICE-Chemicals from Dec to March",24/2/2022 00:00:00,"259562",348.12,"AL0074","BRENNTAG UK GROUP LIMITED",31/1/2022 00:00:00,27/2/2022 00:00:00,"P11-2022"
,"LEE VALLEY WHITE WATER CENTRE","SUPPLIES AND SERVICES","MATERIALS (CHEMICALS)","4131","P115989-SERVICE-Chemicals from Dec to March",24/2/2022 00:00:00,"259563",427.76,"AL0074","BRENNTAG UK GROUP LIMITED",31/1/2022 00:00:00,27/2/2022 00:00:00,"P11-2022"
,"LEE VALLEY WHITE WATER CENTRE","SUPPLIES AND SERVICES","MATERIALS (CHEMICALS)","4131","P115989-SERVICE-Chemicals from Dec to March",24/2/2022 00:00:00,"259564",206.2,"AL0074","BRENNTAG UK GROUP LIMITED",31/1/2022 00:00:00,27/2/2022 00:00:00,"P11-2022"
,"LEE VALLEY WHITE WATER CENTRE","SUPPLIES AND SERVICES","MATERIALS (CHEMICALS)","4131","P115989-SERVICE-Chemicals from Dec to March",27/2/2022 00:00:00,"259880",348.12,"AL0074","BRENNTAG UK GROUP LIMITED",31/1/2022 00:00:00,27/2/2022 00:00:00,"P11-2022"
,"LEE VALLEY CARAVAN PARK","SUPPLIES AND SERVICES","MATERIALS (MEDICAL)","4132","P116192-SERVICE-Defib bracket",24/2/2022 00:00:00,"259045",28.23,"AM0406","AMAZON PAYMENTS UK LIMITED",31/1/2022 00:00:00,27/2/2022 00:00:00,"P11-2022"
,"LEE VALLEY VELOPARK","SUPPLIES AND SERVICES","MATERIALS (MEDICAL)","4132","P116707-SERVICE-first aid order",27/2/2022 00:00:00,"259657",81.6,"FI0215","VALUE  PRODUCTS LTD",31/1/2022 00:00:00,27/2/2022 00:00:00,"P11-2022"
,"LEE VALLEY ATHLETICS CENTRE","SUPPLIES AND SERVICES","MATERIALS (MEDICAL)","4132","P116467-SERVICE-LVAC INV 0216 2 X 1ST AID 29TH/30TH JAN 2022",9/2/2022 00:00:00,"258946",720,"ES0406","ESSEX AMBULANCE SERVICE LTD",31/1/2022 00:00:00,27/2/2022 00:00:00,"P11-2022"
,"LEE VALLEY ATHLETICS CENTRE","SUPPLIES AND SERVICES","MATERIALS (MEDICAL)","4132","P116592-SERVICE-LVAC FORST TESPONDER 9.2.22 INV - 0223",22/2/2022 00:00:00,"259262",120,"ES0406","ESSEX AMBULANCE SERVICE LTD",31/1/2022 00:00:00,27/2/2022 00:00:00,"P11-2022"
,"LEE VALLEY ATHLETICS CENTRE","SUPPLIES AND SERVICES","MATERIALS (MEDICAL)","4132","P116735-SERVICE-LVAC INV 0233 WED 16TH SAT 19TH FEB 2022",24/2/2022 00:00:00,"259591",280,"ES0406","ESSEX AMBULANCE SERVICE LTD",31/1/2022 00:00:00,27/2/2022 00:00:00,"P11-2022"
,"LEE VALLEY WHITE WATER CENTRE","SUPPLIES AND SERVICES","MATERIALS (MEDICAL)","4132","P116480-SERVICE-FL0111 Extra Large Sterile Dressing",16/2/2022 00:00:00,"259234",22.2,"FI0215","VALUE  PRODUCTS LTD",31/1/2022 00:00:00,27/2/2022 00:00:00,"P11-2022"
,"LEE VALLEY WHITE WATER CENTRE","SUPPLIES AND SERVICES","MATERIALS (MEDICAL)","4132","P116480-SERVICE-3 x FL3167 Wallace Camoran",16/2/2022 00:00:00,"259234",16.2,"FI0215","VALUE  PRODUCTS LTD",31/1/2022 00:00:00,27/2/2022 00:00:00,"P11-2022"
,"LEE VALLEY WHITE WATER CENTRE","SUPPLIES AND SERVICES","MATERIALS (MEDICAL)","4132","P116480-SERVICE-2 x FL3154 Burns Gels & Dressings Pack",16/2/2022 00:00:00,"259234",10.9,"FI0215","VALUE  PRODUCTS LTD",31/1/2022 00:00:00,27/2/2022 00:00:00,"P11-2022"
,"LEE VALLEY WHITE WATER CENTRE","SUPPLIES AND SERVICES","MATERIALS (MEDICAL)","4132","P116480-SERVICE-21 x FL0006 Blue Detectable Assorted",16/2/2022 00:00:00,"259234",4.2,"FI0215","VALUE  PRODUCTS LTD",31/1/2022 00:00:00,27/2/2022 00:00:00,"P11-2022"
,"LEE VALLEY WHITE WATER CENTRE","SUPPLIES AND SERVICES","MATERIALS (MEDICAL)","4132","P116480-SERVICE-2 x Large Sterile Dressing",16/2/2022 00:00:00,"259234",14.4,"FI0215","VALUE  PRODUCTS LTD",31/1/2022 00:00:00,27/2/2022 00:00:00,"P11-2022"
,"LEE VALLEY WHITE WATER CENTRE","SUPPLIES AND SERVICES","MATERIALS (MEDICAL)","4132","P116480-SERVICE-2 x FL0120 Value Aid Adhesive Wound Dressings",16/2/2022 00:00:00,"259234",10.2,"FI0215","VALUE  PRODUCTS LTD",31/1/2022 00:00:00,27/2/2022 00:00:00,"P11-2022"
,"LEE VALLEY WHITE WATER CENTRE","SUPPLIES AND SERVICES","MATERIALS (MEDICAL)","4132","P116480-SERVICE-2 x Washproof Assorted Sterile Plasters",16/2/2022 00:00:00,"259234",8.4,"FI0215","VALUE  PRODUCTS LTD",31/1/2022 00:00:00,27/2/2022 00:00:00,"P11-2022"
,"LEE VALLEY WHITE WATER CENTRE","SUPPLIES AND SERVICES","MATERIALS (MEDICAL)","4132","P116480-SERVICE-2 x Medium Sterile Dressing",16/2/2022 00:00:00,"259234",13.5,"FI0215","VALUE  PRODUCTS LTD",31/1/2022 00:00:00,27/2/2022 00:00:00,"P11-2022"
,"LEE VALLEY WHITE WATER CENTRE","SUPPLIES AND SERVICES","MATERIALS (MEDICAL)","4132","P116480-SERVICE-2 x Value Aid Adhesive Wound Dressings Large",16/2/2022 00:00:00,"259234",17.6,"FI0215","VALUE  PRODUCTS LTD",31/1/2022 00:00:00,27/2/2022 00:00:00,"P11-2022"
,"LEE VALLEY WHITE WATER CENTRE","SUPPLIES AND SERVICES","MATERIALS (MEDICAL)","4132","P116480-SERVICE-2 x FL0229 Alcohol Free Cleansing Wipes",16/2/2022 00:00:00,"259234",9.8,"FI0215","VALUE  PRODUCTS LTD",31/1/2022 00:00:00,27/2/2022 00:00:00,"P11-2022"
,"LEE VALLEY WHITE WATER CENTRE","SUPPLIES AND SERVICES","MATERIALS (MEDICAL)","4132","P116480-SERVICE-1 x FL0102 Finger Sterile Dressing",16/2/2022 00:00:00,"259234",5.7,"FI0215","VALUE  PRODUCTS LTD",31/1/2022 00:00:00,27/2/2022 00:00:00,"P11-2022"
"P&V","LEE VALLEY FARM HOLYFIELDHALL","SUPPLIES AND SERVICES","FEED","4133","P116292-SERVICE-Nutrimol",7/2/2022 00:00:00,"258462",2183.46,"BO0246","FOR FARMERS UK LTD",31/1/2022 00:00:00,27/2/2022 00:00:00,"P11-2022"
"P&V","LEE VALLEY FARM HOLYFIELDHALL","SUPPLIES AND SERVICES","FEED","4133","P116458-SERVICE-Translac/Optima",8/2/2022 00:00:00,"258917",3299.82,"BO0246","FOR FARMERS UK LTD",31/1/2022 00:00:00,27/2/2022 00:00:00,"P11-2022"
"P&V","LEE VALLEY FARM HOLYFIELDHALL","SUPPLIES AND SERVICES","FEED","4133","P116766-SERVICE-Selco Plus",27/2/2022 00:00:00,"259603",3709.2,"BO0246","FOR FARMERS UK LTD",31/1/2022 00:00:00,27/2/2022 00:00:00,"P11-2022"
"P&V","LEE VALLEY FARM HOLYFIELDHALL","SUPPLIES AND SERVICES","FEED","4133","P116768-SERVICE-Topgrass",27/2/2022 00:00:00,"259661",940,"BO0246","FOR FARMERS UK LTD",31/1/2022 00:00:00,27/2/2022 00:00:00,"P11-2022"
,"LEE VALLEY RIDING CENTRE","SUPPLIES AND SERVICES","FEED","4133","P116805-SERVICE-feed supplies jan/feb 22",27/2/2022 00:00:00,"259355",2077.55,"DO0029","M C DOWLING & SONS",31/1/2022 00:00:00,27/2/2022 00:00:00,"P11-2022"
,"LEE VALLEY RIDING CENTRE","SUPPLIES AND SERVICES","FEED","4133","P116805-SERVICE-feed supplies jan/feb 22",27/2/2022 00:00:00,"259556",125.58,"DO0029","M C DOWLING & SONS",31/1/2022 00:00:00,27/2/2022 00:00:00,"P11-2022"
,"LEE VALLEY RIDING CENTRE","SUPPLIES AND SERVICES","FEED","4133","P116805-SERVICE-feed supplies jan/feb 22",27/2/2022 00:00:00,"259586",671.1,"DO0029","M C DOWLING & SONS",31/1/2022 00:00:00,27/2/2022 00:00:00,"P11-2022"
,"LEE VALLEY RIDING CENTRE","SUPPLIES AND SERVICES","FEED","4133","P116805-SERVICE-feed supplies jan/feb 22",27/2/2022 00:00:00,"259793",1125.77,"DO0029","M C DOWLING & SONS",31/1/2022 00:00:00,27/2/2022 00:00:00,"P11-2022"
,"LEE VALLEY RIDING CENTRE","SUPPLIES AND SERVICES","BEDDING","4134","M C DOWLING & SONS",7/2/2022 00:00:00,"258734",758.8,"DO0029","M C DOWLING & SONS",31/1/2022 00:00:00,27/2/2022 00:00:00,"P11-2022"
,"LEE VALLEY RIDING CENTRE","SUPPLIES AND SERVICES","BEDDING","4134","M C DOWLING & SONS",7/2/2022 00:00:00,"258734",724.5,"DO0029","M C DOWLING & SONS",31/1/2022 00:00:00,27/2/2022 00:00:00,"P11-2022"
,"LEE VALLEY RIDING CENTRE","SUPPLIES AND SERVICES","BEDDING","4134","M C DOWLING & SONS",7/2/2022 00:00:00,"258734",-1483.3,"DO0029","M C DOWLING & SONS",31/1/2022 00:00:00,27/2/2022 00:00:00,"P11-2022"
,"LEE VALLEY RIDING CENTRE","SUPPLIES AND SERVICES","BEDDING","4134","P115960-SERVICE-bedding",7/2/2022 00:00:00,"258734",1483.3,"DO0029","M C DOWLING & SONS",31/1/2022 00:00:00,27/2/2022 00:00:00,"P11-2022"
,"LEE VALLEY RIDING CENTRE","SUPPLIES AND SERVICES","BEDDING","4134","P115960-SERVICE-bedding",7/2/2022 00:00:00,"258735",2010.95,"DO0029","M C DOWLING & SONS",31/1/2022 00:00:00,27/2/2022 00:00:00,"P11-2022"
,"LEE VALLEY RIDING CENTRE","SUPPLIES AND SERVICES","BEDDING","4134","P115960-SERVICE-bedding",14/2/2022 00:00:00,"259012",1901.8,"DO0029","M C DOWLING & SONS",31/1/2022 00:00:00,27/2/2022 00:00:00,"P11-2022"
,"LEE VALLEY RIDING CENTRE","SUPPLIES AND SERVICES","BEDDING","4134","P115960-SERVICE-bedding",22/2/2022 00:00:00,"259356",720,"DO0029","M C DOWLING & SONS",31/1/2022 00:00:00,27/2/2022 00:00:00,"P11-2022"
,"LEE VALLEY RIDING CENTRE","SUPPLIES AND SERVICES","BEDDING","4134","P116805-SERVICE-bedding supplies feb 22",27/2/2022 00:00:00,"259556",1342.32,"DO0029","M C DOWLING & SONS",31/1/2022 00:00:00,27/2/2022 00:00:00,"P11-2022"
,"LEE VALLEY RIDING CENTRE","SUPPLIES AND SERVICES","BEDDING","4134","P116805-SERVICE-bedding supplies feb 22",27/2/2022 00:00:00,"259586",1594.95,"DO0029","M C DOWLING & SONS",31/1/2022 00:00:00,27/2/2022 00:00:00,"P11-2022"
,"LEE VALLEY RIDING CENTRE","SUPPLIES AND SERVICES","BEDDING","4134","P116805-SERVICE-bedding supplies feb 22",27/2/2022 00:00:00,"259793",700.18,"DO0029","M C DOWLING & SONS",31/1/2022 00:00:00,27/2/2022 00:00:00,"P11-2022"
"P&V","LEE VALLEY FARM HOLYFIELDHALL","SUPPLIES AND SERVICES","DAIRY SUNDRIES","4138","P114294-SERVICE-Dairy Sundries",7/2/2022 00:00:00,"258742",89.15,"MI0023","MILL DAIRY SERVICES",31/1/2022 00:00:00,27/2/2022 00:00:00,"P11-2022"
"P&V","LEE VALLEY FARM HOLYFIELDHALL","SUPPLIES AND SERVICES","DAIRY SUNDRIES","4138","P114294-SERVICE-Dairy Sundries",7/2/2022 00:00:00,"258743",120.48,"MI0023","MILL DAIRY SERVICES",31/1/2022 00:00:00,27/2/2022 00:00:00,"P11-2022"
"P&V","LEE VALLEY FARM HOLYFIELDHALL","SUPPLIES AND SERVICES","DAIRY SUNDRIES","4138","P116208-SERVICE-Dairy Sundries",7/2/2022 00:00:00,"258906",205.82,"FA0099","FARM & COUNTRY SUPPLIES LTD",31/1/2022 00:00:00,27/2/2022 00:00:00,"P11-2022"
"P&V","LEE VALLEY FARM HOLYFIELDHALL","SUPPLIES AND SERVICES","DAIRY SUNDRIES","4138","P116459-SERVICE-Dead Animal Removal",9/2/2022 00:00:00,"258992",125,"MA0074","W MARTIN & SON LIMITED",31/1/2022 00:00:00,27/2/2022 00:00:00,"P11-2022"
"P&V","LEE VALLEY FARM HOLYFIELDHALL","SUPPLIES AND SERVICES","DAIRY SUNDRIES","4138","P116459-SERVICE-Dead Animal Removal",22/2/2022 00:00:00,"259294",125,"MA0074","W MARTIN & SON LIMITED",31/1/2022 00:00:00,27/2/2022 00:00:00,"P11-2022"
"P&V","LEE VALLEY FARM HOLYFIELDHALL","SUPPLIES AND SERVICES","DAIRY SUNDRIES","4138","P116208-SERVICE-Dairy Sundries",27/2/2022 00:00:00,"259569",100.48,"FA0099","FARM & COUNTRY SUPPLIES LTD",31/1/2022 00:00:00,27/2/2022 00:00:00,"P11-2022"
"P&V","LEE VALLEY FARM HOLYFIELDHALL","SUPPLIES AND SERVICES","DAIRY SUNDRIES","4138","P116208-SERVICE-Dairy Sundries",27/2/2022 00:00:00,"259570",180,"FA0099","FARM & COUNTRY SUPPLIES LTD",31/1/2022 00:00:00,27/2/2022 00:00:00,"P11-2022"
"P&V","LEE VALLEY FARM HOLYFIELDHALL","SUPPLIES AND SERVICES","DAIRY SUNDRIES","4138","P114432-SERVICE-Dairy Sundries",27/2/2022 00:00:00,"259571",41.75,"FA0099","FARM & COUNTRY SUPPLIES LTD",31/1/2022 00:00:00,27/2/2022 00:00:00,"P11-2022"
"P&V","LEE VALLEY FARM HOLYFIELDHALL","SUPPLIES AND SERVICES","DAIRY SUNDRIES","4138","P116720-SERVICE-Professional Services",24/2/2022 00:00:00,"259636",331.65,"ST0648","STOCK 1ST LIVESTOCK SERVICES LTD",31/1/2022 00:00:00,27/2/2022 00:00:00,"P11-2022"
"P&V","LEE VALLEY FARM HOLYFIELDHALL","SUPPLIES AND SERVICES","DAIRY SUNDRIES","4138","P116459-SERVICE-Dead Animal Removal",27/2/2022 00:00:00,"259668",54,"MA0074","W MARTIN & SON LIMITED",31/1/2022 00:00:00,27/2/2022 00:00:00,"P11-2022"
,"LEE VALLEY VELOPARK CATERING","SUPPLIES AND SERVICES","FOOD AND DRINK PURCHASES","4140","BIDFOOD",9/2/2022 00:00:00,"258682",275.13,"360001","BIDFOOD",31/1/2022 00:00:00,27/2/2022 00:00:00,"P11-2022"
,"LEE VALLEY VELOPARK CATERING","SUPPLIES AND SERVICES","FOOD AND DRINK PURCHASES","4140","BIDFOOD",9/2/2022 00:00:00,"258682",-308.2,"360001","BIDFOOD",31/1/2022 00:00:00,27/2/2022 00:00:00,"P11-2022"
,"LEE VALLEY VELOPARK CATERING","SUPPLIES AND SERVICES","FOOD AND DRINK PURCHASES","4140","P116391-SERVICE-Food and Drink Order",9/2/2022 00:00:00,"258682",308.2,"360001","BIDFOOD",31/1/2022 00:00:00,27/2/2022 00:00:00,"P11-2022"
,"LEE VALLEY VELOPARK CATERING","SUPPLIES AND SERVICES","FOOD AND DRINK PURCHASES","4140","BIDFOOD",9/2/2022 00:00:00,"258682",33.07,"360001","BIDFOOD",31/1/2022 00:00:00,27/2/2022 00:00:00,"P11-2022"
,"LEE VALLEY VELOPARK CATERING","SUPPLIES AND SERVICES","FOOD AND DRINK PURCHASES","4140","P116397-SERVICE-Stocktaking",9/2/2022 00:00:00,"258748",282,"VE0038","VENNERS LTD",31/1/2022 00:00:00,27/2/2022 00:00:00,"P11-2022"
,"LEE VALLEY VELOPARK CATERING","SUPPLIES AND SERVICES","FOOD AND DRINK PURCHASES","4140","P116401-SERVICE-Brita Water Filter",9/2/2022 00:00:00,"258761",130,"TA0272","TASTEBUDS VENDING LI MITED",31/1/2022 00:00:00,27/2/2022 00:00:00,"P11-2022"
,"LEE VALLEY VELOPARK CATERING","SUPPLIES AND SERVICES","FOOD AND DRINK PURCHASES","4140","P116431-SERVICE-Food and Drink Order",9/2/2022 00:00:00,"258954",326.66,"360001","BIDFOOD",31/1/2022 00:00:00,27/2/2022 00:00:00,"P11-2022"
,"LEE VALLEY VELOPARK CATERING","SUPPLIES AND SERVICES","FOOD AND DRINK PURCHASES","4140","BIDFOOD",9/2/2022 00:00:00,"258954",-326.66,"360001","BIDFOOD",31/1/2022 00:00:00,27/2/2022 00:00:00,"P11-2022"
,"LEE VALLEY VELOPARK CATERING","SUPPLIES AND SERVICES","FOOD AND DRINK PURCHASES","4140","BIDFOOD",9/2/2022 00:00:00,"258954",187.88,"360001","BIDFOOD",31/1/2022 00:00:00,27/2/2022 00:00:00,"P11-2022"
,"LEE VALLEY VELOPARK CATERING","SUPPLIES AND SERVICES","FOOD AND DRINK PURCHASES","4140","BIDFOOD",9/2/2022 00:00:00,"258954",138.78,"360001","BIDFOOD",31/1/2022 00:00:00,27/2/2022 00:00:00,"P11-2022"
,"LEE VALLEY VELOPARK CATERING","SUPPLIES AND SERVICES","FOOD AND DRINK PURCHASES","4140","P116430-SERVICE-Food and Drink Order",9/2/2022 00:00:00,"258955",319.08,"360001","BIDFOOD",31/1/2022 00:00:00,27/2/2022 00:00:00,"P11-2022"
,"LEE VALLEY VELOPARK CATERING","SUPPLIES AND SERVICES","FOOD AND DRINK PURCHASES","4140","BIDFOOD",9/2/2022 00:00:00,"258956",302.58,"360001","BIDFOOD",31/1/2022 00:00:00,27/2/2022 00:00:00,"P11-2022"
,"LEE VALLEY VELOPARK CATERING","SUPPLIES AND SERVICES","FOOD AND DRINK PURCHASES","4140","P116432-SERVICE-Food and Drink Order",9/2/2022 00:00:00,"258956",408.52,"360001","BIDFOOD",31/1/2022 00:00:00,27/2/2022 00:00:00,"P11-2022"
,"LEE VALLEY VELOPARK CATERING","SUPPLIES AND SERVICES","FOOD AND DRINK PURCHASES","4140","BIDFOOD",9/2/2022 00:00:00,"258956",-408.52,"360001","BIDFOOD",31/1/2022 00:00:00,27/2/2022 00:00:00,"P11-2022"
,"LEE VALLEY VELOPARK CATERING","SUPPLIES AND SERVICES","FOOD AND DRINK PURCHASES","4140","BIDFOOD",9/2/2022 00:00:00,"258956",105.94,"360001","BIDFOOD",31/1/2022 00:00:00,27/2/2022 00:00:00,"P11-2022"
,"LEE VALLEY VELOPARK CATERING","SUPPLIES AND SERVICES","FOOD AND DRINK PURCHASES","4140","P116433-SERVICE-Food and Drink Order",9/2/2022 00:00:00,"258964",131.94,"360001","BIDFOOD",31/1/2022 00:00:00,27/2/2022 00:00:00,"P11-2022"
,"LEE VALLEY VELOPARK CATERING","SUPPLIES AND SERVICES","FOOD AND DRINK PURCHASES","4140","P116434-SERVICE-Food Order",9/2/2022 00:00:00,"258969",225.13,"SO0412","THE SOHO SANDWICH COMPANY",31/1/2022 00:00:00,27/2/2022 00:00:00,"P11-2022"
,"LEE VALLEY VELOPARK CATERING","SUPPLIES AND SERVICES","FOOD AND DRINK PURCHASES","4140","P116548-SERVICE-Food Order",14/2/2022 00:00:00,"259017",217.21,"SI0589","SIMPLY LUNCH LTD",31/1/2022 00:00:00,27/2/2022 00:00:00,"P11-2022"
,"LEE VALLEY VELOPARK CATERING","SUPPLIES AND SERVICES","FOOD AND DRINK PURCHASES","4140","P116550-SERVICE-Food and Drink Order",14/2/2022 00:00:00,"259048",215.81,"360001","BIDFOOD",31/1/2022 00:00:00,27/2/2022 00:00:00,"P11-2022"
,"LEE VALLEY VELOPARK CATERING","SUPPLIES AND SERVICES","FOOD AND DRINK PURCHASES","4140","BIDFOOD",14/2/2022 00:00:00,"259048",57.76,"360001","BIDFOOD",31/1/2022 00:00:00,27/2/2022 00:00:00,"P11-2022"
,"LEE VALLEY VELOPARK CATERING","SUPPLIES AND SERVICES","FOOD AND DRINK PURCHASES","4140","BIDFOOD",14/2/2022 00:00:00,"259048",158.05,"360001","BIDFOOD",31/1/2022 00:00:00,27/2/2022 00:00:00,"P11-2022"
,"LEE VALLEY VELOPARK CATERING","SUPPLIES AND SERVICES","FOOD AND DRINK PURCHASES","4140","BIDFOOD",14/2/2022 00:00:00,"259048",-215.81,"360001","BIDFOOD",31/1/2022 00:00:00,27/2/2022 00:00:00,"P11-2022"
,"LEE VALLEY VELOPARK CATERING","SUPPLIES AND SERVICES","FOOD AND DRINK PURCHASES","4140","P116550-SERVICE-Food and Drink Order",14/2/2022 00:00:00,"259075",-6.96,"360001","BIDFOOD",31/1/2022 00:00:00,27/2/2022 00:00:00,"P11-2022"
,"LEE VALLEY VELOPARK CATERING","SUPPLIES AND SERVICES","FOOD AND DRINK PURCHASES","4140","P116550-SERVICE-Food and Drink Order",14/2/2022 00:00:00,"259076",-125.8,"360001","BIDFOOD",31/1/2022 00:00:00,27/2/2022 00:00:00,"P11-2022"
,"LEE VALLEY VELOPARK CATERING","SUPPLIES AND SERVICES","FOOD AND DRINK PURCHASES","4140","BIDFOOD",14/2/2022 00:00:00,"259076",125.8,"360001","BIDFOOD",31/1/2022 00:00:00,27/2/2022 00:00:00,"P11-2022"
,"LEE VALLEY VELOPARK CATERING","SUPPLIES AND SERVICES","FOOD AND DRINK PURCHASES","4140","BIDFOOD",14/2/2022 00:00:00,"259076",-68.04,"360001","BIDFOOD",31/1/2022 00:00:00,27/2/2022 00:00:00,"P11-2022"
,"LEE VALLEY VELOPARK CATERING","SUPPLIES AND SERVICES","FOOD AND DRINK PURCHASES","4140","BIDFOOD",14/2/2022 00:00:00,"259076",-57.76,"360001","BIDFOOD",31/1/2022 00:00:00,27/2/2022 00:00:00,"P11-2022"
,"LEE VALLEY VELOPARK CATERING","SUPPLIES AND SERVICES","FOOD AND DRINK PURCHASES","4140","BIDFOOD",14/2/2022 00:00:00,"259077",281.03,"360001","BIDFOOD",31/1/2022 00:00:00,27/2/2022 00:00:00,"P11-2022"
,"LEE VALLEY VELOPARK CATERING","SUPPLIES AND SERVICES","FOOD AND DRINK PURCHASES","4140","BIDFOOD",14/2/2022 00:00:00,"259077",18.31,"360001","BIDFOOD",31/1/2022 00:00:00,27/2/2022 00:00:00,"P11-2022"
,"LEE VALLEY VELOPARK CATERING","SUPPLIES AND SERVICES","FOOD AND DRINK PURCHASES","4140","P116553-SERVICE-Food and Drink Order",14/2/2022 00:00:00,"259077",299.34,"360001","BIDFOOD",31/1/2022 00:00:00,27/2/2022 00:00:00,"P11-2022"
,"LEE VALLEY VELOPARK CATERING","SUPPLIES AND SERVICES","FOOD AND DRINK PURCHASES","4140","BIDFOOD",14/2/2022 00:00:00,"259077",-299.34,"360001","BIDFOOD",31/1/2022 00:00:00,27/2/2022 00:00:00,"P11-2022"
,"LEE VALLEY VELOPARK CATERING","SUPPLIES AND SERVICES","FOOD AND DRINK PURCHASES","4140","P116588-SERVICE-Food Order",23/2/2022 00:00:00,"259277",104.36,"PE0356","PETERS FOOD SERVICE LTD",31/1/2022 00:00:00,27/2/2022 00:00:00,"P11-2022"
,"LEE VALLEY VELOPARK CATERING","SUPPLIES AND SERVICES","FOOD AND DRINK PURCHASES","4140","P116689-SERVICE-Food and Drink Order",23/2/2022 00:00:00,"259337",191.25,"SI0589","SIMPLY LUNCH LTD",31/1/2022 00:00:00,27/2/2022 00:00:00,"P11-2022"
,"LEE VALLEY VELOPARK CATERING","SUPPLIES AND SERVICES","FOOD AND DRINK PURCHASES","4140","P116688-SERVICE-Food and Drink Order",23/2/2022 00:00:00,"259338",505.17,"SI0589","SIMPLY LUNCH LTD",31/1/2022 00:00:00,27/2/2022 00:00:00,"P11-2022"
,"LEE VALLEY VELOPARK CATERING","SUPPLIES AND SERVICES","FOOD AND DRINK PURCHASES","4140","P116553-SERVICE-Food and Drink Order",23/2/2022 00:00:00,"259347",-17.5,"360001","BIDFOOD",31/1/2022 00:00:00,27/2/2022 00:00:00,"P11-2022"
,"LEE VALLEY VELOPARK CATERING","SUPPLIES AND SERVICES","FOOD AND DRINK PURCHASES","4140","P116553-SERVICE-Food and Drink Order",23/2/2022 00:00:00,"259348",-11.65,"360001","BIDFOOD",31/1/2022 00:00:00,27/2/2022 00:00:00,"P11-2022"
,"LEE VALLEY VELOPARK CATERING","SUPPLIES AND SERVICES","FOOD AND DRINK PURCHASES","4140","P116692-SERVICE-Food and Drink Order",23/2/2022 00:00:00,"259351",612.47,"360001","BIDFOOD",31/1/2022 00:00:00,27/2/2022 00:00:00,"P11-2022"
,"LEE VALLEY VELOPARK CATERING","SUPPLIES AND SERVICES","FOOD AND DRINK PURCHASES","4140","BIDFOOD",23/2/2022 00:00:00,"259351",110.86,"360001","BIDFOOD",31/1/2022 00:00:00,27/2/2022 00:00:00,"P11-2022"
,"LEE VALLEY VELOPARK CATERING","SUPPLIES AND SERVICES","FOOD AND DRINK PURCHASES","4140","BIDFOOD",23/2/2022 00:00:00,"259351",501.61,"360001","BIDFOOD",31/1/2022 00:00:00,27/2/2022 00:00:00,"P11-2022"
,"LEE VALLEY VELOPARK CATERING","SUPPLIES AND SERVICES","FOOD AND DRINK PURCHASES","4140","BIDFOOD",23/2/2022 00:00:00,"259351",-612.47,"360001","BIDFOOD",31/1/2022 00:00:00,27/2/2022 00:00:00,"P11-2022"
,"LEE VALLEY VELOPARK CATERING","SUPPLIES AND SERVICES","FOOD AND DRINK PURCHASES","4140","P116553-SERVICE-Food and Drink Order",23/2/2022 00:00:00,"259352",-16.71,"360001","BIDFOOD",31/1/2022 00:00:00,27/2/2022 00:00:00,"P11-2022"
,"LEE VALLEY VELOPARK CATERING","SUPPLIES AND SERVICES","FOOD AND DRINK PURCHASES","4140","BIDFOOD",27/2/2022 00:00:00,"259513",235.6,"360001","BIDFOOD",31/1/2022 00:00:00,27/2/2022 00:00:00,"P11-2022"
,"LEE VALLEY VELOPARK CATERING","SUPPLIES AND SERVICES","FOOD AND DRINK PURCHASES","4140","P116696-SERVICE-Food and Drink Order",27/2/2022 00:00:00,"259513",320.21,"360001","BIDFOOD",31/1/2022 00:00:00,27/2/2022 00:00:00,"P11-2022"
,"LEE VALLEY VELOPARK CATERING","SUPPLIES AND SERVICES","FOOD AND DRINK PURCHASES","4140","BIDFOOD",27/2/2022 00:00:00,"259513",84.61,"360001","BIDFOOD",31/1/2022 00:00:00,27/2/2022 00:00:00,"P11-2022"
,"LEE VALLEY VELOPARK CATERING","SUPPLIES AND SERVICES","FOOD AND DRINK PURCHASES","4140","BIDFOOD",27/2/2022 00:00:00,"259513",-320.21,"360001","BIDFOOD",31/1/2022 00:00:00,27/2/2022 00:00:00,"P11-2022"
,"LEE VALLEY VELOPARK CATERING","SUPPLIES AND SERVICES","FOOD AND DRINK PURCHASES","4140","P116786-SERVICE-Food and Drink Order",27/2/2022 00:00:00,"259541",485.49,"360001","BIDFOOD",31/1/2022 00:00:00,27/2/2022 00:00:00,"P11-2022"
,"LEE VALLEY VELOPARK CATERING","SUPPLIES AND SERVICES","FOOD AND DRINK PURCHASES","4140","BIDFOOD",27/2/2022 00:00:00,"259541",-485.49,"360001","BIDFOOD",31/1/2022 00:00:00,27/2/2022 00:00:00,"P11-2022"
,"LEE VALLEY VELOPARK CATERING","SUPPLIES AND SERVICES","FOOD AND DRINK PURCHASES","4140","BIDFOOD",27/2/2022 00:00:00,"259541",406.93,"360001","BIDFOOD",31/1/2022 00:00:00,27/2/2022 00:00:00,"P11-2022"
,"LEE VALLEY VELOPARK CATERING","SUPPLIES AND SERVICES","FOOD AND DRINK PURCHASES","4140","BIDFOOD",27/2/2022 00:00:00,"259541",78.56,"360001","BIDFOOD",31/1/2022 00:00:00,27/2/2022 00:00:00,"P11-2022"
,"LEE VALLEY VELOPARK CATERING","SUPPLIES AND SERVICES","FOOD AND DRINK PURCHASES","4140","P116787-SERVICE-Coffee Products",27/2/2022 00:00:00,"259555",408.7,"RO0216","ROMBOUTS COFFEE GB LIMITED",31/1/2022 00:00:00,27/2/2022 00:00:00,"P11-2022"
,"LEE VALLEY VELOPARK CATERING","SUPPLIES AND SERVICES","FOOD AND DRINK PURCHASES","4140","P116788-SERVICE-Food Order",27/2/2022 00:00:00,"259574",150.48,"SI0589","SIMPLY LUNCH LTD",31/1/2022 00:00:00,27/2/2022 00:00:00,"P11-2022"
,"LEE VALLEY VELOPARK CATERING","SUPPLIES AND SERVICES","FOOD AND DRINK PURCHASES","4140","BIDFOOD",27/2/2022 00:00:00,"259608",485.49,"360001","BIDFOOD",31/1/2022 00:00:00,27/2/2022 00:00:00,"P11-2022"
,"LEE VALLEY VELOPARK CATERING","SUPPLIES AND SERVICES","FOOD AND DRINK PURCHASES","4140","BIDFOOD",27/2/2022 00:00:00,"259608",-78.56,"360001","BIDFOOD",31/1/2022 00:00:00,27/2/2022 00:00:00,"P11-2022"
,"LEE VALLEY VELOPARK CATERING","SUPPLIES AND SERVICES","FOOD AND DRINK PURCHASES","4140","BIDFOOD",27/2/2022 00:00:00,"259608",-406.93,"360001","BIDFOOD",31/1/2022 00:00:00,27/2/2022 00:00:00,"P11-2022"
,"LEE VALLEY VELOPARK CATERING","SUPPLIES AND SERVICES","FOOD AND DRINK PURCHASES","4140","P116786-SERVICE-Food and Drink Order",27/2/2022 00:00:00,"259608",-485.49,"360001","BIDFOOD",31/1/2022 00:00:00,27/2/2022 00:00:00,"P11-2022"
,"LV HOCKEY AND TENNIS CATERING","SUPPLIES AND SERVICES","FOOD AND DRINK PURCHASES","4140","P116803-SERVICE-food and drink supplies",27/2/2022 00:00:00,"259047",338.08,"360001","BIDFOOD",31/1/2022 00:00:00,27/2/2022 00:00:00,"P11-2022"
,"LV HOCKEY AND TENNIS CATERING","SUPPLIES AND SERVICES","FOOD AND DRINK PURCHASES","4140","BIDFOOD",27/2/2022 00:00:00,"259049",154.18,"360001","BIDFOOD",31/1/2022 00:00:00,27/2/2022 00:00:00,"P11-2022"
,"LV HOCKEY AND TENNIS CATERING","SUPPLIES AND SERVICES","FOOD AND DRINK PURCHASES","4140","P114249-SERVICE-food and drink prders",27/2/2022 00:00:00,"259049",409.4,"360001","BIDFOOD",31/1/2022 00:00:00,27/2/2022 00:00:00,"P11-2022"
,"LV HOCKEY AND TENNIS CATERING","SUPPLIES AND SERVICES","FOOD AND DRINK PURCHASES","4140","BIDFOOD",27/2/2022 00:00:00,"259049",-409.4,"360001","BIDFOOD",31/1/2022 00:00:00,27/2/2022 00:00:00,"P11-2022"
,"LV HOCKEY AND TENNIS CATERING","SUPPLIES AND SERVICES","FOOD AND DRINK PURCHASES","4140","BIDFOOD",27/2/2022 00:00:00,"259049",255.22,"360001","BIDFOOD",31/1/2022 00:00:00,27/2/2022 00:00:00,"P11-2022"
,"LV HOCKEY AND TENNIS CATERING","SUPPLIES AND SERVICES","FOOD AND DRINK PURCHASES","4140","BIDFOOD",27/2/2022 00:00:00,"259074",1013.13,"360001","BIDFOOD",31/1/2022 00:00:00,27/2/2022 00:00:00,"P11-2022"
,"LV HOCKEY AND TENNIS CATERING","SUPPLIES AND SERVICES","FOOD AND DRINK PURCHASES","4140","BIDFOOD",27/2/2022 00:00:00,"259074",479.21,"360001","BIDFOOD",31/1/2022 00:00:00,27/2/2022 00:00:00,"P11-2022"
,"LV HOCKEY AND TENNIS CATERING","SUPPLIES AND SERVICES","FOOD AND DRINK PURCHASES","4140","P116803-SERVICE-food and drink supplies",27/2/2022 00:00:00,"259074",1492.34,"360001","BIDFOOD",31/1/2022 00:00:00,27/2/2022 00:00:00,"P11-2022"
,"LV HOCKEY AND TENNIS CATERING","SUPPLIES AND SERVICES","FOOD AND DRINK PURCHASES","4140","BIDFOOD",27/2/2022 00:00:00,"259074",-1492.34,"360001","BIDFOOD",31/1/2022 00:00:00,27/2/2022 00:00:00,"P11-2022"
,"LV HOCKEY AND TENNIS CATERING","SUPPLIES AND SERVICES","FOOD AND DRINK PURCHASES","4140","P113682-SERVICE-X24 CASES OF BEER",27/2/2022 00:00:00,"259311",432,"FI0193","FIVE STAR CATERING LTD",31/1/2022 00:00:00,27/2/2022 00:00:00,"P11-2022"
,"LV HOCKEY AND TENNIS CATERING","SUPPLIES AND SERVICES","FOOD AND DRINK PURCHASES","4140","P113682-SERVICE-agreement with M patten",27/2/2022 00:00:00,"259311",472.65,"FI0193","FIVE STAR CATERING LTD",31/1/2022 00:00:00,27/2/2022 00:00:00,"P11-2022"
,"LV WHITE WATER CATERING","SUPPLIES AND SERVICES","FOOD AND DRINK PURCHASES","4140","P116262-SERVICE-kitchen food",7/2/2022 00:00:00,"258647",400,"360001","BIDFOOD",31/1/2022 00:00:00,27/2/2022 00:00:00,"P11-2022"
,"LV WHITE WATER CATERING","SUPPLIES AND SERVICES","FOOD AND DRINK PURCHASES","4140","P115807-SERVICE-food",7/2/2022 00:00:00,"258647",91.45,"360001","BIDFOOD",31/1/2022 00:00:00,27/2/2022 00:00:00,"P11-2022"
,"LV WHITE WATER CATERING","SUPPLIES AND SERVICES","FOOD AND DRINK PURCHASES","4140","P116261-SERVICE-milk",7/2/2022 00:00:00,"258663",157.2,"360001","BIDFOOD",31/1/2022 00:00:00,27/2/2022 00:00:00,"P11-2022"
,"LV WHITE WATER CATERING","SUPPLIES AND SERVICES","FOOD AND DRINK PURCHASES","4140","P116205-SERVICE-sandwiches",7/2/2022 00:00:00,"258725",247.38,"AN0324","ANCHOR CATERING",31/1/2022 00:00:00,27/2/2022 00:00:00,"P11-2022"
,"LV WHITE WATER CATERING","SUPPLIES AND SERVICES","FOOD AND DRINK PURCHASES","4140","P116626-SERVICE-cups",27/2/2022 00:00:00,"258919",219.38,"CA0585","CAFE CONNECTIONS",31/1/2022 00:00:00,27/2/2022 00:00:00,"P11-2022"
,"LV WHITE WATER CATERING","SUPPLIES AND SERVICES","FOOD AND DRINK PURCHASES","4140","BIDFOOD",14/2/2022 00:00:00,"258965",244.01,"360001","BIDFOOD",31/1/2022 00:00:00,27/2/2022 00:00:00,"P11-2022"
,"LV WHITE WATER CATERING","SUPPLIES AND SERVICES","FOOD AND DRINK PURCHASES","4140","BIDFOOD",14/2/2022 00:00:00,"258965",17.29,"360001","BIDFOOD",31/1/2022 00:00:00,27/2/2022 00:00:00,"P11-2022"
,"LV WHITE WATER CATERING","SUPPLIES AND SERVICES","FOOD AND DRINK PURCHASES","4140","BIDFOOD",14/2/2022 00:00:00,"258965",-261.3,"360001","BIDFOOD",31/1/2022 00:00:00,27/2/2022 00:00:00,"P11-2022"
,"LV WHITE WATER CATERING","SUPPLIES AND SERVICES","FOOD AND DRINK PURCHASES","4140","P116244-SERVICE-front of housed staff",14/2/2022 00:00:00,"258965",261.3,"360001","BIDFOOD",31/1/2022 00:00:00,27/2/2022 00:00:00,"P11-2022"
,"LV WHITE WATER CATERING","SUPPLIES AND SERVICES","FOOD AND DRINK PURCHASES","4140","P116330-SERVICE-sandwiches",14/2/2022 00:00:00,"258986",310.64,"AN0324","ANCHOR CATERING",31/1/2022 00:00:00,27/2/2022 00:00:00,"P11-2022"
,"LV WHITE WATER CATERING","SUPPLIES AND SERVICES","FOOD AND DRINK PURCHASES","4140","P116510-SERVICE-coffee",15/2/2022 00:00:00,"259239",502.1,"RO0216","ROMBOUTS COFFEE GB LIMITED",31/1/2022 00:00:00,27/2/2022 00:00:00,"P11-2022"
,"LV WHITE WATER CATERING","SUPPLIES AND SERVICES","FOOD AND DRINK PURCHASES","4140","P116511-SERVICE-kitchen food",15/2/2022 00:00:00,"259267",200.35,"360001","BIDFOOD",31/1/2022 00:00:00,27/2/2022 00:00:00,"P11-2022"
,"LV WHITE WATER CATERING","SUPPLIES AND SERVICES","FOOD AND DRINK PURCHASES","4140","P116780-SERVICE-sandwiches",27/2/2022 00:00:00,"259276",227.38,"AN0324","ANCHOR CATERING",31/1/2022 00:00:00,27/2/2022 00:00:00,"P11-2022"
,"LV WHITE WATER CATERING","SUPPLIES AND SERVICES","FOOD AND DRINK PURCHASES","4140","P116782-SERVICE-kitchen food 1502",27/2/2022 00:00:00,"259353",751.24,"360001","BIDFOOD",31/1/2022 00:00:00,27/2/2022 00:00:00,"P11-2022"
,"LV WHITE WATER CATERING","SUPPLIES AND SERVICES","FOOD AND DRINK PURCHASES","4140","BIDFOOD",27/2/2022 00:00:00,"259353",-751.24,"360001","BIDFOOD",31/1/2022 00:00:00,27/2/2022 00:00:00,"P11-2022"
,"LV WHITE WATER CATERING","SUPPLIES AND SERVICES","FOOD AND DRINK PURCHASES","4140","BIDFOOD",27/2/2022 00:00:00,"259353",476.89,"360001","BIDFOOD",31/1/2022 00:00:00,27/2/2022 00:00:00,"P11-2022"
,"LV WHITE WATER CATERING","SUPPLIES AND SERVICES","FOOD AND DRINK PURCHASES","4140","BIDFOOD",27/2/2022 00:00:00,"259353",274.35,"360001","BIDFOOD",31/1/2022 00:00:00,27/2/2022 00:00:00,"P11-2022"
,"LV WHITE WATER CATERING","SUPPLIES AND SERVICES","FOOD AND DRINK PURCHASES","4140","P116779-SERVICE-front house",27/2/2022 00:00:00,"259514",624.36,"360001","BIDFOOD",31/1/2022 00:00:00,27/2/2022 00:00:00,"P11-2022"
,"LV WHITE WATER CATERING","SUPPLIES AND SERVICES","FOOD AND DRINK PURCHASES","4140","P116781-SERVICE-cups",27/2/2022 00:00:00,"259529",617.62,"CA0585","CAFE CONNECTIONS",31/1/2022 00:00:00,27/2/2022 00:00:00,"P11-2022"
,"LV WHITE WATER CATERING","SUPPLIES AND SERVICES","FOOD AND DRINK PURCHASES","4140","P116633-SERVICE-front of house food",27/2/2022 00:00:00,"259539",1103.46,"360001","BIDFOOD",31/1/2022 00:00:00,27/2/2022 00:00:00,"P11-2022"
,"LV WHITE WATER CATERING","SUPPLIES AND SERVICES","FOOD AND DRINK PURCHASES","4140","BIDFOOD",27/2/2022 00:00:00,"259539",-1103.46,"360001","BIDFOOD",31/1/2022 00:00:00,27/2/2022 00:00:00,"P11-2022"
,"LV WHITE WATER CATERING","SUPPLIES AND SERVICES","FOOD AND DRINK PURCHASES","4140","BIDFOOD",27/2/2022 00:00:00,"259539",738.59,"360001","BIDFOOD",31/1/2022 00:00:00,27/2/2022 00:00:00,"P11-2022"
,"LV WHITE WATER CATERING","SUPPLIES AND SERVICES","FOOD AND DRINK PURCHASES","4140","BIDFOOD",27/2/2022 00:00:00,"259539",364.87,"360001","BIDFOOD",31/1/2022 00:00:00,27/2/2022 00:00:00,"P11-2022"
,"LV WHITE WATER CATERING","SUPPLIES AND SERVICES","FOOD AND DRINK PURCHASES","4140","P116783-SERVICE-drinks",27/2/2022 00:00:00,"259592",188.45,"DA0268","DAYLA DRINKS",31/1/2022 00:00:00,27/2/2022 00:00:00,"P11-2022"
,"LV WHITE WATER CATERING","SUPPLIES AND SERVICES","FOOD AND DRINK PURCHASES","4140","P116778-SERVICE-sandwixhes 18/02",27/2/2022 00:00:00,"259625",364.74,"AN0324","ANCHOR CATERING",31/1/2022 00:00:00,27/2/2022 00:00:00,"P11-2022"
,"LV CAMPSITE CARAVAN SALES","SUPPLIES AND SERVICES","CARAVAN PURCHASES","4171","PEMBERTON LEISURE HOMES",27/2/2022 00:00:00,"259362",7011.95,"PE0282","PEMBERTON LEISURE HOMES",31/1/2022 00:00:00,27/2/2022 00:00:00,"P11-2022"
,"LV CAMPSITE CARAVAN SALES","SUPPLIES AND SERVICES","CARAVAN PURCHASES","4171","PEMBERTON LEISURE HOMES",27/2/2022 00:00:00,"259362",29382.47,"PE0282","PEMBERTON LEISURE HOMES",31/1/2022 00:00:00,27/2/2022 00:00:00,"P11-2022"
,"LV CAMPSITE CARAVAN SALES","SUPPLIES AND SERVICES","CARAVAN PURCHASES","4171","PEMBERTON LEISURE HOMES",27/2/2022 00:00:00,"259362",-36394.42,"PE0282","PEMBERTON LEISURE HOMES",31/1/2022 00:00:00,27/2/2022 00:00:00,"P11-2022"
,"LV CAMPSITE CARAVAN SALES","SUPPLIES AND SERVICES","CARAVAN PURCHASES","4171","P116748-SERVICE-Marlow",27/2/2022 00:00:00,"259362",36394.42,"PE0282","PEMBERTON LEISURE HOMES",31/1/2022 00:00:00,27/2/2022 00:00:00,"P11-2022"
,"LV CAMPSITE CARAVAN SALES","SUPPLIES AND SERVICES","DECKING PURCHASES","4173","P116323-SERVICE-Decking",24/2/2022 00:00:00,"259517",1200,"LO0459","LONDON LODGES UK",31/1/2022 00:00:00,27/2/2022 00:00:00,"P11-2022"
,"LV CAMPSITE CARAVAN SALES","SUPPLIES AND SERVICES","DECKING PURCHASES","4173","P116320-SERVICE-Decking upgrade",27/2/2022 00:00:00,"259664",498.5,"LO0459","LONDON LODGES UK",31/1/2022 00:00:00,27/2/2022 00:00:00,"P11-2022"
,"LV CAMPSITE CARAVAN SALES","SUPPLIES AND SERVICES","MISCELLANEOUS CARAVAN COSTS","4174","P116751-SERVICE-supply of post and skirting",27/2/2022 00:00:00,"259516",971,"LO0459","LONDON LODGES UK",31/1/2022 00:00:00,27/2/2022 00:00:00,"P11-2022"
,"LV CAMPSITE CARAVAN SALES","SUPPLIES AND SERVICES","MISCELLANEOUS CARAVAN COSTS","4174","P116319-SERVICE-Plot 32 induction",24/2/2022 00:00:00,"259663",2500,"LO0459","LONDON LODGES UK",31/1/2022 00:00:00,27/2/2022 00:00:00,"P11-2022"
,"LEE VALLEY CARAVAN PARK","SUPPLIES AND SERVICES","CONSUMABLES - LODGES","4181","P116601-SERVICE-Gas safety for 4 lodges",24/2/2022 00:00:00,"259504",600,"SO0400","SOUTHERN GREEN SERVICES LIMITED",31/1/2022 00:00:00,27/2/2022 00:00:00,"P11-2022"
"P&V","SOUTH AREA RANGERS","SUPPLIES AND SERVICES","CLOTHING & UNIFORMS","4225","P116135-SERVICE-Boots - M852A-Black-46 (UK11)",7/2/2022 00:00:00,"258499",59.99,"DI0017","DIRECT BOOT & SHOE SUPPLIES",31/1/2022 00:00:00,27/2/2022 00:00:00,"P11-2022"
"P&V","VOLUNTEERS (L&E)","SUPPLIES AND SERVICES","CLOTHING & UNIFORMS","4225","P116406-SERVICE-2 x XL UN019 Black Full Zip Fleeces with Sewn",27/2/2022 00:00:00,"259302",28.98,"DI0017","DIRECT BOOT & SHOE SUPPLIES",31/1/2022 00:00:00,27/2/2022 00:00:00,"P11-2022"
,"LV LEISURE CENTRE GOLF COURSE","SUPPLIES AND SERVICES","CLOTHING & UNIFORMS","4225","P116225-SERVICE-overall",7/2/2022 00:00:00,"258513",149.96,"AM0406","AMAZON PAYMENTS UK LIMITED",31/1/2022 00:00:00,27/2/2022 00:00:00,"P11-2022"
"CEO","CHIEF EXECUTIVE","SUPPLIES AND SERVICES","OFFICE EXPENSES","4311","P116341-SERVICE-Pack of 10 Assorted A4 Europa Notepads",14/2/2022 00:00:00,"259248",41.92,"TH0008","JKL SOLUTIONS LTD",31/1/2022 00:00:00,27/2/2022 00:00:00,"P11-2022"
"CEO","CHIEF EXECUTIVE","SUPPLIES AND SERVICES","OFFICE EXPENSES","4311","P116563-SERVICE-2 x HPCH562EE Black Cartridges",22/2/2022 00:00:00,"259530",39.84,"TH0008","JKL SOLUTIONS LTD",31/1/2022 00:00:00,27/2/2022 00:00:00,"P11-2022"
"R&B","FINANCE","SUPPLIES AND SERVICES","OFFICE EXPENSES","4311","P116412-SERVICE-KF31002-Ruled Feint-White Shorthand Notebook-",24/2/2022 00:00:00,"259611",12.43,"TH0008","JKL SOLUTIONS LTD",31/1/2022 00:00:00,27/2/2022 00:00:00,"P11-2022"
"R&B","FINANCE","SUPPLIES AND SERVICES","OFFICE EXPENSES","4311","P116412-SERVICE-Multipurpose Label 65 x 38mm (2100 pack) Kf26",24/2/2022 00:00:00,"259611",15.21,"TH0008","JKL SOLUTIONS LTD",31/1/2022 00:00:00,27/2/2022 00:00:00,"P11-2022"
,"LEE VALLEY MARINA STANSTEAD","SUPPLIES AND SERVICES","OFFICE EXPENSES","4311","P116337-SERVICE-misc office stationery",22/2/2022 00:00:00,"258923",96.37,"TH0008","JKL SOLUTIONS LTD",31/1/2022 00:00:00,27/2/2022 00:00:00,"P11-2022"
"P&V","YOUTH AND SCHOOLS","SUPPLIES AND SERVICES","OFFICE EXPENSES","4311","KEYS",24/2/2022 00:00:00,"259671",3.75,"FI0001","DIRECTOR OF FINANCE - CASH",31/1/2022 00:00:00,27/2/2022 00:00:00,"P11-2022"
"P&V","YOUTH AND SCHOOLS","SUPPLIES AND SERVICES","OFFICE EXPENSES","4311","CLEANING PRODUCTS",24/2/2022 00:00:00,"259671",7.67,"FI0001","DIRECTOR OF FINANCE - CASH",31/1/2022 00:00:00,27/2/2022 00:00:00,"P11-2022"
,"LEE VALLEY VELOPARK","SUPPLIES AND SERVICES","OFFICE EXPENSES","4311","P116695-SERVICE-Printer Readings",27/2/2022 00:00:00,"257263",16.36,"IN0185","IBS OFFICE SOLUTIONS LTD",31/1/2022 00:00:00,27/2/2022 00:00:00,"P11-2022"
,"LV HOCKEY AND TENNIS CENTRE","SUPPLIES AND SERVICES","OFFICE EXPENSES","4311","P116118-SERVICE-stationary supplies",14/2/2022 00:00:00,"259268",89.1,"EA0385","EASTERN SHIRE PURCHASING ORGANISATION (ESPO)",31/1/2022 00:00:00,27/2/2022 00:00:00,"P11-2022"
,"LV HOCKEY AND TENNIS CENTRE","SUPPLIES AND SERVICES","OFFICE EXPENSES","4311","P116118-SERVICE-stationary supplies",14/2/2022 00:00:00,"259269",44,"EA0385","EASTERN SHIRE PURCHASING ORGANISATION (ESPO)",31/1/2022 00:00:00,27/2/2022 00:00:00,"P11-2022"
,"LV HOCKEY AND TENNIS CENTRE","SUPPLIES AND SERVICES","OFFICE EXPENSES","4311","P116797-SERVICE-prestige till roll 57mm x 38mm",27/2/2022 00:00:00,"259913",69.56,"TH0008","JKL SOLUTIONS LTD",31/1/2022 00:00:00,27/2/2022 00:00:00,"P11-2022"
,"LV LEISURE CENTRE CAMPSITE","SUPPLIES AND SERVICES","OFFICE EXPENSES","4311","P116661-SERVICE-punched pockets",24/2/2022 00:00:00,"259610",10,"TH0008","JKL SOLUTIONS LTD",31/1/2022 00:00:00,27/2/2022 00:00:00,"P11-2022"
,"LV LEISURE CENTRE CAMPSITE","SUPPLIES AND SERVICES","OFFICE EXPENSES","4311","P116731-SERVICE-Staples,paper,and polly pockets",27/2/2022 00:00:00,"259799",29.06,"TH0008","JKL SOLUTIONS LTD",31/1/2022 00:00:00,27/2/2022 00:00:00,"P11-2022"
,"LEE VALLEY ATHLETICS CENTRE","SUPPLIES AND SERVICES","OFFICE EXPENSES","4311","P116370-SERVICE-LVAC INV 60304",7/2/2022 00:00:00,"258737",103.94,"ST0184","STACY & SON",31/1/2022 00:00:00,27/2/2022 00:00:00,"P11-2022"
,"LEE VALLEY VELOPARK","SUPPLIES AND SERVICES","PHOTOCOPYING","4314","KONICA MINOLTA BUSINESS SOLUTI",27/2/2022 00:00:00,"259660",28.21,"KO0071","KONICA MINOLTA BUSINESS SOLUTIONS ( UK) LTD",31/1/2022 00:00:00,27/2/2022 00:00:00,"P11-2022"
"P&V","BIODIVERSITY ACTION PLAN","SUPPLIES AND SERVICES","PERIODICALS & REFERENCE BOOKS","4332","P116683-SERVICE-2022 Corporate Membership of London Natural H",27/2/2022 00:00:00,"259812",20,"LO0030","LONDON NATURAL HISTORY SOCIETY",31/1/2022 00:00:00,27/2/2022 00:00:00,"P11-2022"
"R&B","FINANCE & RESOURCES MANAGEMENT","SUPPLIES AND SERVICES","PUBLICATIONS","4333","P116685-SERVICE-Annual CIPFA subscription",24/2/2022 00:00:00,"259581",3860,"CH0002","CIPFA BUSINESS LTD",31/1/2022 00:00:00,27/2/2022 00:00:00,"P11-2022"
"CEO","CHIEF EXECUTIVE","SUPPLIES AND SERVICES","SUBSCRIPTIONS","4334","P116640-SERVICE-MJ Subscription",22/2/2022 00:00:00,"259378",140,"HE0021","HEMMING GROUP LIMITED",31/1/2022 00:00:00,27/2/2022 00:00:00,"P11-2022"
"R&B","INTERNAL AUDIT/HEALTH & SAFETY","SUPPLIES AND SERVICES","SUBSCRIPTIONS","4334","P116497-SERVICE-2 Year Memebership 19/2/22 - 18/2/24",14/2/2022 00:00:00,"259052",710,"BR0257","BRITISH SAFETY COUNCIL SERVICES",31/1/2022 00:00:00,27/2/2022 00:00:00,"P11-2022"
"P&V","LEE VALLEY FARM HOLYFIELDHALL","SUPPLIES AND SERVICES","SUBSCRIPTIONS","4334","P116555-SERVICE-Red Tractor Subscription 2022/23",14/2/2022 00:00:00,"259025",190,"AC0314","LRQA",31/1/2022 00:00:00,27/2/2022 00:00:00,"P11-2022"
"P&V","LEE VALLEY FARM HOLYFIELDHALL","SUPPLIES AND SERVICES","SUBSCRIPTIONS","4334","P116608-SERVICE-Subs",16/2/2022 00:00:00,"259187",370.79,"NA0005","NATIONAL MILK RECORDS PLC",31/1/2022 00:00:00,27/2/2022 00:00:00,"P11-2022"
"P&V","LEE VALLEY FARM HOLYFIELDHALL","SUPPLIES AND SERVICES","SUBSCRIPTIONS","4334","P116721-SERVICE-Red Tractor Farm Assurance Scheme",24/2/2022 00:00:00,"259635",247.16,"FA0065","EFSIS/FABBL FARM ASSURANCE SCHEME",31/1/2022 00:00:00,27/2/2022 00:00:00,"P11-2022"
"P&V","YOUTH AND SCHOOLS","SUPPLIES AND SERVICES","POSTAGE & MAILING","4445","STAMPS FOR OR MAPS",24/2/2022 00:00:00,"259671",18.68,"FI0001","DIRECTOR OF FINANCE - CASH",31/1/2022 00:00:00,27/2/2022 00:00:00,"P11-2022"
"R&B","REVENUE SUSPENSE (AUTHORITY)","SUPPLIES AND SERVICES","TELEPHONES (MOBILE)","4484","GAMMA TELECOM LTD",14/2/2022 00:00:00,"259079",22.5,"GA0432","GAMMA TELECOM LTD",31/1/2022 00:00:00,27/2/2022 00:00:00,"P11-2022"
"R&B","REVENUE SUSPENSE (AUTHORITY)","SUPPLIES AND SERVICES","TELEPHONES (MOBILE)","4484","GAMMA TELECOM LTD",14/2/2022 00:00:00,"259079",694.95,"GA0432","GAMMA TELECOM LTD",31/1/2022 00:00:00,27/2/2022 00:00:00,"P11-2022"
,"LEE VALLEY CAMPSITE","SUPPLIES AND SERVICES","MARKETING","4603","P116475-SERVICE-UK Campsites entry  22/23",27/2/2022 00:00:00,"258991",89.99,"UK0025","UK CAMPSITE CO UK",31/1/2022 00:00:00,27/2/2022 00:00:00,"P11-2022"
"P&V","RIVER LEE COUNTRY PARK","SUPPLIES AND SERVICES","MARKETING","4603","P116195-SERVICE-Posters for Wildlife Discovery Centre",22/2/2022 00:00:00,"258671",50,"MA0167","MARTIN DANNELL & CO LTD",31/1/2022 00:00:00,27/2/2022 00:00:00,"P11-2022"
"P&V","RIVER LEE COUNTRY PARK","SUPPLIES AND SERVICES","MARKETING","4603","P116195-SERVICE-Delivery Posters",22/2/2022 00:00:00,"258671",7.5,"MA0167","MARTIN DANNELL & CO LTD",31/1/2022 00:00:00,27/2/2022 00:00:00,"P11-2022"
,"LV LEISURE CENTRE CAMPSITE","SUPPLIES AND SERVICES","MARKETING","4603","P116772-SERVICE-Uk campsite marketing",27/2/2022 00:00:00,"258991",89.99,"UK0025","UK CAMPSITE CO UK",31/1/2022 00:00:00,27/2/2022 00:00:00,"P11-2022"
,"LV LEISURE CENTRE GOLF COURSE","SUPPLIES AND SERVICES","MARKETING","4603","P116452-SERVICE-scorecards",24/2/2022 00:00:00,"259261",209.28,"SO0582","SOLOPRESS",31/1/2022 00:00:00,27/2/2022 00:00:00,"P11-2022"
,"LEE VALLEY MARINA SPRINGFIELD","SUPPLIES AND SERVICES","MERCHANT PROCESSING CHARGES","4641","WORLDPAY",7/2/2022 00:00:00,"258884",30,"WO0338","WORLDPAY",31/1/2022 00:00:00,27/2/2022 00:00:00,"P11-2022"
,"LEE VALLEY MARINA STANSTEAD","SUPPLIES AND SERVICES","MERCHANT PROCESSING CHARGES","4641","WORLDPAY",7/2/2022 00:00:00,"258884",30,"WO0338","WORLDPAY",31/1/2022 00:00:00,27/2/2022 00:00:00,"P11-2022"
"R&B","FINANCE & RESOURCES MANAGEMENT","SUPPLIES AND SERVICES","DEBT RECOVERY FEES","4646","P111526-SERVICE-DEBT RECOVERY FEE 2021/2022",7/2/2022 00:00:00,"258716",40.2,"LE0069","LEGAL RECOVERIES AND COLLECTIONS LIMITED",31/1/2022 00:00:00,27/2/2022 00:00:00,"P11-2022"
"P&V","NORTH AREA RANGERS","SUPPLIES AND SERVICES","SECURITY","4650","P112727-SERVICE-Security - North of the Park",7/2/2022 00:00:00,"258774",4666.01,"PA0059","PARKGUARD LTD",31/1/2022 00:00:00,27/2/2022 00:00:00,"P11-2022"
"P&V","SOUTH AREA RANGERS","SUPPLIES AND SERVICES","SECURITY","4650","P112728-SERVICE-Security - South of the Park",7/2/2022 00:00:00,"258773",7453.89,"PA0059","PARKGUARD LTD",31/1/2022 00:00:00,27/2/2022 00:00:00,"P11-2022"
"P&V","RIVER LEE COUNTRY PARK","SUPPLIES AND SERVICES","SECURITY","4650","P116229-SERVICE-Height Barrier Repairs - Broxbourne Riverside",7/2/2022 00:00:00,"258736",150,"LW0268","LWC ENGINEERING LIMITED",31/1/2022 00:00:00,27/2/2022 00:00:00,"P11-2022"
"P&V","RIVER LEE COUNTRY PARK","SUPPLIES AND SERVICES","SECURITY","4650","P116229-SERVICE-Height Barrier Repairs - Turnford / Clayton",7/2/2022 00:00:00,"258736",360,"LW0268","LWC ENGINEERING LIMITED",31/1/2022 00:00:00,27/2/2022 00:00:00,"P11-2022"
,"LV LEISURE CENTRE CAMPSITE","SUPPLIES AND SERVICES","SECURITY","4650","P116282-SERVICE-New cameras cables and repairs to site",7/2/2022 00:00:00,"258466",1560,"RV0035","RVTV SECURITY GROUP LTD",31/1/2022 00:00:00,27/2/2022 00:00:00,"P11-2022"
"CEO","LVLC SERVICE CHARGE","SUPPLIES AND SERVICES","SECURITY","4650","P116488-SERVICE-LVLC Security",14/2/2022 00:00:00,"258907",2340,"CE0671","CENTRAL SECURITY GROUP LIMITED",31/1/2022 00:00:00,27/2/2022 00:00:00,"P11-2022"
"CEO","LVLC SERVICE CHARGE","SUPPLIES AND SERVICES","SECURITY","4650","P116488-SERVICE-LVLC Security",14/2/2022 00:00:00,"258908",2340,"CE0671","CENTRAL SECURITY GROUP LIMITED",31/1/2022 00:00:00,27/2/2022 00:00:00,"P11-2022"
"CEO","LVLC SERVICE CHARGE","SUPPLIES AND SERVICES","SECURITY","4650","P116488-SERVICE-LVLC Security",14/2/2022 00:00:00,"258909",2340,"CE0671","CENTRAL SECURITY GROUP LIMITED",31/1/2022 00:00:00,27/2/2022 00:00:00,"P11-2022"
"CEO","LVLC SERVICE CHARGE","SUPPLIES AND SERVICES","SECURITY","4650","P116501-SERVICE-LVLC Security",14/2/2022 00:00:00,"258910",1508,"CE0671","CENTRAL SECURITY GROUP LIMITED",31/1/2022 00:00:00,27/2/2022 00:00:00,"P11-2022"
"CEO","LVLC SERVICE CHARGE","SUPPLIES AND SERVICES","SECURITY","4650","P116501-SERVICE-LVLC Security",14/2/2022 00:00:00,"258911",2496,"CE0671","CENTRAL SECURITY GROUP LIMITED",31/1/2022 00:00:00,27/2/2022 00:00:00,"P11-2022"
"CEO","LVLC SERVICE CHARGE","SUPPLIES AND SERVICES","SECURITY","4650","P116757-SERVICE-LVLC Security",27/2/2022 00:00:00,"259606",2236,"CE0671","CENTRAL SECURITY GROUP LIMITED",31/1/2022 00:00:00,27/2/2022 00:00:00,"P11-2022"
"CEO","PR/COMMUNICATIONS","SUPPLIES AND SERVICES","ONLINE ADVERTISING","4657","P115642-SERVICE-Christmas gift voucher campaign",14/2/2022 00:00:00,"259005",2648.35,"ME0325","HONCHOM INTERNATIONAL LIMITED",31/1/2022 00:00:00,27/2/2022 00:00:00,"P11-2022"
"R&B","PERFORMANCE MANAGEMENT","SUPPLIES AND SERVICES","OFFSITE ARCHIVED STORAGE","4667","P116469-SERVICE-Off Site storage Jan 2022",14/2/2022 00:00:00,"258987",310.39,"DA0154","RESTORE PLC",31/1/2022 00:00:00,27/2/2022 00:00:00,"P11-2022"
,"LV WHITE WATER CATERING","SUPPLIES AND SERVICES","ENTERTAINMENT & OTHER LICENCES","4711","P116518-SERVICE-pavillion licensee",14/2/2022 00:00:00,"254759",350,"BR0016","BOROUGH OF BROXBOURNE",31/1/2022 00:00:00,27/2/2022 00:00:00,"P11-2022"
"P&V","LEE VALLEY FARM HOLYFIELDHALL","THIRD PARTY PAYMENTS","VETERINARY SERVICES","4718","P116609-SERVICE-Vets",22/2/2022 00:00:00,"259019",2047.92,"HA0443","HAMPDEN VETERINARY HOSPITAL",31/1/2022 00:00:00,27/2/2022 00:00:00,"P11-2022"
,"LEE VALLEY RIDING CENTRE","THIRD PARTY PAYMENTS","VETERINARY SERVICES","4718","P112168-SERVICE-vet services",8/2/2022 00:00:00,"258951",330.2,"BA0566","BALLINGER EQUINE LTD",31/1/2022 00:00:00,27/2/2022 00:00:00,"P11-2022"
,"LEE VALLEY RIDING CENTRE","THIRD PARTY PAYMENTS","VETERINARY SERVICES","4718","P112168-SERVICE-vet services",8/2/2022 00:00:00,"258951",53.55,"BA0566","BALLINGER EQUINE LTD",31/1/2022 00:00:00,27/2/2022 00:00:00,"P11-2022"
,"LEE VALLEY RIDING CENTRE","THIRD PARTY PAYMENTS","VETERINARY SERVICES","4718","P112168-SERVICE-vet services",8/2/2022 00:00:00,"258952",392.75,"BA0566","BALLINGER EQUINE LTD",31/1/2022 00:00:00,27/2/2022 00:00:00,"P11-2022"
,"LEE VALLEY RIDING CENTRE","THIRD PARTY PAYMENTS","VETERINARY SERVICES","4718","P112168-SERVICE-vet services",8/2/2022 00:00:00,"258953",193.2,"BA0566","BALLINGER EQUINE LTD",31/1/2022 00:00:00,27/2/2022 00:00:00,"P11-2022"
,"LEE VALLEY RIDING CENTRE","THIRD PARTY PAYMENTS","VETERINARY SERVICES","4718","P112168-SERVICE-vet services feb/march 2022",8/2/2022 00:00:00,"258953",1188.94,"BA0566","BALLINGER EQUINE LTD",31/1/2022 00:00:00,27/2/2022 00:00:00,"P11-2022"
,"LEE VALLEY RIDING CENTRE","THIRD PARTY PAYMENTS","VETERINARY SERVICES","4718","P115939-SERVICE-Shane put to sleep",14/2/2022 00:00:00,"259004",315,"HO0033","HOLTS ABATTOIR LTD",31/1/2022 00:00:00,27/2/2022 00:00:00,"P11-2022"
,"LEE VALLEY RIDING CENTRE","THIRD PARTY PAYMENTS","SADDLER","4720","P116514-SERVICE-x 3 new saddles and tack check",14/2/2022 00:00:00,"259249",1579.17,"IN0088","INGATESTONE SADDLERY CENTRE LTD",31/1/2022 00:00:00,27/2/2022 00:00:00,"P11-2022"
,"LEE VALLEY VELOPARK","SUPPLIES AND SERVICES","EVENTS","4724","P116248-SERVICE-Steward 7 & 8 Feb",22/2/2022 00:00:00,"259288",561,"WI0227","WISE SECURITY SERVICES",31/1/2022 00:00:00,27/2/2022 00:00:00,"P11-2022"
,"LEE VALLEY ICE CENTRE","SUPPLIES AND SERVICES","EVENTS","4724","P110027-SERVICE-Security Patrols",9/2/2022 00:00:00,"258776",972,"PA0059","PARKGUARD LTD",31/1/2022 00:00:00,27/2/2022 00:00:00,"P11-2022"
"P&V","YOUTH AND SCHOOLS","SUPPLIES AND SERVICES","ACTIVITIES (SCHOOLS)","4725","P116478-SERVICE-set up",14/2/2022 00:00:00,"259194",10,"TO0195","TOTAL MERCHANDISE LIMITED",31/1/2022 00:00:00,27/2/2022 00:00:00,"P11-2022"
"P&V","YOUTH AND SCHOOLS","SUPPLIES AND SERVICES","ACTIVITIES (SCHOOLS)","4725","P116478-SERVICE-qty 500 x branded pencil packs",14/2/2022 00:00:00,"259194",210,"TO0195","TOTAL MERCHANDISE LIMITED",31/1/2022 00:00:00,27/2/2022 00:00:00,"P11-2022"
"P&V","YOUTH AND SCHOOLS","SUPPLIES AND SERVICES","ACTIVITIES (SCHOOLS)","4725","P115304-SERVICE-20 x rubber eye pieces for Taiga 8x25",22/2/2022 00:00:00,"259287",80,"IN0067","IN FOCUS",31/1/2022 00:00:00,27/2/2022 00:00:00,"P11-2022"
"P&V","YOUTH AND SCHOOLS","SUPPLIES AND SERVICES","ACTIVITIES (SCHOOLS)","4725","P116572-SERVICE-LEEF large organsiation membership",22/2/2022 00:00:00,"259305",160,"LO0437","LONDON ENVIRONMENTAL EDUCATION FORUM",31/1/2022 00:00:00,27/2/2022 00:00:00,"P11-2022"
"P&V","YOUTH AND SCHOOLS","SUPPLIES AND SERVICES","ACTIVITIES (SCHOOLS)","4725","P115410-SERVICE-20 rubber eye pieces for binoculars",22/2/2022 00:00:00,"259577",61.54,"JO0180","JOHN PYE LTD (SERVICE & REPAIRS)",31/1/2022 00:00:00,27/2/2022 00:00:00,"P11-2022"
"P&V","YOUTH AND SCHOOLS","SUPPLIES AND SERVICES","ACTIVITIES (SCHOOLS)","4725","SADD RESOURCES",24/2/2022 00:00:00,"259671",6.5,"FI0001","DIRECTOR OF FINANCE - CASH",31/1/2022 00:00:00,27/2/2022 00:00:00,"P11-2022"
"P&V","YOUTH AND SCHOOLS","SUPPLIES AND SERVICES","ACTIVITIES (SCHOOLS)","4725","RESOURCES",24/2/2022 00:00:00,"259671",3.33,"FI0001","DIRECTOR OF FINANCE - CASH",31/1/2022 00:00:00,27/2/2022 00:00:00,"P11-2022"
"P&V","YOUTH AND SCHOOLS","SUPPLIES AND SERVICES","ACTIVITIES (SCHOOLS)","4725","RESOURCES",24/2/2022 00:00:00,"259671",8.54,"FI0001","DIRECTOR OF FINANCE - CASH",31/1/2022 00:00:00,27/2/2022 00:00:00,"P11-2022"
"P&V","YOUTH AND SCHOOLS","SUPPLIES AND SERVICES","ACTIVITIES (SCHOOLS)","4725","WATER FOR OR",24/2/2022 00:00:00,"259671",5.54,"FI0001","DIRECTOR OF FINANCE - CASH",31/1/2022 00:00:00,27/2/2022 00:00:00,"P11-2022"
"P&V","YOUTH AND SCHOOLS","SUPPLIES AND SERVICES","ACTIVITIES (SCHOOLS)","4725","RESOURCES",24/2/2022 00:00:00,"259671",17.08,"FI0001","DIRECTOR OF FINANCE - CASH",31/1/2022 00:00:00,27/2/2022 00:00:00,"P11-2022"
"P&V","YOUTH AND SCHOOLS","SUPPLIES AND SERVICES","ACTIVITIES (SCHOOLS)","4725","KEYS",24/2/2022 00:00:00,"259671",14.58,"FI0001","DIRECTOR OF FINANCE - CASH",31/1/2022 00:00:00,27/2/2022 00:00:00,"P11-2022"
,"LEE VALLEY VELOPARK CATERING","SUPPLIES AND SERVICES","CATERING PURCHASES (CORPORATE)","4772","P116684-SERVICE-BBQ Catering Services",23/2/2022 00:00:00,"259332",514,"SH0256","SHARRONS EVENT CATERING COMPANY LTD",31/1/2022 00:00:00,27/2/2022 00:00:00,"P11-2022"
,"LEE VALLEY VELOPARK CATERING","SUPPLIES AND SERVICES","CATERING PURCHASES (CORPORATE)","4772","P116686-SERVICE-Silver Buffet 10 Feb",23/2/2022 00:00:00,"259333",474.4,"SH0256","SHARRONS EVENT CATERING COMPANY LTD",31/1/2022 00:00:00,27/2/2022 00:00:00,"P11-2022"
"P&V","MYDDLETON HSE HERITAGE CENTRE","SUPPLIES AND SERVICES","NET CATERING PURCHASES","4777","P116446-SERVICE-cups & lids order 22",9/2/2022 00:00:00,"258928",113.29,"CA0585","CAFE CONNECTIONS",31/1/2022 00:00:00,27/2/2022 00:00:00,"P11-2022"
"P&V","MYDDLETON HSE HERITAGE CENTRE","SUPPLIES AND SERVICES","NET CATERING PURCHASES","4777","P116367-SERVICE-Food/Drink order w.e 06.02.22",15/2/2022 00:00:00,"259046",-25.74,"360001","BIDFOOD",31/1/2022 00:00:00,27/2/2022 00:00:00,"P11-2022"
"P&V","MYDDLETON HSE HERITAGE CENTRE","SUPPLIES AND SERVICES","NET CATERING PURCHASES","4777","P116367-SERVICE-Food/Drink order w.e 06.02.22",14/2/2022 00:00:00,"259078",119.39,"360001","BIDFOOD",31/1/2022 00:00:00,27/2/2022 00:00:00,"P11-2022"
"P&V","MYDDLETON HSE HERITAGE CENTRE","SUPPLIES AND SERVICES","NET CATERING PURCHASES","4777","BIDFOOD",14/2/2022 00:00:00,"259078",20.48,"360001","BIDFOOD",31/1/2022 00:00:00,27/2/2022 00:00:00,"P11-2022"
"P&V","MYDDLETON HSE HERITAGE CENTRE","SUPPLIES AND SERVICES","NET CATERING PURCHASES","4777","BIDFOOD",14/2/2022 00:00:00,"259078",98.91,"360001","BIDFOOD",31/1/2022 00:00:00,27/2/2022 00:00:00,"P11-2022"
"P&V","MYDDLETON HSE HERITAGE CENTRE","SUPPLIES AND SERVICES","NET CATERING PURCHASES","4777","BIDFOOD",14/2/2022 00:00:00,"259078",-119.39,"360001","BIDFOOD",31/1/2022 00:00:00,27/2/2022 00:00:00,"P11-2022"
"P&V","MYDDLETON HSE HERITAGE CENTRE","SUPPLIES AND SERVICES","NET CATERING PURCHASES","4777","P116508-SERVICE-food/drinks order w.b. 07.2.22",27/2/2022 00:00:00,"259243",108.17,"CA0585","CAFE CONNECTIONS",31/1/2022 00:00:00,27/2/2022 00:00:00,"P11-2022"
"P&V","MYDDLETON HSE HERITAGE CENTRE","SUPPLIES AND SERVICES","NET CATERING PURCHASES","4777","BIDFOOD",24/2/2022 00:00:00,"259540",215.02,"360001","BIDFOOD",31/1/2022 00:00:00,27/2/2022 00:00:00,"P11-2022"
"P&V","MYDDLETON HSE HERITAGE CENTRE","SUPPLIES AND SERVICES","NET CATERING PURCHASES","4777","BIDFOOD",24/2/2022 00:00:00,"259540",-232.58,"360001","BIDFOOD",31/1/2022 00:00:00,27/2/2022 00:00:00,"P11-2022"
"P&V","MYDDLETON HSE HERITAGE CENTRE","SUPPLIES AND SERVICES","NET CATERING PURCHASES","4777","BIDFOOD",24/2/2022 00:00:00,"259540",17.56,"360001","BIDFOOD",31/1/2022 00:00:00,27/2/2022 00:00:00,"P11-2022"
"P&V","MYDDLETON HSE HERITAGE CENTRE","SUPPLIES AND SERVICES","NET CATERING PURCHASES","4777","P116634-SERVICE-food/drinks order w.b. 14.2.22",24/2/2022 00:00:00,"259540",232.58,"360001","BIDFOOD",31/1/2022 00:00:00,27/2/2022 00:00:00,"P11-2022"
,"LEE VALLEY ATHLETICS CENTRE","SUPPLIES AND SERVICES","NET CATERING PURCHASES","4777","P116728-SERVICE-LVAC 19/2/22 20 X LUNCH @ 7.95",24/2/2022 00:00:00,"259600",159,"BR0098","BRUNCH 'N' LUNCH",31/1/2022 00:00:00,27/2/2022 00:00:00,"P11-2022"
,"LEE VALLEY ATHLETICS CENTRE","SUPPLIES AND SERVICES","NET CATERING PURCHASES","4777","P116470-SERVICE-LVAC OFFICIAL LUNCHES 29.1.22",27/2/2022 00:00:00,"259798",724,"LO0460","THE LONDON LUNCHBOX COMPANY LTD",31/1/2022 00:00:00,27/2/2022 00:00:00,"P11-2022"
,"LEE VALLEY ATHLETICS CENTRE","SUPPLIES AND SERVICES","NET CATERING PURCHASES","4777","THE LONDON LUNCHBOX COMPANY LT",27/2/2022 00:00:00,"259798",-724,"LO0460","THE LONDON LUNCHBOX COMPANY LTD",31/1/2022 00:00:00,27/2/2022 00:00:00,"P11-2022"
,"LEE VALLEY ATHLETICS CENTRE","SUPPLIES AND SERVICES","NET CATERING PURCHASES","4777","THE LONDON LUNCHBOX COMPANY LT",27/2/2022 00:00:00,"259798",566.4,"LO0460","THE LONDON LUNCHBOX COMPANY LTD",31/1/2022 00:00:00,27/2/2022 00:00:00,"P11-2022"
,"LEE VALLEY ATHLETICS CENTRE","SUPPLIES AND SERVICES","NET CATERING PURCHASES","4777","THE LONDON LUNCHBOX COMPANY LT",27/2/2022 00:00:00,"259798",129.6,"LO0460","THE LONDON LUNCHBOX COMPANY LTD",31/1/2022 00:00:00,27/2/2022 00:00:00,"P11-2022"
,"LEE VALLEY ATHLETICS CENTRE","SUPPLIES AND SERVICES","NET CATERING PURCHASES","4777","THE LONDON LUNCHBOX COMPANY LT",27/2/2022 00:00:00,"259798",28,"LO0460","THE LONDON LUNCHBOX COMPANY LTD",31/1/2022 00:00:00,27/2/2022 00:00:00,"P11-2022"
"P&V","MYDDELTON HOUSE","SUPPLIES AND SERVICES","TRADING AC - EXTERNAL PURCHASE","4875","P116513-SERVICE-food / drinks feb 22",24/2/2022 00:00:00,"259354",45.14,"360001","BIDFOOD",31/1/2022 00:00:00,27/2/2022 00:00:00,"P11-2022"
,"LEE VALLEY MARINA SPRINGFIELD","SUPPLIES AND SERVICES","TRADING AC - EXTERNAL PURCHASE","4875","P116246-SERVICE-Chandlery Stock",7/2/2022 00:00:00,"258679",-5.88,"CE0510","CENTURION EUROPE LIMITED",31/1/2022 00:00:00,27/2/2022 00:00:00,"P11-2022"
,"LEE VALLEY MARINA SPRINGFIELD","SUPPLIES AND SERVICES","TRADING AC - EXTERNAL PURCHASE","4875","P115548-SERVICE-Chandlery Stock  789738",7/2/2022 00:00:00,"258696",5.7,"MI0200","MIDLAND CHANDLERS LIMITED",31/1/2022 00:00:00,27/2/2022 00:00:00,"P11-2022"
,"LEE VALLEY MARINA SPRINGFIELD","SUPPLIES AND SERVICES","TRADING AC - EXTERNAL PURCHASE","4875","P116313-SERVICE-Chandlery Stock  803311",7/2/2022 00:00:00,"258867",998.93,"MI0200","MIDLAND CHANDLERS LIMITED",31/1/2022 00:00:00,27/2/2022 00:00:00,"P11-2022"
,"LEE VALLEY MARINA SPRINGFIELD","SUPPLIES AND SERVICES","TRADING AC - EXTERNAL PURCHASE","4875","P116209-SERVICE-Chandlery Stock",8/2/2022 00:00:00,"258912",1127.58,"EC0394","MANBAT LTD T/AS",31/1/2022 00:00:00,27/2/2022 00:00:00,"P11-2022"
,"LEE VALLEY MARINA SPRINGFIELD","SUPPLIES AND SERVICES","TRADING AC - EXTERNAL PURCHASE","4875","P116338-SERVICE-Chandlery Stock 83602",8/2/2022 00:00:00,"258922",643.76,"AQ0033","AQUAFAX LIMITED",31/1/2022 00:00:00,27/2/2022 00:00:00,"P11-2022"
,"LEE VALLEY MARINA SPRINGFIELD","SUPPLIES AND SERVICES","TRADING AC - EXTERNAL PURCHASE","4875","P116325-SERVICE-Chandlery Stock  (diesel)",14/2/2022 00:00:00,"259013",7119,"SP0543","SPEEDY FUELS LIMITED",31/1/2022 00:00:00,27/2/2022 00:00:00,"P11-2022"
,"LEE VALLEY MARINA SPRINGFIELD","SUPPLIES AND SERVICES","TRADING AC - EXTERNAL PURCHASE","4875","P116388-SERVICE-Chandlery Stock  804924",14/2/2022 00:00:00,"259031",736.96,"MI0200","MIDLAND CHANDLERS LIMITED",31/1/2022 00:00:00,27/2/2022 00:00:00,"P11-2022"
,"LEE VALLEY MARINA SPRINGFIELD","SUPPLIES AND SERVICES","TRADING AC - EXTERNAL PURCHASE","4875","P116201-SERVICE-Chandlery Stovk (coal and gas)",14/2/2022 00:00:00,"259202",695.25,"SM0664","KG SMITH & SON",31/1/2022 00:00:00,27/2/2022 00:00:00,"P11-2022"
,"LEE VALLEY MARINA SPRINGFIELD","SUPPLIES AND SERVICES","TRADING AC - EXTERNAL PURCHASE","4875","P116107-SERVICE-Chandlery Stock",14/2/2022 00:00:00,"259203",170,"SM0664","KG SMITH & SON",31/1/2022 00:00:00,27/2/2022 00:00:00,"P11-2022"
,"LEE VALLEY MARINA SPRINGFIELD","SUPPLIES AND SERVICES","TRADING AC - EXTERNAL PURCHASE","4875","P116504-SERVICE-Chandlery Stock  806993",15/2/2022 00:00:00,"259212",412.9,"MI0200","MIDLAND CHANDLERS LIMITED",31/1/2022 00:00:00,27/2/2022 00:00:00,"P11-2022"
,"LEE VALLEY MARINA SPRINGFIELD","SUPPLIES AND SERVICES","TRADING AC - EXTERNAL PURCHASE","4875","P116527-SERVICE-Chandlery Stock 84949",15/2/2022 00:00:00,"259213",210.18,"AQ0033","AQUAFAX LIMITED",31/1/2022 00:00:00,27/2/2022 00:00:00,"P11-2022"
,"LEE VALLEY MARINA SPRINGFIELD","SUPPLIES AND SERVICES","TRADING AC - EXTERNAL PURCHASE","4875","P116448-SERVICE-Chandlery Stock",15/2/2022 00:00:00,"259233",308.46,"CA0660","CALFIRE SPARELINE LIMITED",31/1/2022 00:00:00,27/2/2022 00:00:00,"P11-2022"
,"LEE VALLEY MARINA SPRINGFIELD","SUPPLIES AND SERVICES","TRADING AC - EXTERNAL PURCHASE","4875","P116414-SERVICE-Chandlery Stock",22/2/2022 00:00:00,"259379",354.16,"CR0651","CRAFTMASTER PAINTS",31/1/2022 00:00:00,27/2/2022 00:00:00,"P11-2022"
,"LEE VALLEY MARINA SPRINGFIELD","SUPPLIES AND SERVICES","TRADING AC - EXTERNAL PURCHASE","4875","P116651-SERVICE-Chandlery Stock  810028",24/2/2022 00:00:00,"259558",205.74,"MI0200","MIDLAND CHANDLERS LIMITED",31/1/2022 00:00:00,27/2/2022 00:00:00,"P11-2022"
,"LEE VALLEY MARINA SPRINGFIELD","SUPPLIES AND SERVICES","TRADING AC - EXTERNAL PURCHASE","4875","P116664-SERVICE-Chandlery Stock  86170",24/2/2022 00:00:00,"259588",155.16,"AQ0033","AQUAFAX LIMITED",31/1/2022 00:00:00,27/2/2022 00:00:00,"P11-2022"
,"LEE VALLEY MARINA SPRINGFIELD","SUPPLIES AND SERVICES","TRADING AC - EXTERNAL PURCHASE","4875","P116662-SERVICE-Chandlery Stock  810419",24/2/2022 00:00:00,"259589",107.6,"MI0200","MIDLAND CHANDLERS LIMITED",31/1/2022 00:00:00,27/2/2022 00:00:00,"P11-2022"
,"LEE VALLEY MARINA SPRINGFIELD","SUPPLIES AND SERVICES","TRADING AC - EXTERNAL PURCHASE","4875","P116201-SERVICE-Chandlery Stovk (coal and gas)",24/2/2022 00:00:00,"259648",-31.3,"SM0664","KG SMITH & SON",31/1/2022 00:00:00,27/2/2022 00:00:00,"P11-2022"
,"LEE VALLEY MARINA SPRINGFIELD","SUPPLIES AND SERVICES","TRADING AC - EXTERNAL PURCHASE","4875","P116663-SERVICE-Chandlery Stock  159073",27/2/2022 00:00:00,"259654",146.56,"AS0036","ASAP SUPPLIES",31/1/2022 00:00:00,27/2/2022 00:00:00,"P11-2022"
,"LEE VALLEY MARINA SPRINGFIELD","SUPPLIES AND SERVICES","TRADING AC - EXTERNAL PURCHASE","4875","P116745-SERVICE-Chandlery Stock  812061",27/2/2022 00:00:00,"259782",571.65,"MI0200","MIDLAND CHANDLERS LIMITED",31/1/2022 00:00:00,27/2/2022 00:00:00,"P11-2022"
,"LEE VALLEY MARINA SPRINGFIELD","SUPPLIES AND SERVICES","TRADING AC - EXTERNAL PURCHASE","4875","P116732-SERVICE-Steel & Metals Order",27/2/2022 00:00:00,"259802",718.8,"AS0304","KLOECKNER METALS UK (formerly ASD METAL SERV)",31/1/2022 00:00:00,27/2/2022 00:00:00,"P11-2022"
,"STANSTEAD RECHARGEABLE WORKS","SUPPLIES AND SERVICES","TRADING AC - EXTERNAL PURCHASE","4875","P116587-SERVICE-chandlery stock",15/2/2022 00:00:00,"256959",3.14,"MI0200","MIDLAND CHANDLERS LIMITED",31/1/2022 00:00:00,27/2/2022 00:00:00,"P11-2022"
,"STANSTEAD RECHARGEABLE WORKS","SUPPLIES AND SERVICES","TRADING AC - EXTERNAL PURCHASE","4875","P116219-SERVICE-chandlery stock",15/2/2022 00:00:00,"258509",414.85,"MI0200","MIDLAND CHANDLERS LIMITED",31/1/2022 00:00:00,27/2/2022 00:00:00,"P11-2022"
,"STANSTEAD RECHARGEABLE WORKS","SUPPLIES AND SERVICES","TRADING AC - EXTERNAL PURCHASE","4875","P116172-SERVICE-chandlery stock",15/2/2022 00:00:00,"258603",294.41,"SM0658","SML PAINTS AND COATINGS",31/1/2022 00:00:00,27/2/2022 00:00:00,"P11-2022"
,"STANSTEAD RECHARGEABLE WORKS","SUPPLIES AND SERVICES","TRADING AC - EXTERNAL PURCHASE","4875","P116122-SERVICE-chandlery stock",15/2/2022 00:00:00,"258626",15.8,"MI0200","MIDLAND CHANDLERS LIMITED",31/1/2022 00:00:00,27/2/2022 00:00:00,"P11-2022"
,"STANSTEAD RECHARGEABLE WORKS","SUPPLIES AND SERVICES","TRADING AC - EXTERNAL PURCHASE","4875","P116227-SERVICE-2200L red diesel @78.25ppl",15/2/2022 00:00:00,"258628",1721.5,"SP0543","SPEEDY FUELS LIMITED",31/1/2022 00:00:00,27/2/2022 00:00:00,"P11-2022"
,"STANSTEAD RECHARGEABLE WORKS","SUPPLIES AND SERVICES","TRADING AC - EXTERNAL PURCHASE","4875","P116058-SERVICE-CHANDLERY STOCK",15/2/2022 00:00:00,"258648",192.74,"CR0651","CRAFTMASTER PAINTS",31/1/2022 00:00:00,27/2/2022 00:00:00,"P11-2022"
,"STANSTEAD RECHARGEABLE WORKS","SUPPLIES AND SERVICES","TRADING AC - EXTERNAL PURCHASE","4875","P116190-SERVICE-toilet chemicals",15/2/2022 00:00:00,"258652",549.11,"EL0376","ELSAN LTD",31/1/2022 00:00:00,27/2/2022 00:00:00,"P11-2022"
